Workbook

Sheet Main
B10: 2023-06-05
B12: Sheet No. | C12: Template Name | D12: Summary
B13: 1 | C13: Future Intra | D13: For Intraday trading in F&O segment
B14: 2 | C14: Cash Intra | D14: For Intraday trading in cash market segment
B15: 3 | C15: Mid-cap Intra | D15: For Intraday trading in Mid-cap stocks
B16: 4 | C16: Bulk Deals | D16: Reveals Bulk Deals carried on NSE & BSE
B17: 5 | C17: Call Tracker
K27: `

Sheet Future Intra
M5: Back to Main Page
A6: FOR INTRA DAY TRADING | L6: =Main!B10 -> 2023-06-05
A9: Sr.no | B9: Sector | C9: Scrip | D9: Expiry Date | E9: CLOSE RATE | F9: Pivot Point | G9: Supports | J9: Resistances
E10: Point | F10: Point | G10: S1 | H10: S2 | I10: S3 | J10: R1 | K10: R2 | L10: R3 | M10: HIGH | N10: LOW | O10: OI | P10: % Change in OI
A11: 1 | B11: Index | C11: NIFTY | D11: 2023-06-29 | E11: 18635.95 | F11: 18622.60 | G11: 18569.70 | H11: 18503.45 | I11: 18450.55 | J11: 18688.85 | K11: 18741.75 | L11: 18808.00 | M11: 18675.5 | N11: 18556.35 | O11: 10022300 | P11: 2.77%
A12: 2 | B12: Index | C12: BANKNIFTY | D12: 2023-06-29 | E12: 44110.60 | F12: 44110.68 | G12: 43949.92 | H12: 43789.23 | I12: 43628.47 | J12: 44271.37 | K12: 44432.13 | L12: 44592.82 | M12: 44271.45 | N12: 43950 | O12: 2501395 | P12: 2.11%
A13: 3 | B13: Index | C13: FINNIFTY | D13: 2023-06-27 | E13: 19482.65 | F13: 19477.55 | G13: 19421.10 | H13: 19359.55 | I13: 19303.10 | J13: 19539.10 | K13: 19595.55 | L13: 19657.10 | M13: 19534 | N13: 19416 | O13: 44520 | P13: 15.58%
A14: 4 | B14: Index | C14: MIDCPNIFTY | D14: 2023-06-27 | E14: 7893.00 | F14: 7885.33 | G14: 7871.67 | H14: 7850.33 | I14: 7836.67 | J14: 7906.67 | K14: 7920.33 | L14: 7941.67 | M14: 7899 | N14: 7864 | O14: 1050 | P14: 27.27%
A15: 5 | B15: Chemical | C15: AARTIIND | D15: 2023-06-29 | E15: 517.45 | F15: 519.03 | G15: 514.07 | H15: 510.68 | I15: 505.72 | J15: 522.42 | K15: 527.38 | L15: 530.77 | M15: 524 | N15: 515.65 | O15: 5452200 | P15: 2.52%
A16: 6 | B16: Capital_Goods | C16: ABB | D16: 2023-06-29 | E16: 4022.00 | F16: 3995.50 | G16: 3962.00 | H16: 3902.00 | I16: 3868.50 | J16: 4055.50 | K16: 4089.00 | L16: 4149.00 | M16: 4029 | N16: 3935.5 | O16: 1442000 | P16: -0.53%
A17: 7 | B17: Pharma | C17: ABBOTINDIA | D17: 2023-06-29 | E17: 22097.40 | F17: 21954.13 | G17: 21761.27 | H17: 21425.13 | I17: 21232.27 | J17: 22290.27 | K17: 22483.13 | L17: 22819.27 | M17: 22147 | N17: 21618 | O17: 70880 | P17: 4.05%
A18: 8 | B18: Others | C18: ABCAPITAL | D18: 2023-06-29 | E18: 173.90 | F18: 174.63 | G18: 171.42 | H18: 168.93 | I18: 165.72 | J18: 177.12 | K18: 180.33 | L18: 182.82 | M18: 177.85 | N18: 172.15 | O18: 30418200 | P18: 4.94%
A19: 9 | B19: Textile | C19: ABFRL | D19: 2023-06-29 | E19: 203.75 | F19: 204.30 | G19: 202.70 | H19: 201.65 | I19: 200.05 | J19: 205.35 | K19: 206.95 | L19: 208.00 | M19: 205.9 | N19: 203.25 | O19: 28722200 | P19: 0.50%
A20: 10 | B20: Cement | C20: ACC | D20: 2023-06-29 | E20: 1823.90 | F20: 1816.28 | G20: 1805.07 | H20: 1786.23 | I20: 1775.02 | J20: 1835.12 | K20: 1846.33 | L20: 1865.17 | M20: 1827.5 | N20: 1797.45 | O20: 4674200 | P20: -7.40%
A21: 11 | B21: Others | C21: ADANIENT | D21: 2023-06-29 | E21: 2462.75 | F21: 2485.20 | G21: 2420.40 | H21: 2378.05 | I21: 2313.25 | J21: 2527.55 | K21: 2592.35 | L21: 2634.70 | M21: 2550 | N21: 2442.85 | O21: 9824600 | P21: 4.75%
A22: 12 | B22: Others | C22: ADANIPORTS | D22: 2023-06-29 | E22: 739.85 | F22: 741.67 | G22: 735.73 | H22: 731.62 | I22: 725.68 | J22: 745.78 | K22: 751.72 | L22: 755.83 | M22: 747.6 | N22: 737.55 | O22: 37205150 | P22: -4.07%
A23: 13 | B23: Pharma | C23: ALKEM | D23: 2023-06-29 | E23: 3391.75 | F23: 3390.33 | G23: 3370.17 | H23: 3348.58 | I23: 3328.42 | J23: 3411.92 | K23: 3432.08 | L23: 3453.67 | M23: 3410.5 | N23: 3368.75 | O23: 592000 | P23: 2.81%
A24: 14 | B24: Cement | C24: AMBUJACEM | D24: 2023-06-29 | E24: 440.15 | F24: 439.17 | G24: 435.03 | H24: 429.92 | I24: 425.78 | J24: 444.28 | K24: 448.42 | L24: 453.53 | M24: 443.3 | N24: 434.05 | O24: 58953600 | P24: 0.84%
A25: 15 | B25: Others | C25: APOLLOHOSP | D25: 2023-06-29 | E25: 4992.05 | F25: 4949.87 | G25: 4876.63 | H25: 4761.22 | I25: 4687.98 | J25: 5065.28 | K25: 5138.52 | L25: 5253.93 | M25: 5023.1 | N25: 4834.45 | O25: 2192250 | P25: 1.46%
A26: 16 | B26: Automobile | C26: APOLLOTYRE | D26: 2023-06-29 | E26: 391.15 | F26: 389.75 | G26: 387.80 | H26: 384.45 | I26: 382.50 | J26: 393.10 | K26: 395.05 | L26: 398.40 | M26: 391.7 | N26: 386.4 | O26: 12975600 | P26: -1.02%
A27: 17 | B27: Automobile | C27: ASHOKLEY | D27: 2023-06-29 | E27: 147.00 | F27: 146.60 | G27: 145.40 | H27: 143.80 | I27: 142.60 | J27: 148.20 | K27: 149.40 | L27: 151.00 | M27: 147.8 | N27: 145 | O27: 70465000 | P27: -0.25%
A28: 18 | B28: FMCG | C28: ASIANPAINT | D28: 2023-06-29 | E28: 3235.35 | F28: 3228.93 | G28: 3213.87 | H28: 3192.38 | I28: 3177.32 | J28: 3250.42 | K28: 3265.48 | L28: 3286.97 | M28: 3244 | N28: 3207.45 | O28: 5223600 | P28: 0.13%
A29: 19 | B29: Others | C29: ASTRAL | D29: 2023-06-29 | E29: 1874.75 | F29: 1862.57 | G29: 1835.33 | H29: 1795.92 | I29: 1768.68 | J29: 1901.98 | K29: 1929.22 | L29: 1968.63 | M29: 1889.8 | N29: 1823.15 | O29: 1565989 | P29: -1.61%
A30: 20 | B30: Others | C30: ATUL | D30: 2023-06-29 | E30: 6763.75 | F30: 6793.72 | G30: 6697.43 | H30: 6631.12 | I30: 6534.83 | J30: 6860.03 | K30: 6956.32 | L30: 7022.63 | M30: 6890 | N30: 6727.4 | O30: 198000 | P30: 0.76%
A31: 21 | B31: Banking | C31: AUBANK | D31: 2023-06-29 | E31: 772.70 | F31: 772.02 | G31: 768.93 | H31: 765.17 | I31: 762.08 | J31: 775.78 | K31: 778.87 | L31: 782.63 | M31: 775.1 | N31: 768.25 | O31: 13469000 | P31: -1.71%
A32: 22 | B32: Pharma | C32: AUROPHARMA | D32: 2023-06-29 | E32: 666.10 | F32: 663.60 | G32: 659.20 | H32: 652.30 | I32: 647.90 | J32: 670.50 | K32: 674.90 | L32: 681.80 | M32: 668 | N32: 656.7 | O32: 9315600 | P32: 1.63%
A33: 23 | B33: Banking | C33: AXISBANK | D33: 2023-06-29 | E33: 931.75 | F33: 931.30 | G33: 925.70 | H33: 919.65 | I33: 914.05 | J33: 937.35 | K33: 942.95 | L33: 949.00 | M33: 936.9 | N33: 925.25 | O33: 46953575 | P33: -2.97%
A34: 24 | B34: Automobile | C34: BAJAJ-AUTO | D34: 2023-06-29 | E34: 4686.65 | F34: 4691.22 | G34: 4655.43 | H34: 4624.22 | I34: 4588.43 | J34: 4722.43 | K34: 4758.22 | L34: 4789.43 | M34: 4727 | N34: 4660 | O34: 2666000 | P34: 0.68%
A35: 25 | B35: Finance | C35: BAJAJFINSV | D35: 2023-06-29 | E35: 1465.80 | F35: 1466.20 | G35: 1454.40 | H35: 1443.00 | I35: 1431.20 | J35: 1477.60 | K35: 1489.40 | L35: 1500.80 | M35: 1478 | N35: 1454.8 | O35: 8979500 | P35: -1.37%
A36: 26 | B36: Finance | C36: BAJFINANCE | D36: 2023-06-29 | E36: 7076.10 | F36: 7086.48 | G36: 7036.72 | H36: 6997.33 | I36: 6947.57 | J36: 7125.87 | K36: 7175.63 | L36: 7215.02 | M36: 7136.25 | N36: 7047.1 | O36: 3886625 | P36: 1.04%
A37: 27 | B37: Automobile | C37: BALKRISIND | D37: 2023-06-29 | E37: 2296.70 | F37: 2300.27 | G37: 2277.53 | H37: 2258.37 | I37: 2235.63 | J37: 2319.43 | K37: 2342.17 | L37: 2361.33 | M37: 2323 | N37: 2281.1 | O37: 1777800 | P37: -2.23%
A38: 28 | B38: Others | C38: BALRAMCHIN | D38: 2023-06-29 | E38: 395.30 | F38: 395.15 | G38: 392.85 | H38: 390.40 | I38: 388.10 | J38: 397.60 | K38: 399.90 | L38: 402.35 | M38: 397.45 | N38: 392.7 | O38: 6835200 | P38: -0.74%
A39: 29 | B39: Banking | C39: BANDHANBNK | D39: 2023-06-29 | E39: 267.05 | F39: 268.35 | G39: 264.55 | H39: 262.05 | I39: 258.25 | J39: 270.85 | K39: 274.65 | L39: 277.15 | M39: 272.15 | N39: 265.85 | O39: 33849000 | P39: 0.08%
A40: 30 | B40: Banking | C40: BANKBARODA | D40: 2023-06-29 | E40: 187.65 | F40: 187.43 | G40: 186.42 | H40: 185.18 | I40: 184.17 | J40: 188.67 | K40: 189.68 | L40: 190.92 | M40: 188.45 | N40: 186.2 | O40: 92745900 | P40: -0.75%
A41: 31 | B41: FMCG | C41: BATAINDIA | D41: 2023-06-29 | E41: 1570.00 | F41: 1575.23 | G41: 1558.97 | H41: 1547.93 | I41: 1531.67 | J41: 1586.27 | K41: 1602.53 | L41: 1613.57 | M41: 1591.5 | N41: 1564.2 | O41: 1676025 | P41: 4.07%
A42: 32 | B42: Capital_Goods | C42: BEL | D42: 2023-06-29 | E42: 114.15 | F42: 113.77 | G42: 113.18 | H42: 112.22 | I42: 111.63 | J42: 114.73 | K42: 115.32 | L42: 116.28 | M42: 114.35 | N42: 112.8 | O42: 73490100 | P42: 0.88%
A43: 33 | B43: FMCG | C43: BERGEPAINT | D43: 2023-06-29 | E43: 651.10 | F43: 649.83 | G43: 645.52 | H43: 639.93 | I43: 635.62 | J43: 655.42 | K43: 659.73 | L43: 665.32 | M43: 654.15 | N43: 644.25 | O43: 9269700 | P43: 2.62%
A44: 34 | B44: Automobile | C44: BHARATFORG | D44: 2023-06-29 | E44: 795.05 | F44: 796.67 | G44: 789.33 | H44: 783.62 | I44: 776.28 | J44: 802.38 | K44: 809.72 | L44: 815.43 | M44: 804 | N44: 790.95 | O44: 8779000 | P44: 3.55%
A45: 35 | B45: Telecom | C45: BHARTIARTL | D45: 2023-06-29 | E45: 835.35 | F45: 832.68 | G45: 828.37 | H45: 821.38 | I45: 817.07 | J45: 839.67 | K45: 843.98 | L45: 850.97 | M45: 837 | N45: 825.7 | O45: 40703700 | P45: -0.32%
A46: 36 | B46: Capital_Goods | C46: BHEL | D46: 2023-06-29 | E46: 83.75 | F46: 83.42 | G46: 82.43 | H46: 81.12 | I46: 80.13 | J46: 84.73 | K46: 85.72 | L46: 87.03 | M46: 84.4 | N46: 82.1 | O46: 107121000 | P46: 2.06%
A47: 37 | B47: Pharma | C47: BIOCON | D47: 2023-06-29 | E47: 241.65 | F47: 240.08 | G47: 236.67 | H47: 231.68 | I47: 228.27 | J47: 245.07 | K47: 248.48 | L47: 253.47 | M47: 243.5 | N47: 235.1 | O47: 27206000 | P47: 8.01%
A48: 38 | B48: Automobile | C48: BOSCHLTD | D48: 2023-06-29 | E48: 18860.60 | F48: 18832.67 | G48: 18747.33 | H48: 18634.07 | I48: 18548.73 | J48: 18945.93 | K48: 19031.27 | L48: 19144.53 | M48: 18918 | N48: 18719.4 | O48: 137400 | P48: -1.40%
A49: 39 | B49: Oil_Gas | C49: BPCL | D49: 2023-06-29 | E49: 362.85 | F49: 364.62 | G49: 360.08 | H49: 357.32 | I49: 352.78 | J49: 367.38 | K49: 371.92 | L49: 374.68 | M49: 369.15 | N49: 361.85 | O49: 21065400 | P49: 1.18%
A50: 40 | B50: FMCG | C50: BRITANNIA | D50: 2023-06-29 | E50: 4686.80 | F50: 4693.45 | G50: 4649.55 | H50: 4612.30 | I50: 4568.40 | J50: 4730.70 | K50: 4774.60 | L50: 4811.85 | M50: 4737.35 | N50: 4656.2 | O50: 1307600 | P50: -4.04%
A51: 41 | B51: Technology | C51: BSOFT | D51: 2023-06-29 | E51: 350.55 | F51: 351.98 | G51: 346.82 | H51: 343.08 | I51: 337.92 | J51: 355.72 | K51: 360.88 | L51: 364.62 | M51: 357.15 | N51: 348.25 | O51: 9546000 | P51: 1.81%
A52: 42 | B52: Banking | C52: CANBK | D52: 2023-06-29 | E52: 316.15 | F52: 315.22 | G52: 312.43 | H52: 308.72 | I52: 305.93 | J52: 318.93 | K52: 321.72 | L52: 325.43 | M52: 318 | N52: 311.5 | O52: 42130800 | P52: -0.99%
A53: 43 | B53: Finance | C53: CANFINHOME | D53: 2023-06-29 | E53: 729.00 | F53: 726.43 | G53: 720.57 | H53: 712.13 | I53: 706.27 | J53: 734.87 | K53: 740.73 | L53: 749.17 | M53: 732.3 | N53: 718 | O53: 3512925 | P53: -3.33%
A54: 44 | B54: Others | C54: CHAMBLFERT | D54: 2023-06-29 | E54: 282.25 | F54: 281.65 | G54: 280.50 | H54: 278.75 | I54: 277.60 | J54: 283.40 | K54: 284.55 | L54: 286.30 | M54: 282.8 | N54: 279.9 | O54: 7303600 | P54: -0.24%
A55: 45 | B55: Finance | C55: CHOLAFIN | D55: 2023-06-29 | E55: 1047.55 | F55: 1049.32 | G55: 1042.38 | H55: 1037.22 | I55: 1030.28 | J55: 1054.48 | K55: 1061.42 | L55: 1066.58 | M55: 1056.25 | N55: 1044.15 | O55: 11311250 | P55: 1.61%
A56: 46 | B56: Pharma | C56: CIPLA | D56: 2023-06-29 | E56: 969.85 | F56: 966.62 | G56: 961.23 | H56: 952.62 | I56: 947.23 | J56: 975.23 | K56: 980.62 | L56: 989.23 | M56: 972 | N56: 958 | O56: 9786400 | P56: 0.10%
A57: 47 | B57: Others | C57: COALINDIA | D57: 2023-06-29 | E57: 232.60 | F57: 232.08 | G57: 229.07 | H57: 225.53 | I57: 222.52 | J57: 235.62 | K57: 238.63 | L57: 242.17 | M57: 235.1 | N57: 228.55 | O57: 68674200 | P57: 3.36%
A58: 48 | B58: Technology | C58: COFORGE | D58: 2023-06-29 | E58: 4620.35 | F58: 4619.53 | G58: 4566.52 | H58: 4512.68 | I58: 4459.67 | J58: 4673.37 | K58: 4726.38 | L58: 4780.22 | M58: 4672.55 | N58: 4565.7 | O58: 774150 | P58: 2.14%
A59: 49 | B59: FMCG | C59: COLPAL | D59: 2023-06-29 | E59: 1621.85 | F59: 1622.17 | G59: 1615.58 | H59: 1609.32 | I59: 1602.73 | J59: 1628.43 | K59: 1635.02 | L59: 1641.28 | M59: 1628.75 | N59: 1615.9 | O59: 2671900 | P59: -4.90%
A60: 50 | B60: Others | C60: CONCOR | D60: 2023-06-29 | E60: 672.35 | F60: 670.07 | G60: 666.63 | H60: 660.92 | I60: 657.48 | J60: 675.78 | K60: 679.22 | L60: 684.93 | M60: 673.5 | N60: 664.35 | O60: 5667000 | P60: 3.89%
A61: 51 | B61: Others | C61: COROMANDEL | D61: 2023-06-29 | E61: 957.15 | F61: 957.70 | G61: 951.20 | H61: 945.25 | I61: 938.75 | J61: 963.65 | K61: 970.15 | L61: 976.10 | M61: 964.2 | N61: 951.75 | O61: 1390200 | P61: -1.05%
A62: 52 | B62: Capital_Goods | C62: CROMPTON | D62: 2023-06-29 | E62: 274.30 | F62: 274.82 | G62: 273.13 | H62: 271.97 | I62: 270.28 | J62: 275.98 | K62: 277.67 | L62: 278.83 | M62: 276.5 | N62: 273.65 | O62: 18948600 | P62: -1.00%
A63: 53 | B63: Banking | C63: CUB | D63: 2023-06-29 | E63: 124.45 | F63: 124.80 | G63: 123.80 | H63: 123.15 | I63: 122.15 | J63: 125.45 | K63: 126.45 | L63: 127.10 | M63: 125.8 | N63: 124.15 | O63: 34510000 | P63: 0.77%
A64: 54 | B64: Capital_Goods | C64: CUMMINSIND | D64: 2023-06-29 | E64: 1767.20 | F64: 1763.33 | G64: 1755.17 | H64: 1743.13 | I64: 1734.97 | J64: 1775.37 | K64: 1783.53 | L64: 1795.57 | M64: 1771.5 | N64: 1751.3 | O64: 2907000 | P64: 0.02%
A65: 55 | B65: FMCG | C65: DABUR | D65: 2023-06-29 | E65: 561.60 | F65: 561.20 | G65: 558.65 | H65: 555.70 | I65: 553.15 | J65: 564.15 | K65: 566.70 | L65: 569.65 | M65: 563.75 | N65: 558.25 | O65: 10758750 | P65: 0.49%
A66: 56 | B66: Cement | C66: DALBHARAT | D66: 2023-06-29 | E66: 2148.20 | F66: 2149.92 | G66: 2135.93 | H66: 2123.67 | I66: 2109.68 | J66: 2162.18 | K66: 2176.17 | L66: 2188.43 | M66: 2163.9 | N66: 2137.65 | O66: 1917000 | P66: 0.52%
A67: 57 | B67: Chemical | C67: DEEPAKNTR | D67: 2023-06-29 | E67: 2085.30 | F67: 2082.25 | G67: 2070.70 | H67: 2056.10 | I67: 2044.55 | J67: 2096.85 | K67: 2108.40 | L67: 2123.00 | M67: 2093.8 | N67: 2067.65 | O67: 2001100 | P67: -0.44%
A68: 58 | B68: Others | C68: DELTACORP | D68: 2023-06-29 | E68: 243.50 | F68: 245.00 | G68: 240.40 | H68: 237.30 | I68: 232.70 | J68: 248.10 | K68: 252.70 | L68: 255.80 | M68: 249.6 | N68: 241.9 | O68: 17421600 | P68: 2.44%
A69: 59 | B69: Pharma | C69: DIVISLAB | D69: 2023-06-29 | E69: 3536.10 | F69: 3533.42 | G69: 3508.83 | H69: 3481.57 | I69: 3456.98 | J69: 3560.68 | K69: 3585.27 | L69: 3612.53 | M69: 3558 | N69: 3506.15 | O69: 3198650 | P69: -2.18%
A70: 60 | B70: Others | C70: DIXON | D70: 2023-06-29 | E70: 3953.80 | F70: 3946.23 | G70: 3909.82 | H70: 3865.83 | I70: 3829.42 | J70: 3990.22 | K70: 4026.63 | L70: 4070.62 | M70: 3982.65 | N70: 3902.25 | O70: 1094575 | P70: -10.22%
A71: 61 | B71: Realty | C71: DLF | D71: 2023-06-29 | E71: 491.75 | F71: 488.02 | G71: 483.03 | H71: 474.32 | I71: 469.33 | J71: 496.73 | K71: 501.72 | L71: 510.43 | M71: 493 | N71: 479.3 | O71: 36291750 | P71: 8.21%
A72: 62 | B72: Pharma | C72: DRREDDY | D72: 2023-06-29 | E72: 4647.30 | F72: 4631.18 | G72: 4606.92 | H72: 4566.53 | I72: 4542.27 | J72: 4671.57 | K72: 4695.83 | L72: 4736.22 | M72: 4655.45 | N72: 4590.8 | O72: 3270375 | P72: 1.64%
A73: 63 | B73: Automobile | C73: EICHERMOT | D73: 2023-06-29 | E73: 3701.20 | F73: 3709.73 | G73: 3654.57 | H73: 3607.93 | I73: 3552.77 | J73: 3756.37 | K73: 3811.53 | L73: 3858.17 | M73: 3764.9 | N73: 3663.1 | O73: 3280900 | P73: -0.31%
A74: 64 | B74: Automobile | C74: ESCORTS | D74: 2023-06-29 | E74: 2199.95 | F74: 2205.78 | G74: 2182.27 | H74: 2164.58 | I74: 2141.07 | J74: 2223.47 | K74: 2246.98 | L74: 2264.67 | M74: 2229.3 | N74: 2188.1 | O74: 1219350 | P74: 3.43%
A75: 65 | B75: Automobile | C75: EXIDEIND | D75: 2023-06-29 | E75: 212.95 | F75: 212.75 | G75: 211.60 | H75: 210.25 | I75: 209.10 | J75: 214.10 | K75: 215.25 | L75: 216.60 | M75: 213.9 | N75: 211.4 | O75: 18705600 | P75: -1.85%
A76: 66 | B76: Banking | C76: FEDERALBNK | D76: 2023-06-29 | E76: 126.55 | F76: 126.67 | G76: 125.88 | H76: 125.22 | I76: 124.43 | J76: 127.33 | K76: 128.12 | L76: 128.78 | M76: 127.45 | N76: 126 | O76: 82690000 | P76: 1.88%
A77: 67 | B77: Oil_Gas | C77: GAIL | D77: 2023-06-29 | E77: 105.45 | F77: 105.77 | G77: 104.83 | H77: 104.22 | I77: 103.28 | J77: 106.38 | K77: 107.32 | L77: 107.93 | M77: 106.7 | N77: 105.15 | O77: 67920450 | P77: 2.56%
A78: 68 | B78: Pharma | C78: GLENMARK | D78: 2023-06-29 | E78: 618.95 | F78: 617.10 | G78: 613.90 | H78: 608.85 | I78: 605.65 | J78: 622.15 | K78: 625.35 | L78: 630.40 | M78: 620.3 | N78: 612.05 | O78: 7621200 | P78: 4.33%
A79: 69 | B79: Infrastructure | C79: GMRINFRA | D79: 2023-06-29 | E79: 41.50 | F79: 41.37 | G79: 41.13 | H79: 40.77 | I79: 40.53 | J79: 41.73 | K79: 41.97 | L79: 42.33 | M79: 41.6 | N79: 41 | O79: 144495000 | P79: -2.56%
A80: 70 | B80: Others | C80: GNFC | D80: 2023-06-29 | E80: 589.95 | F80: 588.60 | G80: 585.75 | H80: 581.55 | I80: 578.70 | J80: 592.80 | K80: 595.65 | L80: 599.85 | M80: 591.45 | N80: 584.4 | O80: 6223100 | P80: 1.40%
A81: 71 | B81: FMCG | C81: GODREJCP | D81: 2023-06-29 | E81: 1066.00 | F81: 1063.45 | G81: 1058.90 | H81: 1051.80 | I81: 1047.25 | J81: 1070.55 | K81: 1075.10 | L81: 1082.20 | M81: 1068 | N81: 1056.35 | O81: 6146000 | P81: -0.42%
A82: 72 | B82: Realty | C82: GODREJPROP | D82: 2023-06-29 | E82: 1438.70 | F82: 1432.98 | G82: 1416.22 | H82: 1393.73 | I82: 1376.97 | J82: 1455.47 | K82: 1472.23 | L82: 1494.72 | M82: 1449.75 | N82: 1410.5 | O82: 4119975 | P82: 5.53%
A83: 73 | B83: Pharma | C83: GRANULES | D83: 2023-06-29 | E83: 289.15 | F83: 289.15 | G83: 285.00 | H83: 280.85 | I83: 276.70 | J83: 293.30 | K83: 297.45 | L83: 301.60 | M83: 293.3 | N83: 285 | O83: 7790000 | P83: -3.13%
A84: 74 | B84: Cement | C84: GRASIM | D84: 2023-06-29 | E84: 1720.25 | F84: 1716.42 | G84: 1705.83 | H84: 1691.42 | I84: 1680.83 | J84: 1730.83 | K84: 1741.42 | L84: 1755.83 | M84: 1727 | N84: 1702 | O84: 12350000 | P84: -1.01%
A85: 75 | B85: Oil_Gas | C85: GUJGASLTD | D85: 2023-06-29 | E85: 476.90 | F85: 483.20 | G85: 468.70 | H85: 460.50 | I85: 446.00 | J85: 491.40 | K85: 505.90 | L85: 514.10 | M85: 497.7 | N85: 475 | O85: 5666250 | P85: 4.86%
A86: 76 | B86: Others | C86: HAL | D86: 2023-06-29 | E86: 3183.80 | F86: 3149.07 | G86: 3106.13 | H86: 3028.47 | I86: 2985.53 | J86: 3226.73 | K86: 3269.67 | L86: 3347.33 | M86: 3192 | N86: 3071.4 | O86: 3398700 | P86: -20.21%
A87: 77 | B87: Capital_Goods | C87: HAVELLS | D87: 2023-06-29 | E87: 1341.70 | F87: 1342.75 | G87: 1335.25 | H87: 1328.80 | I87: 1321.30 | J87: 1349.20 | K87: 1356.70 | L87: 1363.15 | M87: 1350.25 | N87: 1336.3 | O87: 5632000 | P87: -1.50%
A88: 78 | B88: Technology | C88: HCLTECH | D88: 2023-06-29 | E88: 1142.20 | F88: 1145.27 | G88: 1135.78 | H88: 1129.37 | I88: 1119.88 | J88: 1151.68 | K88: 1161.17 | L88: 1167.58 | M88: 1154.75 | N88: 1138.85 | O88: 9753100 | P88: -1.28%
A89: 79 | B89: Finance | C89: HDFC | D89: 2023-06-29 | E89: 2666.35 | F89: 2664.87 | G89: 2654.93 | H89: 2643.52 | I89: 2633.58 | J89: 2676.28 | K89: 2686.22 | L89: 2697.63 | M89: 2674.8 | N89: 2653.45 | O89: 25802400 | P89: -1.27%
A90: 80 | B90: Finance | C90: HDFCAMC | D90: 2023-06-29 | E90: 1948.05 | F90: 1943.85 | G90: 1931.20 | H90: 1914.35 | I90: 1901.70 | J90: 1960.70 | K90: 1973.35 | L90: 1990.20 | M90: 1956.5 | N90: 1927 | O90: 2534700 | P90: -0.53%
A91: 81 | B91: Banking | C91: HDFCBANK | D91: 2023-06-29 | E91: 1616.65 | F91: 1617.37 | G91: 1610.58 | H91: 1604.52 | I91: 1597.73 | J91: 1623.43 | K91: 1630.22 | L91: 1636.28 | M91: 1624.15 | N91: 1611.3 | O91: 80953400 | P91: 0.90%
A92: 82 | B92: Finance | C92: HDFCLIFE | D92: 2023-06-29 | E92: 579.00 | F92: 580.47 | G92: 573.18 | H92: 567.37 | I92: 560.08 | J92: 586.28 | K92: 593.57 | L92: 599.38 | M92: 587.75 | N92: 574.65 | O92: 19240100 | P92: 0.86%
A93: 83 | B93: Automobile | C93: HEROMOTOCO | D93: 2023-06-29 | E93: 2906.65 | F93: 2892.12 | G93: 2856.98 | H93: 2807.32 | I93: 2772.18 | J93: 2941.78 | K93: 2976.92 | L93: 3026.58 | M93: 2927.25 | N93: 2842.45 | O93: 3865500 | P93: -5.69%
A94: 84 | B94: Metals | C94: HINDALCO | D94: 2023-06-29 | E94: 424.10 | F94: 421.42 | G94: 417.63 | H94: 411.17 | I94: 407.38 | J94: 427.88 | K94: 431.67 | L94: 438.13 | M94: 425.2 | N94: 414.95 | O94: 33600000 | P94: 5.09%
A95: 85 | B95: Metals | C95: HINDCOPPER | D95: 2023-06-29 | E95: 114.50 | F95: 114.17 | G95: 113.03 | H95: 111.57 | I95: 110.43 | J95: 115.63 | K95: 116.77 | L95: 118.23 | M95: 115.3 | N95: 112.7 | O95: 24382400 | P95: 0.07%
A96: 86 | B96: Oil_Gas | C96: HINDPETRO | D96: 2023-06-29 | E96: 259.65 | F96: 260.28 | G96: 257.87 | H96: 256.08 | I96: 253.67 | J96: 262.07 | K96: 264.48 | L96: 266.27 | M96: 262.7 | N96: 258.5 | O96: 20533500 | P96: -2.91%
A97: 87 | B97: FMCG | C97: HINDUNILVR | D97: 2023-06-29 | E97: 2709.10 | F97: 2707.35 | G97: 2686.75 | H97: 2664.40 | I97: 2643.80 | J97: 2729.70 | K97: 2750.30 | L97: 2772.65 | M97: 2727.95 | N97: 2685 | O97: 9052500 | P97: -3.68%
A98: 88 | B98: Finance | C98: IBULHSGFIN | D98: 2023-06-29 | E98: 114.40 | F98: 114.80 | G98: 112.90 | H98: 111.40 | I98: 109.50 | J98: 116.30 | K98: 118.20 | L98: 119.70 | M98: 116.7 | N98: 113.3 | O98: 53178200 | P98: 1.04%
A99: 89 | B99: Banking | C99: ICICIBANK | D99: 2023-06-29 | E99: 944.70 | F99: 945.70 | G99: 941.05 | H99: 937.40 | I99: 932.75 | J99: 949.35 | K99: 954.00 | L99: 957.65 | M99: 950.35 | N99: 942.05 | O99: 69463800 | P99: 2.14%
A100: 90 | B100: Finance | C100: ICICIGI | D100: 2023-06-29 | E100: 1232.30 | F100: 1229.45 | G100: 1220.90 | H100: 1209.50 | I100: 1200.95 | J100: 1240.85 | K100: 1249.40 | L100: 1260.80 | M100: 1238 | N100: 1218.05 | O100: 4769700 | P100: -1.80%
A101: 91 | B101: Finance | C101: ICICIPRULI | D101: 2023-06-29 | E101: 475.10 | F101: 477.25 | G101: 470.65 | H101: 466.20 | I101: 459.60 | J101: 481.70 | K101: 488.30 | L101: 492.75 | M101: 483.85 | N101: 472.8 | O101: 13932000 | P101: -1.36%
A102: 92 | B102: Telecom | C102: IDEA | D102: 2023-06-29 | E102: 7.20 | F102: 7.20 | G102: 7.15 | H102: 7.10 | I102: 7.05 | J102: 7.25 | K102: 7.30 | L102: 7.35 | M102: 7.25 | N102: 7.15 | O102: 545840000 | P102: 0.47%
A103: 93 | B103: Finance | C103: IDFC | D103: 2023-06-29 | E103: 99.75 | F103: 99.93 | G103: 99.32 | H103: 98.88 | I103: 98.27 | J103: 100.37 | K103: 100.98 | L103: 101.42 | M103: 100.55 | N103: 99.5 | O103: 173520000 | P103: -0.06%
A104: 94 | B104: Banking | C104: IDFCFIRSTB | D104: 2023-06-29 | E104: 72.50 | F104: 72.65 | G104: 72.00 | H104: 71.50 | I104: 70.85 | J104: 73.15 | K104: 73.80 | L104: 74.30 | M104: 73.3 | N104: 72.15 | O104: 220950000 | P104: 1.06%
A105: 95 | B105: Others | C105: IEX | D105: 2023-06-29 | E105: 153.80 | F105: 154.28 | G105: 153.17 | H105: 152.53 | I105: 151.42 | J105: 154.92 | K105: 156.03 | L105: 156.67 | M105: 155.4 | N105: 153.65 | O105: 38928750 | P105: 1.49%
A106: 96 | B106: Oil_Gas | C106: IGL | D106: 2023-06-29 | E106: 462.60 | F106: 466.75 | G106: 456.85 | H106: 451.10 | I106: 441.20 | J106: 472.50 | K106: 482.40 | L106: 488.15 | M106: 476.65 | N106: 461 | O106: 8529125 | P106: 8.90%
A107: 97 | B107: Infrastructure | C107: INDHOTEL | D107: 2023-06-29 | E107: 397.75 | F107: 397.52 | G107: 395.48 | H107: 393.22 | I107: 391.18 | J107: 399.78 | K107: 401.82 | L107: 404.08 | M107: 399.55 | N107: 395.25 | O107: 16516000 | P107: -5.06%
A108: 98 | B108: Cement | C108: INDIACEM | D108: 2023-06-29 | E108: 214.70 | F108: 214.15 | G108: 211.60 | H108: 208.50 | I108: 205.95 | J108: 217.25 | K108: 219.80 | L108: 222.90 | M108: 216.7 | N108: 211.05 | O108: 19789600 | P108: 1.65%
A109: 99 | B109: Others | C109: INDIAMART | D109: 2023-06-29 | E109: 5730.40 | F109: 5691.13 | G109: 5640.27 | H109: 5550.13 | I109: 5499.27 | J109: 5781.27 | K109: 5832.13 | L109: 5922.27 | M109: 5742 | N109: 5601 | O109: 355800 | P109: -0.63%
A110: 100 | B110: Others | C110: INDIGO | D110: 2023-06-29 | E110: 2394.35 | F110: 2382.40 | G110: 2366.80 | H110: 2339.25 | I110: 2323.65 | J110: 2409.95 | K110: 2425.55 | L110: 2453.10 | M110: 2398 | N110: 2354.85 | O110: 3168600 | P110: -2.07%
A111: 101 | B111: Banking | C111: INDUSINDBK | D111: 2023-06-29 | E111: 1294.35 | F111: 1290.02 | G111: 1280.33 | H111: 1266.32 | I111: 1256.63 | J111: 1304.03 | K111: 1313.72 | L111: 1327.73 | M111: 1299.7 | N111: 1276 | O111: 20270550 | P111: 1.85%
A112: 102 | B112: Telecom | C112: INDUSTOWER | D112: 2023-06-29 | E112: 161.15 | F112: 160.38 | G112: 159.32 | H112: 157.48 | I112: 156.42 | J112: 162.22 | K112: 163.28 | L112: 165.12 | M112: 161.45 | N112: 158.55 | O112: 59066400 | P112: -4.31%
A113: 103 | B113: Technology | C113: INFY | D113: 2023-06-29 | E113: 1308.80 | F113: 1310.82 | G113: 1303.83 | H113: 1298.87 | I113: 1291.88 | J113: 1315.78 | K113: 1322.77 | L113: 1327.73 | M113: 1317.8 | N113: 1305.85 | O113: 42268400 | P113: -3.11%
A114: 104 | B114: Technology | C114: INTELLECT | D114: 2023-06-29 | E114: 598.85 | F114: 602.00 | G114: 592.25 | H114: 585.65 | I114: 575.90 | J114: 608.60 | K114: 618.35 | L114: 624.95 | M114: 611.75 | N114: 595.4 | O114: 3204700 | P114: -2.91%
A115: 105 | B115: Oil_Gas | C115: IOC | D115: 2023-06-29 | E115: 90.25 | F115: 90.47 | G115: 89.83 | H115: 89.42 | I115: 88.78 | J115: 90.88 | K115: 91.52 | L115: 91.93 | M115: 91.1 | N115: 90.05 | O115: 59728500 | P115: -0.45%
A116: 106 | B116: Pharma | C116: IPCALAB | D116: 2023-06-29 | E116: 717.30 | F116: 714.57 | G116: 709.38 | H116: 701.47 | I116: 696.28 | J116: 722.48 | K116: 727.67 | L116: 735.58 | M116: 719.75 | N116: 706.65 | O116: 3266250 | P116: -2.71%
A117: 107 | B117: Others | C117: IRCTC | D117: 2023-06-29 | E117: 649.95 | F117: 652.05 | G117: 645.75 | H117: 641.55 | I117: 635.25 | J117: 656.25 | K117: 662.55 | L117: 666.75 | M117: 658.35 | N117: 647.85 | O117: 13707750 | P117: 0.33%
A118: 108 | B118: FMCG | C118: ITC | D118: 2023-06-29 | E118: 446.40 | F118: 445.63 | G118: 443.57 | H118: 440.73 | I118: 438.67 | J118: 448.47 | K118: 450.53 | L118: 453.37 | M118: 447.7 | N118: 442.8 | O118: 72099200 | P118: -2.11%
A119: 109 | B119: Metals | C119: JINDALSTEL | D119: 2023-06-29 | E119: 529.15 | F119: 525.03 | G119: 519.22 | H119: 509.28 | I119: 503.47 | J119: 534.97 | K119: 540.78 | L119: 550.72 | M119: 530.85 | N119: 515.1 | O119: 24477500 | P119: 0.33%
A120: 110 | B120: Cement | C120: JKCEMENT | D120: 2023-06-29 | E120: 3206.40 | F120: 3216.95 | G120: 3186.45 | H120: 3166.50 | I120: 3136.00 | J120: 3236.90 | K120: 3267.40 | L120: 3287.35 | M120: 3247.45 | N120: 3197 | O120: 535000 | P120: 0.09%
A121: 111 | B121: Metals | C121: JSWSTEEL | D121: 2023-06-29 | E121: 712.10 | F121: 708.23 | G121: 702.47 | H121: 692.83 | I121: 687.07 | J121: 717.87 | K121: 723.63 | L121: 733.27 | M121: 714 | N121: 698.6 | O121: 29235600 | P121: 0.00%
A122: 112 | B122: Others | C122: JUBLFOOD | D122: 2023-06-29 | E122: 491.40 | F122: 492.68 | G122: 488.07 | H122: 484.73 | I122: 480.12 | J122: 496.02 | K122: 500.63 | L122: 503.97 | M122: 497.3 | N122: 489.35 | O122: 15650000 | P122: 1.34%
A123: 113 | B123: Banking | C123: KOTAKBANK | D123: 2023-06-29 | E123: 1932.70 | F123: 1933.65 | G123: 1924.60 | H123: 1916.50 | I123: 1907.45 | J123: 1941.75 | K123: 1950.80 | L123: 1958.90 | M123: 1942.7 | N123: 1925.55 | O123: 30925600 | P123: -0.35%
A124: 114 | B124: Finance | C124: L&TFH | D124: 2023-06-29 | E124: 106.25 | F124: 106.38 | G124: 105.52 | H124: 104.78 | I124: 103.92 | J124: 107.12 | K124: 107.98 | L124: 108.72 | M124: 107.25 | N124: 105.65 | O124: 68670180 | P124: 0.90%
A125: 115 | B125: Others | C125: LALPATHLAB | D125: 2023-06-29 | E125: 2026.70 | F125: 2027.77 | G125: 2012.73 | H125: 1998.77 | I125: 1983.73 | J125: 2041.73 | K125: 2056.77 | L125: 2070.73 | M125: 2042.8 | N125: 2013.8 | O125: 720600 | P125: 3.30%
A126: 116 | B126: Pharma | C126: LAURUSLABS | D126: 2023-06-29 | E126: 348.70 | F126: 346.22 | G126: 342.68 | H126: 336.67 | I126: 333.13 | J126: 352.23 | K126: 355.77 | L126: 361.78 | M126: 349.75 | N126: 340.2 | O126: 12869900 | P126: -2.56%
A127: 117 | B127: Finance | C127: LICHSGFIN | D127: 2023-06-29 | E127: 381.95 | F127: 381.00 | G127: 379.40 | H127: 376.85 | I127: 375.25 | J127: 383.55 | K127: 385.15 | L127: 387.70 | M127: 382.6 | N127: 378.45 | O127: 14280000 | P127: -3.20%
A128: 118 | B128: Capital_Goods | C128: LT | D128: 2023-06-29 | E128: 2247.15 | F128: 2240.43 | G128: 2230.87 | H128: 2214.58 | I128: 2205.02 | J128: 2256.72 | K128: 2266.28 | L128: 2282.57 | M128: 2250 | N128: 2224.15 | O128: 13530000 | P128: -1.75%
A129: 119 | B129: Technology | C129: LTIM | D129: 2023-06-29 | E129: 5031.80 | F129: 5026.80 | G129: 5014.20 | H129: 4996.60 | I129: 4984.00 | J129: 5044.40 | K129: 5057.00 | L129: 5074.60 | M129: 5039.4 | N129: 5009.2 | O129: 1630650 | P129: 0.58%
A130: 120 | B130: Technology | C130: LTTS | D130: 2023-06-29 | E130: 3942.40 | F130: 3943.48 | G130: 3920.92 | H130: 3899.43 | I130: 3876.87 | J130: 3964.97 | K130: 3987.53 | L130: 4009.02 | M130: 3966.05 | N130: 3922 | O130: 1089600 | P130: -3.27%
A131: 121 | B131: Pharma | C131: LUPIN | D131: 2023-06-29 | E131: 822.20 | F131: 819.20 | G131: 814.40 | H131: 806.60 | I131: 801.80 | J131: 827.00 | K131: 831.80 | L131: 839.60 | M131: 824 | N131: 811.4 | O131: 6891800 | P131: 1.05%
A132: 122 | B132: Automobile | C132: M&M | D132: 2023-06-29 | E132: 1346.95 | F132: 1340.48 | G132: 1331.67 | H132: 1316.38 | I132: 1307.57 | J132: 1355.77 | K132: 1364.58 | L132: 1379.87 | M132: 1349.3 | N132: 1325.2 | O132: 13135500 | P132: -1.02%
A133: 123 | B133: Finance | C133: M&MFIN | D133: 2023-06-29 | E133: 298.65 | F133: 298.28 | G133: 295.97 | H133: 293.28 | I133: 290.97 | J133: 300.97 | K133: 303.28 | L133: 305.97 | M133: 300.6 | N133: 295.6 | O133: 26656000 | P133: 0.14%
A134: 124 | B134: Finance | C134: MANAPPURAM | D134: 2023-06-29 | E134: 112.90 | F134: 113.72 | G134: 111.58 | H134: 110.27 | I134: 108.13 | J134: 115.03 | K134: 117.17 | L134: 118.48 | M134: 115.85 | N134: 112.4 | O134: 61470000 | P134: 1.96%
A135: 125 | B135: FMCG | C135: MARICO | D135: 2023-06-29 | E135: 553.40 | F135: 555.28 | G135: 550.02 | H135: 546.63 | I135: 541.37 | J135: 558.67 | K135: 563.93 | L135: 567.32 | M135: 560.55 | N135: 551.9 | O135: 9964800 | P135: -2.84%
A136: 126 | B136: Automobile | C136: MARUTI | D136: 2023-06-29 | E136: 9502.90 | F136: 9460.47 | G136: 9393.63 | H136: 9284.37 | I136: 9217.53 | J136: 9569.73 | K136: 9636.57 | L136: 9745.83 | M136: 9527.3 | N136: 9351.2 | O136: 2168200 | P136: 2.74%
A137: 127 | B137: FMCG | C137: MCDOWELL-N | D137: 2023-06-29 | E137: 881.75 | F137: 881.32 | G137: 878.13 | H137: 874.52 | I137: 871.33 | J137: 884.93 | K137: 888.12 | L137: 891.73 | M137: 884.5 | N137: 877.7 | O137: 10366450 | P137: 0.19%
A138: 128 | B138: Others | C138: MCX | D138: 2023-06-29 | E138: 1471.65 | F138: 1471.90 | G138: 1457.75 | H138: 1443.85 | I138: 1429.70 | J138: 1485.80 | K138: 1499.95 | L138: 1513.85 | M138: 1486.05 | N138: 1458 | O138: 1612000 | P138: -3.98%
A139: 129 | B139: Pharma | C139: METROPOLIS | D139: 2023-06-29 | E139: 1319.75 | F139: 1316.87 | G139: 1307.88 | H139: 1296.02 | I139: 1287.03 | J139: 1328.73 | K139: 1337.72 | L139: 1349.58 | M139: 1325.85 | N139: 1305 | O139: 909600 | P139: 0.09%
A140: 130 | B140: Finance | C140: MFSL | D140: 2023-06-29 | E140: 700.30 | F140: 702.05 | G140: 693.10 | H140: 685.90 | I140: 676.95 | J140: 709.25 | K140: 718.20 | L140: 725.40 | M140: 711 | N140: 694.85 | O140: 3864600 | P140: 3.26%
A141: 131 | B141: Oil_Gas | C141: MGL | D141: 2023-06-29 | E141: 1042.60 | F141: 1053.40 | G141: 1024.20 | H141: 1005.80 | I141: 976.60 | J141: 1071.80 | K141: 1101.00 | L141: 1119.40 | M141: 1082.6 | N141: 1035 | O141: 1946400 | P141: -2.37%
A142: 132 | B142: Automobile | C142: MOTHERSON | D142: 2023-06-29 | E142: 80.85 | F142: 80.45 | G142: 79.90 | H142: 78.95 | I142: 78.40 | J142: 81.40 | K142: 81.95 | L142: 82.90 | M142: 81 | N142: 79.5 | O142: 63384800 | P142: 1.05%
A143: 133 | B143: Technology | C143: MPHASIS | D143: 2023-06-29 | E143: 2009.15 | F143: 1999.83 | G143: 1985.32 | H143: 1961.48 | I143: 1946.97 | J143: 2023.67 | K143: 2038.18 | L143: 2062.02 | M143: 2014.35 | N143: 1976 | O143: 2501950 | P143: -4.48%
A144: 134 | B144: Automobile | C144: MRF | D144: 2023-06-29 | E144: 97074.80 | F144: 97505.00 | G144: 96360.10 | H144: 95645.40 | I144: 94500.50 | J144: 98219.70 | K144: 99364.60 | L144: 100079.30 | M144: 98649.9 | N144: 96790.3 | O144: 53930 | P144: -2.18%
A145: 135 | B145: Finance | C145: MUTHOOTFIN | D145: 2023-06-29 | E145: 1130.45 | F145: 1131.95 | G145: 1125.95 | H145: 1121.45 | I145: 1115.45 | J145: 1136.45 | K145: 1142.45 | L145: 1146.95 | M145: 1137.95 | N145: 1127.45 | O145: 5441150 | P145: -0.50%
A146: 136 | B146: Metals | C146: NATIONALUM | D146: 2023-06-29 | E146: 84.55 | F146: 84.17 | G146: 83.58 | H146: 82.62 | I146: 82.03 | J146: 85.13 | K146: 85.72 | L146: 86.68 | M146: 84.75 | N146: 83.2 | O146: 46050000 | P146: 1.64%
A147: 137 | B147: Others | C147: NAUKRI | D147: 2023-06-29 | E147: 4297.20 | F147: 4251.85 | G147: 4166.05 | H147: 4034.90 | I147: 3949.10 | J147: 4383.00 | K147: 4468.80 | L147: 4599.95 | M147: 4337.65 | N147: 4120.7 | O147: 1695725 | P147: 1.00%
A148: 138 | B148: Chemical | C148: NAVINFLUOR | D148: 2023-06-29 | E148: 4651.95 | F148: 4637.32 | G148: 4610.63 | H148: 4569.32 | I148: 4542.63 | J148: 4678.63 | K148: 4705.32 | L148: 4746.63 | M148: 4664 | N148: 4596 | O148: 591750 | P148: 5.85%
A149: 139 | B149: FMCG | C149: NESTLEIND | D149: 2023-06-29 | E149: 22213.15 | F149: 22128.75 | G149: 22001.30 | H149: 21789.45 | I149: 21662.00 | J149: 22340.60 | K149: 22468.05 | L149: 22679.90 | M149: 22256.2 | N149: 21916.9 | O149: 412280 | P149: -2.85%
A150: 140 | B150: Metals | C150: NMDC | D150: 2023-06-29 | E150: 109.85 | F150: 109.22 | G150: 108.28 | H150: 106.72 | I150: 105.78 | J150: 110.78 | K150: 111.72 | L150: 113.28 | M150: 110.15 | N150: 107.65 | O150: 54769500 | P150: 3.70%
A151: 141 | B151: Power | C151: NTPC | D151: 2023-06-29 | E151: 175.55 | F151: 175.50 | G151: 174.60 | H151: 173.65 | I151: 172.75 | J151: 176.45 | K151: 177.35 | L151: 178.30 | M151: 176.4 | N151: 174.55 | O151: 70125900 | P151: 0.17%
A152: 142 | B152: Realty | C152: OBEROIRLTY | D152: 2023-06-29 | E152: 965.00 | F152: 961.10 | G152: 952.50 | H152: 940.00 | I152: 931.40 | J152: 973.60 | K152: 982.20 | L152: 994.70 | M152: 969.7 | N152: 948.6 | O152: 5472600 | P152: -0.43%
A153: 143 | B153: Technology | C153: OFSS | D153: 2023-06-29 | E153: 3639.60 | F153: 3649.50 | G153: 3619.20 | H153: 3598.80 | I153: 3568.50 | J153: 3669.90 | K153: 3700.20 | L153: 3720.60 | M153: 3679.8 | N153: 3629.1 | O153: 202200 | P153: 0.20%
A154: 144 | B154: Oil_Gas | C154: ONGC | D154: 2023-06-29 | E154: 155.50 | F154: 155.28 | G154: 154.67 | H154: 153.83 | I154: 153.22 | J154: 156.12 | K154: 156.73 | L154: 157.57 | M154: 155.9 | N154: 154.45 | O154: 48155800 | P154: -0.97%
A155: 145 | B155: Textile | C155: PAGEIND | D155: 2023-06-29 | E155: 38728.35 | F155: 38892.98 | G155: 38485.37 | H155: 38242.38 | I155: 37834.77 | J155: 39135.97 | K155: 39543.58 | L155: 39786.57 | M155: 39300.6 | N155: 38650 | O155: 171765 | P155: 3.60%
A156: 146 | B156: Pharma | C156: PEL | D156: 2023-06-29 | E156: 792.00 | F156: 793.27 | G156: 786.78 | H156: 781.57 | I156: 775.08 | J156: 798.48 | K156: 804.97 | L156: 810.18 | M156: 799.75 | N156: 788.05 | O156: 8698750 | P156: -0.18%
A157: 147 | B157: Technology | C157: PERSISTENT | D157: 2023-06-29 | E157: 5234.75 | F157: 5232.40 | G157: 5183.45 | H157: 5132.15 | I157: 5083.20 | J157: 5283.70 | K157: 5332.65 | L157: 5383.95 | M157: 5281.35 | N157: 5181.1 | O157: 1280650 | P157: -0.79%
A158: 148 | B158: Oil_Gas | C158: PETRONET | D158: 2023-06-29 | E158: 224.25 | F158: 224.08 | G158: 223.27 | H158: 222.28 | I158: 221.47 | J158: 225.07 | K158: 225.88 | L158: 226.87 | M158: 224.9 | N158: 223.1 | O158: 14970000 | P158: -0.08%
A159: 149 | B159: Finance | C159: PFC | D159: 2023-06-29 | E159: 191.75 | F159: 189.22 | G159: 186.28 | H159: 180.82 | I159: 177.88 | J159: 194.68 | K159: 197.62 | L159: 203.08 | M159: 192.15 | N159: 183.75 | O159: 67735000 | P159: 5.34%
A160: 150 | B160: FMCG | C160: PIDILITIND | D160: 2023-06-29 | E160: 2651.05 | F160: 2654.42 | G160: 2636.88 | H160: 2622.72 | I160: 2605.18 | J160: 2668.58 | K160: 2686.12 | L160: 2700.28 | M160: 2671.95 | N160: 2640.25 | O160: 2214750 | P160: 1.06%
A161: 151 | B161: Chemical | C161: PIIND | D161: 2023-06-29 | E161: 3507.05 | F161: 3524.72 | G161: 3475.43 | H161: 3443.82 | I161: 3394.53 | J161: 3556.33 | K161: 3605.62 | L161: 3637.23 | M161: 3574 | N161: 3493.1 | O161: 1953500 | P161: 2.83%
A162: 152 | B162: Banking | C162: PNB | D162: 2023-06-29 | E162: 52.10 | F162: 51.95 | G162: 51.65 | H162: 51.20 | I162: 50.90 | J162: 52.40 | K162: 52.70 | L162: 53.15 | M162: 52.25 | N162: 51.5 | O162: 252672000 | P162: 0.55%
A163: 153 | B163: Others | C163: POLYCAB | D163: 2023-06-29 | E163: 3561.70 | F163: 3543.42 | G163: 3511.83 | H163: 3461.97 | I163: 3430.38 | J163: 3593.28 | K163: 3624.87 | L163: 3674.73 | M163: 3575 | N163: 3493.55 | O163: 1814100 | P163: 7.33%
A164: 154 | B164: Power | C164: POWERGRID | D164: 2023-06-29 | E164: 235.60 | F164: 235.20 | G164: 234.30 | H164: 233.00 | I164: 232.10 | J164: 236.50 | K164: 237.40 | L164: 238.70 | M164: 236.1 | N164: 233.9 | O164: 31760100 | P164: -2.45%
A165: 155 | B165: Media | C165: PVRINOX | D165: 2023-06-29 | E165: 1410.50 | F165: 1414.82 | G165: 1400.68 | H165: 1390.87 | I165: 1376.73 | J165: 1424.63 | K165: 1438.77 | L165: 1448.58 | M165: 1428.95 | N165: 1405 | O165: 3088723 | P165: 0.41%
A166: 156 | B166: Others | C166: RAIN | D166: 2023-06-29 | E166: 156.45 | F166: 155.87 | G166: 154.08 | H166: 151.72 | I166: 149.93 | J166: 158.23 | K166: 160.02 | L166: 162.38 | M166: 157.65 | N166: 153.5 | O166: 11809000 | P166: 4.01%
A167: 157 | B167: Cement | C167: RAMCOCEM | D167: 2023-06-29 | E167: 916.55 | F167: 914.48 | G167: 910.97 | H167: 905.38 | I167: 901.87 | J167: 920.07 | K167: 923.58 | L167: 929.17 | M167: 918 | N167: 908.9 | O167: 2619700 | P167: 1.68%
A168: 158 | B168: Banking | C168: RBLBANK | D168: 2023-06-29 | E168: 170.45 | F168: 170.35 | G168: 168.50 | H168: 166.55 | I168: 164.70 | J168: 172.30 | K168: 174.15 | L168: 176.10 | M168: 172.2 | N168: 168.4 | O168: 47895000 | P168: 3.23%
A169: 159 | B169: Power | C169: RECLTD | D169: 2023-06-29 | E169: 145.25 | F169: 144.52 | G169: 142.88 | H169: 140.52 | I169: 138.88 | J169: 146.88 | K169: 148.52 | L169: 150.88 | M169: 146.15 | N169: 142.15 | O169: 58312000 | P169: 0.18%
A170: 160 | B170: Oil_Gas | C170: RELIANCE | D170: 2023-06-29 | E170: 2473.95 | F170: 2480.23 | G170: 2461.72 | H170: 2449.48 | I170: 2430.97 | J170: 2492.47 | K170: 2510.98 | L170: 2523.22 | M170: 2498.75 | N170: 2468 | O170: 37023750 | P170: 3.80%
A171: 161 | B171: Metals | C171: SAIL | D171: 2023-06-29 | E171: 84.25 | F171: 83.80 | G171: 83.10 | H171: 81.95 | I171: 81.25 | J171: 84.95 | K171: 85.65 | L171: 86.80 | M171: 84.5 | N171: 82.65 | O171: 93656000 | P171: -5.13%
A172: 162 | B172: Banking | C172: SBICARD | D172: 2023-06-29 | E172: 913.15 | F172: 911.62 | G172: 907.23 | H172: 901.32 | I172: 896.93 | J172: 917.53 | K172: 921.92 | L172: 927.83 | M172: 916 | N172: 905.7 | O172: 8472800 | P172: -2.74%
A173: 163 | B173: Finance | C173: SBILIFE | D173: 2023-06-29 | E173: 1211.55 | F173: 1214.65 | G173: 1205.45 | H173: 1199.35 | I173: 1190.15 | J173: 1220.75 | K173: 1229.95 | L173: 1236.05 | M173: 1223.85 | N173: 1208.55 | O173: 6667500 | P173: 0.71%
A174: 164 | B174: Banking | C174: SBIN | D174: 2023-06-29 | E174: 589.95 | F174: 588.97 | G174: 586.13 | H174: 582.32 | I174: 579.48 | J174: 592.78 | K174: 595.62 | L174: 599.43 | M174: 591.8 | N174: 585.15 | O174: 63193500 | P174: -2.69%
A175: 165 | B175: Cement | C175: SHREECEM | D175: 2023-06-29 | E175: 25223.35 | F175: 25279.05 | G175: 25085.40 | H175: 24947.45 | I175: 24753.80 | J175: 25417.00 | K175: 25610.65 | L175: 25748.60 | M175: 25472.7 | N175: 25141.1 | O175: 257800 | P175: -3.37%
A176: 166 | B176: Capital_Goods | C176: SIEMENS | D176: 2023-06-29 | E176: 3567.20 | F176: 3567.68 | G176: 3550.52 | H176: 3533.83 | I176: 3516.67 | J176: 3584.37 | K176: 3601.53 | L176: 3618.22 | M176: 3584.85 | N176: 3551 | O176: 2358125 | P176: -3.09%
A177: 167 | B177: Textile | C177: SRF | D177: 2023-06-29 | E177: 2529.10 | F177: 2514.03 | G177: 2495.02 | H177: 2460.93 | I177: 2441.92 | J177: 2548.12 | K177: 2567.13 | L177: 2601.22 | M177: 2533.05 | N177: 2479.95 | O177: 2710125 | P177: 1.47%
A178: 168 | B178: Finance | C178: SHRIRAMFIN | D178: 2023-06-29 | E178: 1404.75 | F178: 1404.02 | G178: 1394.03 | H178: 1383.32 | I178: 1373.33 | J178: 1414.73 | K178: 1424.72 | L178: 1435.43 | M178: 1414 | N178: 1393.3 | O178: 4209600 | P178: 2.23%
A179: 169 | B179: Pharma | C179: SUNPHARMA | D179: 2023-06-29 | E179: 1004.10 | F179: 999.20 | G179: 991.20 | H179: 978.30 | I179: 970.30 | J179: 1012.10 | K179: 1020.10 | L179: 1033.00 | M179: 1007.2 | N179: 986.3 | O179: 24015600 | P179: -1.09%
A180: 170 | B180: Media | C180: SUNTV | D180: 2023-06-29 | E180: 458.10 | F180: 457.42 | G180: 454.48 | H180: 450.87 | I180: 447.93 | J180: 461.03 | K180: 463.97 | L180: 467.58 | M180: 460.35 | N180: 453.8 | O180: 8311500 | P180: 0.16%
A181: 171 | B181: Pharma | C181: SYNGENE | D181: 2023-06-29 | E181: 726.10 | F181: 726.52 | G181: 720.58 | H181: 715.07 | I181: 709.13 | J181: 732.03 | K181: 737.97 | L181: 743.48 | M181: 732.45 | N181: 721 | O181: 2625000 | P181: 5.85%
A182: 172 | B182: Chemical | C182: TATACHEM | D182: 2023-06-29 | E182: 952.90 | F182: 953.43 | G182: 948.42 | H182: 943.93 | I182: 938.92 | J182: 957.92 | K182: 962.93 | L182: 967.42 | M182: 958.45 | N182: 948.95 | O182: 6597800 | P182: -0.88%
A183: 173 | B183: Telecom | C183: TATACOMM | D183: 2023-06-29 | E183: 1361.10 | F183: 1347.43 | G183: 1330.47 | H183: 1299.83 | I183: 1282.87 | J183: 1378.07 | K183: 1395.03 | L183: 1425.67 | M183: 1364.4 | N183: 1316.8 | O183: 3023000 | P183: 4.95%
A184: 174 | B184: FMCG | C184: TATACONSUM | D184: 2023-06-29 | E184: 800.75 | F184: 800.68 | G184: 798.17 | H184: 795.58 | I184: 793.07 | J184: 803.27 | K184: 805.78 | L184: 808.37 | M184: 803.2 | N184: 798.1 | O184: 10679400 | P184: -0.79%
A185: 175 | B185: Automobile | C185: TATAMOTORS | D185: 2023-06-29 | E185: 538.85 | F185: 539.22 | G185: 534.63 | H185: 530.42 | I185: 525.83 | J185: 543.43 | K185: 548.02 | L185: 552.23 | M185: 543.8 | N185: 535 | O185: 52968675 | P185: -1.23%
A186: 176 | B186: Power | C186: TATAPOWER | D186: 2023-06-29 | E186: 215.20 | F186: 215.03 | G186: 214.27 | H186: 213.33 | I186: 212.57 | J186: 215.97 | K186: 216.73 | L186: 217.67 | M186: 215.8 | N186: 214.1 | O186: 94213125 | P186: -0.47%
A187: 177 | B187: Metals | C187: TATASTEEL | D187: 2023-06-29 | E187: 108.85 | F187: 108.30 | G187: 107.45 | H187: 106.05 | I187: 105.20 | J187: 109.70 | K187: 110.55 | L187: 111.95 | M187: 109.15 | N187: 106.9 | O187: 222865500 | P187: -3.57%
A188: 178 | B188: Technology | C188: TCS | D188: 2023-06-29 | E188: 3310.00 | F188: 3315.05 | G188: 3294.05 | H188: 3278.10 | I188: 3257.10 | J188: 3331.00 | K188: 3352.00 | L188: 3367.95 | M188: 3336.05 | N188: 3299.1 | O188: 12893300 | P188: -1.30%
A189: 179 | B189: Technology | C189: TECHM | D189: 2023-06-29 | E189: 1130.85 | F189: 1134.58 | G189: 1122.27 | H189: 1113.68 | I189: 1101.37 | J189: 1143.17 | K189: 1155.48 | L189: 1164.07 | M189: 1146.9 | N189: 1126 | O189: 11631600 | P189: 2.61%
A190: 180 | B190: FMCG | C190: TITAN | D190: 2023-06-29 | E190: 2876.80 | F190: 2865.52 | G190: 2849.03 | H190: 2821.27 | I190: 2804.78 | J190: 2893.28 | K190: 2909.77 | L190: 2937.53 | M190: 2882 | N190: 2837.75 | O190: 6293625 | P190: -0.90%
A191: 181 | B191: Pharma | C191: TORNTPHARM | D191: 2023-06-29 | E191: 1783.25 | F191: 1788.73 | G191: 1774.57 | H191: 1765.88 | I191: 1751.72 | J191: 1797.42 | K191: 1811.58 | L191: 1820.27 | M191: 1802.9 | N191: 1780.05 | O191: 1980500 | P191: -0.30%
A192: 182 | B192: Others | C192: TRENT | D192: 2023-06-29 | E192: 1606.75 | F192: 1596.07 | G192: 1582.18 | H192: 1557.62 | I192: 1543.73 | J192: 1620.63 | K192: 1634.52 | L192: 1659.08 | M192: 1609.95 | N192: 1571.5 | O192: 3336800 | P192: 2.49%
A193: 183 | B193: Automobile | C193: TVSMOTOR | D193: 2023-06-29 | E193: 1296.40 | F193: 1290.98 | G193: 1282.12 | H193: 1267.83 | I193: 1258.97 | J193: 1305.27 | K193: 1314.13 | L193: 1328.42 | M193: 1299.85 | N193: 1276.7 | O193: 7915600 | P193: 1.47%
A194: 184 | B194: FMCG | C194: UBL | D194: 2023-06-29 | E194: 1453.85 | F194: 1459.02 | G194: 1445.03 | H194: 1436.22 | I194: 1422.23 | J194: 1467.83 | K194: 1481.82 | L194: 1490.63 | M194: 1473 | N194: 1450.2 | O194: 2086400 | P194: -0.50%
A195: 185 | B195: Cement | C195: ULTRACEMCO | D195: 2023-06-29 | E195: 7908.60 | F195: 7931.60 | G195: 7871.20 | H195: 7833.80 | I195: 7773.40 | J195: 7969.00 | K195: 8029.40 | L195: 8066.80 | M195: 7992 | N195: 7894.2 | O195: 1997300 | P195: 0.99%
A196: 186 | B196: Chemical | C196: UPL | D196: 2023-06-29 | E196: 688.55 | F196: 687.38 | G196: 685.22 | H196: 681.88 | I196: 679.72 | J196: 690.72 | K196: 692.88 | L196: 696.22 | M196: 689.55 | N196: 684.05 | O196: 20203300 | P196: -1.16%
A197: 187 | B197: Metals | C197: VEDL | D197: 2023-06-29 | E197: 279.10 | F197: 277.28 | G197: 274.77 | H197: 270.43 | I197: 267.92 | J197: 281.62 | K197: 284.13 | L197: 288.47 | M197: 279.8 | N197: 272.95 | O197: 54814000 | P197: -4.67%
A198: 188 | B198: Capital_Goods | C198: VOLTAS | D198: 2023-06-29 | E198: 821.45 | F198: 823.75 | G198: 816.40 | H198: 811.35 | I198: 804.00 | J198: 828.80 | K198: 836.15 | L198: 841.20 | M198: 831.1 | N198: 818.7 | O198: 7692600 | P198: 5.92%
A199: 189 | B199: Technology | C199: WIPRO | D199: 2023-06-29 | E199: 403.75 | F199: 405.40 | G199: 401.55 | H199: 399.35 | I199: 395.50 | J199: 407.60 | K199: 411.45 | L199: 413.65 | M199: 409.25 | N199: 403.2 | O199: 27687000 | P199: 0.79%
A200: 190 | B200: Media | C200: ZEEL | D200: 2023-06-29 | E200: 195.00 | F200: 194.95 | G200: 193.65 | H200: 192.30 | I200: 191.00 | J200: 196.30 | K200: 197.60 | L200: 198.95 | M200: 196.25 | N200: 193.6 | O200: 91458000 | P200: -0.30%
A201: 191 | B201: Pharma | C201: ZYDUSLIFE | D201: 2023-06-29 | E201: 521.80 | F201: 520.50 | G201: 517.80 | H201: 513.80 | I201: 511.10 | J201: 524.50 | K201: 527.20 | L201: 531.20 | M201: 523.2 | N201: 516.5 | O201: 6768000 | P201: -0.27%
A202: 192
A203: 193
A204: 194
A221: Pivot Point: This is trigger point for intra day buy/sell based on the price range of the previous day
A222: As per the tool,the trader should take BUY position just above Pivot and keep the stop loss of pivot point and the first target would be Resistance 1(R1)
... 13 more rows

Sheet Cash Intra
M5: Back to Main Page
A6: FOR INTRA DAY TRADING | K6: =Main!B10 -> 2023-06-05
A8: Sr.no | C8: CLOSE RATE | D8: Pivot Point | E8: Supports | H8: Resistances
E9: S1 | F9: S2 | G9: S3 | H9: R1 | I9: R2 | J9: R3 | K9: HIGH | L9: LOW | M9: Total Trade Quanity in Lakhs
A10: 1 | B10: Nifty 50 | C10: 18534.10 | D10: 18528.73 | E10: 18483.77 | F10: 18433.43 | G10: 18388.47 | H10: 18579.07 | I10: 18624.03 | J10: 18674.37 | K10: 18573.70 | L10: 18478.40
A11: 2 | B11: Nifty Bank | C11: 43937.85 | D11: 43946.43 | E11: 43803.97 | F11: 43670.08 | G11: 43527.62 | H11: 44080.32 | I11: 44222.78 | J11: 44356.67 | K11: 44088.90 | L11: 43812.55
A12: 3 | B12: Nifty CPSE | C12: 3074.85 | D12: 3073.50 | E12: 3066.25 | F12: 3057.65 | G12: 3050.40 | H12: 3082.10 | I12: 3089.35 | J12: 3097.95 | K12: 3080.75 | L12: 3064.90
A13: 4 | B13: Nifty Infra | C13: 5472.40 | D13: 5468.77 | E13: 5457.38 | F13: 5442.37 | G13: 5430.98 | H13: 5483.78 | I13: 5495.17 | J13: 5510.18 | K13: 5480.15 | L13: 5453.75
A14: 5 | B14: Nifty IT | C14: 29328.15 | D14: 29383.62 | E14: 29217.08 | F14: 29106.02 | G14: 28939.48 | H14: 29494.68 | I14: 29661.22 | J14: 29772.28 | K14: 29550.15 | L14: 29272.55
A15: 6 | B15: Nifty PSE | C15: 4798.70 | D15: 4797.57 | E15: 4787.18 | F15: 4775.67 | G15: 4765.28 | H15: 4809.08 | I15: 4819.47 | J15: 4830.98 | K15: 4807.95 | L15: 4786.05
A16: 7 | B16: Nifty Midcap 50 | C16: 9629.65 | D16: 9618.15 | E16: 9598.50 | F16: 9567.35 | G16: 9547.70 | H16: 9649.30 | I16: 9668.95 | J16: 9700.10 | K16: 9637.80 | L16: 9587.00
A17: 8 | B17: ABB | C17: 4021.55 | D17: 3996.08 | E17: 3963.97 | F17: 3906.38 | G17: 3874.27 | H17: 4053.67 | I17: 4085.78 | J17: 4143.37 | K17: 4028.2 | L17: 3938.5 | M17: 3.97566
A18: 9 | B18: ACC | C18: 1815.6 | D18: 1808.28 | E18: 1797.57 | F18: 1779.53 | G18: 1768.82 | H18: 1826.32 | I18: 1837.03 | J18: 1855.07 | K18: 1819 | L18: 1790.25 | M18: 8.19953
A19: 10 | B19: AUBANK | C19: 773.45 | D19: 774.12 | E19: 768.28 | F19: 763.12 | G19: 757.28 | H19: 779.28 | I19: 785.12 | J19: 790.28 | K19: 779.95 | L19: 768.95 | M19: 19.27608
A20: 11 | B20: ABBOTINDIA | C20: 21927.25 | D20: 21808.73 | E20: 21621.52 | F20: 21315.78 | G20: 21128.57 | H20: 22114.47 | I20: 22301.68 | J20: 22607.42 | K20: 21995.95 | L20: 21503 | M20: 0.10784
A21: 12 | B21: ADANIENT | C21: 2445.05 | D21: 2469.65 | E21: 2400.40 | F21: 2355.75 | G21: 2286.50 | H21: 2514.30 | I21: 2583.55 | J21: 2628.20 | K21: 2538.9 | L21: 2425 | M21: 55.43791
A22: 13 | B22: ADANIGREEN | C22: 983.55 | D22: 983.82 | E22: 975.63 | F22: 967.72 | G22: 959.53 | H22: 991.73 | I22: 999.92 | J22: 1007.83 | K22: 992 | L22: 975.9 | M22: 37.07803
A23: 14 | B23: ADANIPORTS | C23: 736.6 | D23: 738.20 | E23: 732.40 | F23: 728.20 | G23: 722.40 | H23: 742.40 | I23: 748.20 | J23: 752.40 | K23: 744 | L23: 734 | M23: 55.54473
A24: 15 | B24: ATGL | C24: 674.4 | D24: 681.60 | E24: 660.80 | F24: 647.20 | G24: 626.40 | H24: 695.20 | I24: 716.00 | J24: 729.60 | K24: 702.4 | L24: 668 | M24: 43.73895
A25: 16 | B25: ADANITRANS | C25: 794.65 | D25: 808.20 | E25: 777.70 | F25: 760.75 | G25: 730.25 | H25: 825.15 | I25: 855.65 | J25: 872.60 | K25: 838.7 | L25: 791.25 | M25: 29.33
A26: 17 | B26: AWL | C26: 437.55 | D26: 440.08 | E26: 433.47 | F26: 429.38 | G26: 422.77 | H26: 444.17 | I26: 450.78 | J26: 454.87 | K26: 446.7 | L26: 436 | M26: 12.15288
A27: 18 | B27: ABCAPITAL | C27: 172.55 | D27: 173.73 | E27: 170.87 | F27: 169.18 | G27: 166.32 | H27: 175.42 | I27: 178.28 | J27: 179.97 | K27: 176.6 | L27: 172.05 | M27: 66.48877
A28: 19 | B28: ABFRL | C28: 202.6 | D28: 203.23 | E28: 201.57 | F28: 200.53 | G28: 198.87 | H28: 204.27 | I28: 205.93 | J28: 206.97 | K28: 204.9 | L28: 202.2 | M28: 16.76562
A29: 20 | B29: ALKEM | C29: 3363.75 | D29: 3367.32 | E29: 3337.53 | F29: 3311.32 | G29: 3281.53 | H29: 3393.53 | I29: 3423.32 | J29: 3449.53 | K29: 3397.1 | L29: 3341.1 | M29: 0.63221
A30: 21 | B30: AMBUJACEM | C30: 438.05 | D30: 436.50 | E30: 433.00 | F30: 427.95 | G30: 424.45 | H30: 441.55 | I30: 445.05 | J30: 450.10 | K30: 440 | L30: 431.45 | M30: 54.25758
A31: 22 | B31: APOLLOHOSP | C31: 4967.3 | D31: 4925.17 | E31: 4848.13 | F31: 4728.97 | G31: 4651.93 | H31: 5044.33 | I31: 5121.37 | J31: 5240.53 | K31: 5002.2 | L31: 4806 | M31: 13.26161
A32: 23 | B32: ASHOKLEY | C32: 146.15 | D32: 145.83 | E32: 144.77 | F32: 143.38 | G32: 142.32 | H32: 147.22 | I32: 148.28 | J32: 149.67 | K32: 146.9 | L32: 144.45 | M32: 82.08381
A33: 24 | B33: ASIANPAINT | C33: 3237.25 | D33: 3235.40 | E33: 3220.85 | F33: 3204.45 | G33: 3189.90 | H33: 3251.80 | I33: 3266.35 | J33: 3282.75 | K33: 3249.95 | L33: 3219 | M33: 7.81973
A34: 25 | B34: ASTRAL | C34: 1866.25 | D34: 1854.75 | E34: 1829.50 | F34: 1792.75 | G34: 1767.50 | H34: 1891.50 | I34: 1916.75 | J34: 1953.50 | K34: 1880 | L34: 1818 | M34: 8.5352
A35: 26 | B35: AUROPHARMA | C35: 662.5 | D35: 659.52 | E35: 655.33 | F35: 648.17 | G35: 643.98 | H35: 666.68 | I35: 670.87 | J35: 678.03 | K35: 663.7 | L35: 652.35 | M35: 12.26863
A36: 27 | B36: DMART | C36: 3531.6 | D36: 3530.90 | E36: 3506.80 | F36: 3482.00 | G36: 3457.90 | H36: 3555.70 | I36: 3579.80 | J36: 3604.60 | K36: 3555 | L36: 3506.1 | M36: 3.96067
A37: 28 | B37: AXISBANK | C37: 926.1 | D37: 925.62 | E37: 920.73 | F37: 915.37 | G37: 910.48 | H37: 930.98 | I37: 935.87 | J37: 941.23 | K37: 930.5 | L37: 920.25 | M37: 116.16991
A38: 29 | B38: BAJAJ-AUTO | C38: 4669.1 | D38: 4674.45 | E38: 4641.90 | F38: 4614.70 | G38: 4582.15 | H38: 4701.65 | I38: 4734.20 | J38: 4761.40 | K38: 4707 | L38: 4647.25 | M38: 6.06833
A39: 30 | B39: BAJFINANCE | C39: 7023.9 | D39: 7042.97 | E39: 6985.93 | F39: 6947.97 | G39: 6890.93 | H39: 7080.93 | I39: 7137.97 | J39: 7175.93 | K39: 7100 | L39: 7005 | M39: 6.64209
A40: 31 | B40: BAJAJFINSV | C40: 1457.25 | D40: 1457.52 | E40: 1448.13 | F40: 1439.02 | G40: 1429.63 | H40: 1466.63 | I40: 1476.02 | J40: 1485.13 | K40: 1466.9 | L40: 1448.4 | M40: 11.29346
A41: 32 | B41: BAJAJHLDNG | C41: 6989.9 | D41: 7002.42 | E41: 6919.83 | F41: 6849.77 | G41: 6767.18 | H41: 7072.48 | I41: 7155.07 | J41: 7225.13 | K41: 7085 | L41: 6932.35 | M41: 0.48818
A42: 33 | B42: BALKRISIND | C42: 2286.1 | D42: 2290.15 | E42: 2268.20 | F42: 2250.30 | G42: 2228.35 | H42: 2308.05 | I42: 2330.00 | J42: 2347.90 | K42: 2312.1 | L42: 2272.25 | M42: 1.87306
A43: 34 | B43: BANDHANBNK | C43: 265.4 | D43: 266.83 | E43: 262.92 | F43: 260.43 | G43: 256.52 | H43: 269.32 | I43: 273.23 | J43: 275.72 | K43: 270.75 | L43: 264.35 | M43: 40.45792
A44: 35 | B44: BANKBARODA | C44: 186.75 | D44: 186.32 | E44: 185.53 | F44: 184.32 | G44: 183.53 | H44: 187.53 | I44: 188.32 | J44: 189.53 | K44: 187.1 | L44: 185.1 | M44: 96.43005
A45: 36 | B45: BANKINDIA | C45: 74.6 | D45: 74.77 | E45: 74.13 | F45: 73.67 | G45: 73.03 | H45: 75.23 | I45: 75.87 | J45: 76.33 | K45: 75.4 | L45: 74.3 | M45: 61.58885
A46: 37 | B46: BATAINDIA | C46: 1557.9 | D46: 1565.72 | E46: 1547.68 | F46: 1537.47 | G46: 1519.43 | H46: 1575.93 | I46: 1593.97 | J46: 1604.18 | K46: 1583.75 | L46: 1555.5 | M46: 2.60202
A47: 38 | B47: BERGEPAINT | C47: 652.45 | D47: 651.48 | E47: 646.97 | F47: 641.48 | G47: 636.97 | H47: 656.97 | I47: 661.48 | J47: 666.97 | K47: 656 | L47: 646 | M47: 4.10429
A48: 39 | B48: BEL | C48: 113.3 | D48: 112.93 | E48: 112.37 | F48: 111.43 | G48: 110.87 | H48: 113.87 | I48: 114.43 | J48: 115.37 | K48: 113.5 | L48: 112 | M48: 99.39324
A49: 40 | B49: BHARATFORG | C49: 788.95 | D49: 792.08 | E49: 782.47 | F49: 775.98 | G49: 766.37 | H49: 798.57 | I49: 808.18 | J49: 814.67 | K49: 801.7 | L49: 785.6 | M49: 12.49805
A50: 41 | B50: BHEL | C50: 83.2 | D50: 83.03 | E50: 82.17 | F50: 81.13 | G50: 80.27 | H50: 84.07 | I50: 84.93 | J50: 85.97 | K50: 83.9 | L50: 82 | M50: 183.39998
A51: 42 | B51: BPCL | C51: 360.05 | D51: 361.98 | E51: 357.17 | F51: 354.28 | G51: 349.47 | H51: 364.87 | I51: 369.68 | J51: 372.57 | K51: 366.8 | L51: 359.1 | M51: 34.66237
A52: 43 | B52: BHARTIARTL | C52: 836.5 | D52: 834.25 | E52: 829.20 | F52: 821.90 | G52: 816.85 | H52: 841.55 | I52: 846.60 | J52: 853.90 | K52: 839.3 | L52: 826.95 | M52: 68.34131
A53: 44 | B53: BIOCON | C53: 240.25 | D53: 238.75 | E53: 235.50 | F53: 230.75 | G53: 227.50 | H53: 243.50 | I53: 246.75 | J53: 251.50 | K53: 242 | L53: 234 | M53: 71.95827
A54: 45 | B54: BOSCHLTD | C54: 18751 | D54: 18714.45 | E54: 18641.55 | F54: 18532.10 | G54: 18459.20 | H54: 18823.90 | I54: 18896.80 | J54: 19006.25 | K54: 18787.35 | L54: 18605 | M54: 0.13726
A55: 46 | B55: BRITANNIA | C55: 4654.15 | D55: 4669.40 | E55: 4620.10 | F55: 4586.05 | G55: 4536.75 | H55: 4703.45 | I55: 4752.75 | J55: 4786.80 | K55: 4718.7 | L55: 4635.35 | M55: 3.5955
A56: 47 | B56: CANBK | C56: 313.75 | D56: 313.00 | E56: 310.55 | F56: 307.35 | G56: 304.90 | H56: 316.20 | I56: 318.65 | J56: 321.85 | K56: 315.45 | L56: 309.8 | M56: 63.8017
A57: 48 | B57: CHOLAFIN | C57: 1039.3 | D57: 1041.75 | E57: 1033.85 | F57: 1028.40 | G57: 1020.50 | H57: 1047.20 | I57: 1055.10 | J57: 1060.55 | K57: 1049.65 | L57: 1036.3 | M57: 14.47106
A58: 49 | B58: CIPLA | C58: 965.85 | D58: 963.38 | E58: 957.12 | F58: 948.38 | G58: 942.12 | H58: 972.12 | I58: 978.38 | J58: 987.12 | K58: 969.65 | L58: 954.65 | M58: 10.98485
A59: 50 | B59: CLEAN | C59: 1409.85 | D59: 1412.88 | E59: 1400.77 | F59: 1391.68 | G59: 1379.57 | H59: 1421.97 | I59: 1434.08 | J59: 1443.17 | K59: 1425 | L59: 1403.8 | M59: 0.66936
A60: 51 | B60: COALINDIA | C60: 230.9 | D60: 230.80 | E60: 228.20 | F60: 225.50 | G60: 222.90 | H60: 233.50 | I60: 236.10 | J60: 238.80 | K60: 233.4 | L60: 228.1 | M60: 364.00588
A61: 52 | B61: COFORGE | C61: 4590.8 | D61: 4600.10 | E61: 4550.70 | F61: 4510.60 | G61: 4461.20 | H61: 4640.20 | I61: 4689.60 | J61: 4729.70 | K61: 4649.5 | L61: 4560 | M61: 3.02898
A62: 53 | B62: COLPAL | C62: 1609.55 | D62: 1611.05 | E62: 1602.35 | F62: 1595.15 | G62: 1586.45 | H62: 1618.25 | I62: 1626.95 | J62: 1634.15 | K62: 1619.75 | L62: 1603.85 | M62: 2.13634
A63: 54 | B63: CONCOR | C63: 667.05 | D63: 664.85 | E63: 661.70 | F63: 656.35 | G63: 653.20 | H63: 670.20 | I63: 673.35 | J63: 678.70 | K63: 668 | L63: 659.5 | M63: 8.94538
A64: 55 | B64: COROMANDEL | C64: 953.05 | D64: 952.62 | E64: 944.23 | F64: 935.42 | G64: 927.03 | H64: 961.43 | I64: 969.82 | J64: 978.63 | K64: 961 | L64: 943.8 | M64: 4.19656
A65: 56 | B65: CROMPTON | C65: 272.75 | D65: 273.45 | E65: 271.30 | F65: 269.85 | G65: 267.70 | H65: 274.90 | I65: 277.05 | J65: 278.50 | K65: 275.6 | L65: 272 | M65: 13.89463
A66: 57 | B66: CUMMINSIND | C66: 1753.25 | D66: 1751.57 | E66: 1740.18 | F66: 1727.12 | G66: 1715.73 | H66: 1764.63 | I66: 1776.02 | J66: 1789.08 | K66: 1762.95 | L66: 1738.5 | M66: 5.66594
A67: 58 | B67: DLF | C67: 489.3 | D67: 485.88 | E67: 480.77 | F67: 472.23 | G67: 467.12 | H67: 494.42 | I67: 499.53 | J67: 508.07 | K67: 491 | L67: 477.35 | M67: 100.20905
A68: 59 | B68: DABUR | C68: 557.2 | D68: 557.68 | E68: 555.37 | F68: 553.53 | G68: 551.22 | H68: 559.52 | I68: 561.83 | J68: 563.67 | K68: 560 | L68: 555.85 | M68: 11.66828
A69: 60 | B69: DALBHARAT | C69: 2139.3 | D69: 2137.78 | E69: 2125.57 | F69: 2111.83 | G69: 2099.62 | H69: 2151.52 | I69: 2163.73 | J69: 2177.47 | K69: 2150 | L69: 2124.05 | M69: 0.66591
A70: 61 | B70: DEEPAKNTR | C70: 2086.65 | D70: 2083.22 | E70: 2073.43 | F70: 2060.22 | G70: 2050.43 | H70: 2096.43 | I70: 2106.22 | J70: 2119.43 | K70: 2093 | L70: 2070 | M70: 1.74525
A71: 62 | B71: DELHIVERY | C71: 350.7 | D71: 352.08 | E71: 347.02 | F71: 343.33 | G71: 338.27 | H71: 355.77 | I71: 360.83 | J71: 364.52 | K71: 357.15 | L71: 348.4 | M71: 7.9027
A72: 63 | B72: DIVISLAB | C72: 3511.6 | D72: 3520.35 | E72: 3486.25 | F72: 3460.90 | G72: 3426.80 | H72: 3545.70 | I72: 3579.80 | J72: 3605.15 | K72: 3554.45 | L72: 3495 | M72: 4.77154
A73: 64 | B73: DIXON | C73: 3966.15 | D73: 3952.48 | E73: 3915.97 | F73: 3865.78 | G73: 3829.27 | H73: 4002.67 | I73: 4039.18 | J73: 4089.37 | K73: 3989 | L73: 3902.3 | M73: 9.62382
A74: 65 | B74: LALPATHLAB | C74: 2015.2 | D74: 2015.97 | E74: 1998.48 | F74: 1981.77 | G74: 1964.28 | H74: 2032.68 | I74: 2050.17 | J74: 2066.88 | K74: 2033.45 | L74: 1999.25 | M74: 1.68239
A75: 66 | B75: DRREDDY | C75: 4610.45 | D75: 4598.50 | E75: 4577.00 | F75: 4543.55 | G75: 4522.05 | H75: 4631.95 | I75: 4653.45 | J75: 4686.90 | K75: 4620 | L75: 4565.05 | M75: 5.01913
A76: 67 | B76: EICHERMOT | C76: 3699.4 | D76: 3701.47 | E76: 3654.93 | F76: 3610.47 | G76: 3563.93 | H76: 3745.93 | I76: 3792.47 | J76: 3836.93 | K76: 3748 | L76: 3657 | M76: 9.87424
A77: 68 | B77: EMAMILTD | C77: 396.05 | D77: 394.03 | E77: 390.07 | F77: 384.08 | G77: 380.12 | H77: 400.02 | I77: 403.98 | J77: 409.97 | K77: 398 | L77: 388.05 | M77: 2.68576
A78: 69 | B78: ESCORTS | C78: 2183.4 | D78: 2190.52 | E78: 2167.03 | F78: 2150.67 | G78: 2127.18 | H78: 2206.88 | I78: 2230.37 | J78: 2246.73 | K78: 2214 | L78: 2174.15 | M78: 2.06876
A79: 70 | B79: NYKAA | C79: 135.75 | D79: 132.75 | E79: 128.70 | F79: 121.65 | G79: 117.60 | H79: 139.80 | I79: 143.85 | J79: 150.90 | K79: 136.8 | L79: 125.7 | M79: 420.69132
A80: 71 | B80: FEDERALBNK | C80: 126.15 | D80: 126.30 | E80: 125.65 | F80: 125.15 | G80: 124.50 | H80: 126.80 | I80: 127.45 | J80: 127.95 | K80: 126.95 | L80: 125.8 | M80: 105.42134
A81: 72 | B81: FORTIS | C81: 276.25 | D81: 277.58 | E81: 274.07 | F81: 271.88 | G81: 268.37 | H81: 279.77 | I81: 283.28 | J81: 285.47 | K81: 281.1 | L81: 275.4 | M81: 2.24222
A82: 73 | B82: GAIL | C82: 104.6 | D82: 105.05 | E82: 103.95 | F82: 103.30 | G82: 102.20 | H82: 105.70 | I82: 106.80 | J82: 107.45 | K82: 106.15 | L82: 104.4 | M82: 96.24201
A83: 74 | B83: GLAND | C83: 922.25 | D83: 926.42 | E83: 915.83 | F83: 909.42 | G83: 898.83 | H83: 932.83 | I83: 943.42 | J83: 949.83 | K83: 937 | L83: 920 | M83: 3.3272
A84: 75 | B84: GODREJCP | C84: 1060.95 | D84: 1059.78 | E84: 1055.37 | F84: 1049.78 | G84: 1045.37 | H84: 1065.37 | I84: 1069.78 | J84: 1075.37 | K84: 1064.2 | L84: 1054.2 | M84: 5.29865
A85: 76 | B85: GODREJPROP | C85: 1427.45 | D85: 1425.22 | E85: 1407.73 | F85: 1388.02 | G85: 1370.53 | H85: 1444.93 | I85: 1462.42 | J85: 1482.13 | K85: 1442.7 | L85: 1405.5 | M85: 10.59866
A86: 77 | B86: GRASIM | C86: 1710.55 | D86: 1709.85 | E86: 1700.70 | F86: 1690.85 | G86: 1681.70 | H86: 1719.70 | I86: 1728.85 | J86: 1738.70 | K86: 1719 | L86: 1700 | M86: 5.78853
A87: 78 | B87: GUJGASLTD | C87: 475 | D87: 480.10 | E87: 468.00 | F87: 461.00 | G87: 448.90 | H87: 487.10 | I87: 499.20 | J87: 506.20 | K87: 492.2 | L87: 473.1 | M87: 33.89105
A88: 79 | B88: GSPL | C88: 302.6 | D88: 302.63 | E88: 300.47 | F88: 298.33 | G88: 296.17 | H88: 304.77 | I88: 306.93 | J88: 309.07 | K88: 304.8 | L88: 300.5 | M88: 2.14734
A89: 80 | B89: HCLTECH | C89: 1137.05 | D89: 1139.92 | E89: 1128.73 | F89: 1120.42 | G89: 1109.23 | H89: 1148.23 | I89: 1159.42 | J89: 1167.73 | K89: 1151.1 | L89: 1131.6 | M89: 13.36554
A90: 81 | B90: HDFCAMC | C90: 1964.9 | D90: 1954.32 | E90: 1940.63 | F90: 1916.37 | G90: 1902.68 | H90: 1978.58 | I90: 1992.27 | J90: 2016.53 | K90: 1968 | L90: 1930.05 | M90: 3.2202
A91: 82 | B91: HDFCBANK | C91: 1606.5 | D91: 1607.43 | E91: 1600.07 | F91: 1593.63 | G91: 1586.27 | H91: 1613.87 | I91: 1621.23 | J91: 1627.67 | K91: 1614.8 | L91: 1601 | M91: 89.29855
A92: 83 | B92: HDFCLIFE | C92: 576.4 | D92: 578.45 | E92: 570.90 | F92: 565.40 | G92: 557.85 | H92: 583.95 | I92: 591.50 | J92: 597.00 | K92: 586 | L92: 572.95 | M92: 31.92761
A93: 84 | B93: HAVELLS | C93: 1331.45 | D93: 1333.35 | E93: 1324.35 | F93: 1317.25 | G93: 1308.25 | H93: 1340.45 | I93: 1349.45 | J93: 1356.55 | K93: 1342.35 | L93: 1326.25 | M93: 9.44335
A94: 85 | B94: HEROMOTOCO | C94: 2892.65 | D94: 2880.43 | E94: 2848.22 | F94: 2803.78 | G94: 2771.57 | H94: 2924.87 | I94: 2957.08 | J94: 3001.52 | K94: 2912.65 | L94: 2836 | M94: 20.90599
A95: 86 | B95: HINDALCO | C95: 420.75 | D95: 418.23 | E95: 414.57 | F95: 408.38 | G95: 404.72 | H95: 424.42 | I95: 428.08 | J95: 434.27 | K95: 421.9 | L95: 412.05 | M95: 116.9531
A96: 87 | B96: HAL | C96: 3167.95 | D96: 3142.32 | E96: 3109.73 | F96: 3051.52 | G96: 3018.93 | H96: 3200.53 | I96: 3233.12 | J96: 3291.33 | K96: 3174.9 | L96: 3084.1 | M96: 13.4606
A97: 88 | B97: HINDPETRO | C97: 258.55 | D97: 258.92 | E97: 256.93 | F97: 255.32 | G97: 253.33 | H97: 260.53 | I97: 262.52 | J97: 264.13 | K97: 260.9 | L97: 257.3 | M97: 25.41167
A98: 89 | B98: HINDUNILVR | C98: 2716.7 | D98: 2715.52 | E98: 2692.83 | F98: 2668.97 | G98: 2646.28 | H98: 2739.38 | I98: 2762.07 | J98: 2785.93 | K98: 2738.2 | L98: 2691.65 | M98: 15.0926
A99: 90 | B99: HINDZINC | C99: 306.5 | D99: 306.22 | E99: 305.28 | F99: 304.07 | G99: 303.13 | H99: 307.43 | I99: 308.37 | J99: 309.58 | K99: 307.15 | L99: 305 | M99: 2.73163
A100: 91 | B100: HONAUT | C100: 41247.95 | D100: 40987.15 | E100: 40510.75 | F100: 39773.55 | G100: 39297.15 | H100: 41724.35 | I100: 42200.75 | J100: 42937.95 | K100: 41463.55 | L100: 40249.95 | M100: 0.05627
A101: 92 | B101: HDFC | C101: 2645.9 | D101: 2645.15 | E101: 2635.30 | F101: 2624.70 | G101: 2614.85 | H101: 2655.75 | I101: 2665.60 | J101: 2676.20 | K101: 2655 | L101: 2634.55 | M101: 40.65864
A102: 93 | B102: ICICIBANK | C102: 938.15 | D102: 939.28 | E102: 933.92 | F102: 929.68 | G102: 924.32 | H102: 943.52 | I102: 948.88 | J102: 953.12 | K102: 944.65 | L102: 935.05 | M102: 124.94376
A103: 94 | B103: ICICIGI | C103: 1232.9 | D103: 1228.30 | E103: 1219.85 | F103: 1206.80 | G103: 1198.35 | H103: 1241.35 | I103: 1249.80 | J103: 1262.85 | K103: 1236.75 | L103: 1215.25 | M103: 6.52537
A104: 95 | B104: ICICIPRULI | C104: 471.8 | D104: 474.90 | E104: 466.90 | F104: 462.00 | G104: 454.00 | H104: 479.80 | I104: 487.80 | J104: 492.70 | K104: 482.9 | L104: 470 | M104: 12.83206
A105: 96 | B105: ISEC | C105: 500.35 | D105: 498.18 | E105: 492.37 | F105: 484.38 | G105: 478.57 | H105: 506.17 | I105: 511.98 | J105: 519.97 | K105: 504 | L105: 490.2 | M105: 2.27553
A106: 97 | B106: IDFCFIRSTB | C106: 72.9 | D106: 72.88 | E106: 72.52 | F106: 72.13 | G106: 71.77 | H106: 73.27 | I106: 73.63 | J106: 74.02 | K106: 73.25 | L106: 72.5 | M106: 227.21246
A107: 98 | B107: ITC | C107: 443.4 | D107: 442.70 | E107: 440.50 | F107: 437.60 | G107: 435.40 | H107: 445.60 | I107: 447.80 | J107: 450.70 | K107: 444.9 | L107: 439.8 | M107: 92.03842
A108: 99 | B108: INDIAMART | C108: 5700.8 | D108: 5671.60 | E108: 5629.20 | F108: 5557.60 | G108: 5515.20 | H108: 5743.20 | I108: 5785.60 | J108: 5857.20 | K108: 5714 | L108: 5600 | M108: 0.86326
A109: 100 | B109: INDIANB | C109: 282.25 | D109: 280.48 | E109: 277.77 | F109: 273.28 | G109: 270.57 | H109: 284.97 | I109: 287.68 | J109: 292.17 | K109: 283.2 | L109: 276 | M109: 24.16677
A110: 101 | B110: IEX | C110: 152.75 | D110: 153.22 | E110: 152.08 | F110: 151.42 | G110: 150.28 | H110: 153.88 | I110: 155.02 | J110: 155.68 | K110: 154.35 | L110: 152.55 | M110: 16.74551
A111: 102 | B111: INDHOTEL | C111: 395.65 | D111: 396.47 | E111: 393.63 | F111: 391.62 | G111: 388.78 | H111: 398.48 | I111: 401.32 | J111: 403.33 | K111: 399.3 | L111: 394.45 | M111: 43.98205
A112: 103 | B112: IOC | C112: 89.8 | D112: 90.13 | E112: 89.37 | F112: 88.93 | G112: 88.17 | H112: 90.57 | I112: 91.33 | J112: 91.77 | K112: 90.9 | L112: 89.7 | M112: 71.23634
A113: 104 | B113: IRCTC | C113: 645.45 | D113: 647.92 | E113: 641.08 | F113: 636.72 | G113: 629.88 | H113: 652.28 | I113: 659.12 | J113: 663.48 | K113: 654.75 | L113: 643.55 | M113: 15.37757
A114: 105 | B114: IGL | C114: 459.25 | D114: 463.80 | E114: 453.45 | F114: 447.65 | G114: 437.30 | H114: 469.60 | I114: 479.95 | J114: 485.75 | K114: 474.15 | L114: 458 | M114: 19.64935
A115: 106 | B115: INDUSTOWER | C115: 160.05 | D115: 159.32 | E115: 158.13 | F115: 156.22 | G115: 155.03 | H115: 161.23 | I115: 162.42 | J115: 164.33 | K115: 160.5 | L115: 157.4 | M115: 117.60689
A116: 107 | B116: INDUSINDBK | C116: 1288.2 | D116: 1284.05 | E116: 1275.15 | F116: 1262.10 | G116: 1253.20 | H116: 1297.10 | I116: 1306.00 | J116: 1319.05 | K116: 1292.95 | L116: 1271 | M116: 19.12458
A117: 108 | B117: NAUKRI | C117: 4266.35 | D117: 4225.12 | E117: 4145.23 | F117: 4024.12 | G117: 3944.23 | H117: 4346.23 | I117: 4426.12 | J117: 4547.23 | K117: 4305 | L117: 4104 | M117: 6.69918
A118: 109 | B118: INFY | C118: 1299 | D118: 1302.65 | E118: 1292.40 | F118: 1285.80 | G118: 1275.55 | H118: 1309.25 | I118: 1319.50 | J118: 1326.10 | K118: 1312.9 | L118: 1296.05 | M118: 109.09311
A119: 110 | B119: INDIGO | C119: 2385.75 | D119: 2373.77 | E119: 2357.68 | F119: 2329.62 | G119: 2313.53 | H119: 2401.83 | I119: 2417.92 | J119: 2445.98 | K119: 2389.85 | L119: 2345.7 | M119: 6.85037
A120: 111 | B120: IPCALAB | C120: 714.2 | D120: 711.40 | E120: 705.80 | F120: 697.40 | G120: 691.80 | H120: 719.80 | I120: 725.40 | J120: 733.80 | K120: 717 | L120: 703 | M120: 6.43392
A121: 112 | B121: JSWENERGY | C121: 250.9 | D121: 252.17 | E121: 248.53 | F121: 246.17 | G121: 242.53 | H121: 254.53 | I121: 258.17 | J121: 260.53 | K121: 255.8 | L121: 249.8 | M121: 12.57856
A122: 113 | B122: JSWSTEEL | C122: 706.6 | D122: 703.80 | E122: 698.55 | F122: 690.50 | G122: 685.25 | H122: 711.85 | I122: 717.10 | J122: 725.15 | K122: 709.05 | L122: 695.75 | M122: 34.05152
A123: 114 | B123: JINDALSTEL | C123: 525.35 | D123: 521.40 | E123: 516.20 | F123: 507.05 | G123: 501.85 | H123: 530.55 | I123: 535.75 | J123: 544.90 | K123: 526.6 | L123: 512.25 | M123: 36.52493
A124: 115 | B124: JUBLFOOD | C124: 492.05 | D124: 493.03 | E124: 489.52 | F124: 486.98 | G124: 483.47 | H124: 495.57 | I124: 499.08 | J124: 501.62 | K124: 496.55 | L124: 490.5 | M124: 11.34309
A125: 116 | B125: KOTAKBANK | C125: 1938.75 | D125: 1939.37 | E125: 1927.38 | F125: 1916.02 | G125: 1904.03 | H125: 1950.73 | I125: 1962.72 | J125: 1974.08 | K125: 1951.35 | L125: 1928 | M125: 35.58072
A126: 117 | B126: L&TFH | C126: 105.55 | D126: 105.75 | E126: 104.80 | F126: 104.05 | G126: 103.10 | H126: 106.50 | I126: 107.45 | J126: 108.20 | K126: 106.7 | L126: 105 | M126: 83.50359
A127: 118 | B127: LTTS | C127: 3935.75 | D127: 3932.77 | E127: 3913.43 | F127: 3891.12 | G127: 3871.78 | H127: 3955.08 | I127: 3974.42 | J127: 3996.73 | K127: 3952.1 | L127: 3910.45 | M127: 2.16425
A128: 119 | B128: LICHSGFIN | C128: 379.2 | D128: 378.73 | E128: 377.12 | F128: 375.03 | G128: 373.42 | H128: 380.82 | I128: 382.43 | J128: 384.52 | K128: 380.35 | L128: 376.65 | M128: 7.3089
A129: 120 | B129: LTIM | C129: 4994.15 | D129: 4998.05 | E129: 4976.10 | F129: 4958.05 | G129: 4936.10 | H129: 5016.10 | I129: 5038.05 | J129: 5056.10 | K129: 5020 | L129: 4980 | M129: 2.69222
A130: 121 | B130: LT | C130: 2234.55 | D130: 2228.00 | E130: 2218.70 | F130: 2202.85 | G130: 2193.55 | H130: 2243.85 | I130: 2253.15 | J130: 2269.00 | K130: 2237.3 | L130: 2212.15 | M130: 13.9995
A131: 122 | B131: LAURUSLABS | C131: 346.05 | D131: 343.85 | E131: 340.70 | F131: 335.35 | G131: 332.20 | H131: 349.20 | I131: 352.35 | J131: 357.70 | K131: 347 | L131: 338.5 | M131: 29.32962
A132: 123 | B132: LICI | C132: 596.85 | D132: 598.12 | E132: 594.83 | F132: 592.82 | G132: 589.53 | H132: 600.13 | I132: 603.42 | J132: 605.43 | K132: 601.4 | L132: 596.1 | M132: 5.07824
A133: 124 | B133: LINDEINDIA | C133: 4007.05 | D133: 4010.93 | E133: 3971.07 | F133: 3935.08 | G133: 3895.22 | H133: 4046.92 | I133: 4086.78 | J133: 4122.77 | K133: 4050.8 | L133: 3974.95 | M133: 0.38119
A134: 125 | B134: LUPIN | C134: 816.95 | D134: 814.52 | E134: 808.53 | F134: 800.12 | G134: 794.13 | H134: 822.93 | I134: 828.92 | J134: 837.33 | K134: 820.5 | L134: 806.1 | M134: 5.86226
A135: 126 | B135: MRF | C135: 96368.5 | D135: 96845.35 | E135: 95590.70 | F135: 94812.90 | G135: 93558.25 | H135: 97623.15 | I135: 98877.80 | J135: 99655.60 | K135: 98100 | L135: 96067.55 | M135: 0.07514
A136: 127 | B136: M&MFIN | C136: 298.1 | D136: 297.20 | E136: 295.10 | F136: 292.10 | G136: 290.00 | H136: 300.20 | I136: 302.30 | J136: 305.30 | K136: 299.3 | L136: 294.2 | M136: 56.06661
A137: 128 | B137: M&M | C137: 1341.4 | D137: 1335.57 | E137: 1326.13 | F137: 1310.87 | G137: 1301.43 | H137: 1350.83 | I137: 1360.27 | J137: 1375.53 | K137: 1345 | L137: 1320.3 | M137: 23.13841
A138: 129 | B138: MARICO | C138: 549.45 | D138: 552.12 | E138: 545.53 | F138: 541.62 | G138: 535.03 | H138: 556.03 | I138: 562.62 | J138: 566.53 | K138: 558.7 | L138: 548.2 | M138: 9.59977
A139: 130 | B139: MARUTI | C139: 9485.35 | D139: 9441.07 | E139: 9356.98 | F139: 9228.62 | G139: 9144.53 | H139: 9569.43 | I139: 9653.52 | J139: 9781.88 | K139: 9525.15 | L139: 9312.7 | M139: 4.45105
A140: 131 | B140: MFSL | C140: 697.75 | D140: 699.23 | E140: 689.97 | F140: 682.18 | G140: 672.92 | H140: 707.02 | I140: 716.28 | J140: 724.07 | K140: 708.5 | L140: 691.45 | M140: 2.32627
A141: 132 | B141: MAXHEALTH | C141: 531 | D141: 532.50 | E141: 526.00 | F141: 521.00 | G141: 514.50 | H141: 537.50 | I141: 544.00 | J141: 549.00 | K141: 539 | L141: 527.5 | M141: 39.76828
A142: 133 | B142: MSUMI | C142: 58.35 | D142: 58.33 | E142: 57.57 | F142: 56.78 | G142: 56.02 | H142: 59.12 | I142: 59.88 | J142: 60.67 | K142: 59.1 | L142: 57.55 | M142: 55.47937
A143: 134 | B143: MPHASIS | C143: 2017.65 | D143: 2009.70 | E143: 1986.60 | F143: 1955.55 | G143: 1932.45 | H143: 2040.75 | I143: 2063.85 | J143: 2094.90 | K143: 2032.8 | L143: 1978.65 | M143: 6.50822
A144: 135 | B144: MUTHOOTFIN | C144: 1123.6 | D144: 1124.75 | E144: 1115.85 | F144: 1108.10 | G144: 1099.20 | H144: 1132.50 | I144: 1141.40 | J144: 1149.15 | K144: 1133.65 | L144: 1117 | M144: 2.09361
A145: 136 | B145: NTPC | C145: 174.55 | D145: 174.62 | E145: 173.33 | F145: 172.12 | G145: 170.83 | H145: 175.83 | I145: 177.12 | J145: 178.33 | K145: 175.9 | L145: 173.4 | M145: 72.62018
A146: 137 | B146: NATIONALUM | C146: 83.9 | D146: 83.50 | E146: 82.90 | F146: 81.90 | G146: 81.30 | H146: 84.50 | I146: 85.10 | J146: 86.10 | K146: 84.1 | L146: 82.5 | M146: 102.45661
A147: 138 | B147: NAVINFLUOR | C147: 4615.55 | D147: 4602.07 | E147: 4574.68 | F147: 4533.82 | G147: 4506.43 | H147: 4642.93 | I147: 4670.32 | J147: 4711.18 | K147: 4629.45 | L147: 4561.2 | M147: 0.6245
A148: 139 | B148: NESTLEIND | C148: 22046.45 | D148: 21987.15 | E148: 21879.30 | F148: 21712.15 | G148: 21604.30 | H148: 22154.30 | I148: 22262.15 | J148: 22429.30 | K148: 22095 | L148: 21820 | M148: 0.58248
A149: 140 | B149: NAM-INDIA | C149: 247.05 | D149: 248.18 | E149: 245.37 | F149: 243.68 | G149: 240.87 | H149: 249.87 | I149: 252.68 | J149: 254.37 | K149: 251 | L149: 246.5 | M149: 1.65988
A150: 141 | B150: OBEROIRLTY | C150: 958.85 | D150: 955.17 | E150: 944.93 | F150: 931.02 | G150: 920.78 | H150: 969.08 | I150: 979.32 | J150: 993.23 | K150: 965.4 | L150: 941.25 | M150: 8.35559
A151: 142 | B151: ONGC | C151: 154.7 | D151: 154.37 | E151: 153.73 | F151: 152.77 | G151: 152.13 | H151: 155.33 | I151: 155.97 | J151: 156.93 | K151: 155 | L151: 153.4 | M151: 98.51058
A152: 143 | B152: OIL | C152: 250 | D152: 251.97 | E152: 247.48 | F152: 244.97 | G152: 240.48 | H152: 254.48 | I152: 258.97 | J152: 261.48 | K152: 256.45 | L152: 249.45 | M152: 15.63456
A153: 144 | B153: PAYTM | C153: 717 | D153: 714.10 | E153: 706.45 | F153: 695.90 | G153: 688.25 | H153: 724.65 | I153: 732.30 | J153: 742.85 | K153: 721.75 | L153: 703.55 | M153: 49.06504
A154: 145 | B154: OFSS | C154: 3613.55 | D154: 3624.25 | E154: 3591.50 | F154: 3569.45 | G154: 3536.70 | H154: 3646.30 | I154: 3679.05 | J154: 3701.10 | K154: 3657 | L154: 3602.2 | M154: 0.26268
A155: 146 | B155: POLICYBZR | C155: 594.05 | D155: 594.73 | E155: 587.42 | F155: 580.78 | G155: 573.47 | H155: 601.37 | I155: 608.68 | J155: 615.32 | K155: 602.05 | L155: 588.1 | M155: 9.66304
A156: 147 | B156: PIIND | C156: 3481.7 | D156: 3503.83 | E156: 3445.82 | F156: 3409.93 | G156: 3351.92 | H156: 3539.72 | I156: 3597.73 | J156: 3633.62 | K156: 3561.85 | L156: 3467.95 | M156: 2.92937
A157: 148 | B157: PAGEIND | C157: 38568.35 | D157: 38773.87 | E157: 38255.08 | F157: 37941.82 | G157: 37423.03 | H157: 39087.13 | I157: 39605.92 | J157: 39919.18 | K157: 39292.65 | L157: 38460.6 | M157: 0.33208
A158: 149 | B158: PATANJALI | C158: 1034 | D158: 1031.30 | E158: 1022.75 | F158: 1011.50 | G158: 1002.95 | H158: 1042.55 | I158: 1051.10 | J158: 1062.35 | K158: 1039.85 | L158: 1020.05 | M158: 3.1377
A159: 150 | B159: PERSISTENT | C159: 5226.5 | D159: 5226.82 | E159: 5174.68 | F159: 5122.87 | G159: 5070.73 | H159: 5278.63 | I159: 5330.77 | J159: 5382.58 | K159: 5278.95 | L159: 5175 | M159: 3.8323
A160: 151 | B160: PETRONET | C160: 222.7 | D160: 223.07 | E160: 221.78 | F160: 220.87 | G160: 219.58 | H160: 223.98 | I160: 225.27 | J160: 226.18 | K160: 224.35 | L160: 222.15 | M160: 9.41008
A161: 152 | B161: PIDILITIND | C161: 2632.45 | D161: 2638.98 | E161: 2616.47 | F161: 2600.48 | G161: 2577.97 | H161: 2654.97 | I161: 2677.48 | J161: 2693.47 | K161: 2661.5 | L161: 2623 | M161: 2.63292
A162: 153 | B162: POLYCAB | C162: 3551.75 | D162: 3534.33 | E162: 3504.72 | F162: 3457.68 | G162: 3428.07 | H162: 3581.37 | I162: 3610.98 | J162: 3658.02 | K162: 3563.95 | L162: 3487.3 | M162: 4.2895
A163: 154 | B163: POONAWALLA | C163: 347.05 | D163: 346.82 | E163: 344.43 | F163: 341.82 | G163: 339.43 | H163: 349.43 | I163: 351.82 | J163: 354.43 | K163: 349.2 | L163: 344.2 | M163: 9.79973
A164: 155 | B164: PFC | C164: 190.45 | D164: 188.27 | E164: 185.53 | F164: 180.62 | G164: 177.88 | H164: 193.18 | I164: 195.92 | J164: 200.83 | K164: 191 | L164: 183.35 | M164: 193.69171
A165: 156 | B165: POWERGRID | C165: 234.6 | D165: 234.27 | E165: 233.43 | F165: 232.27 | G165: 231.43 | H165: 235.43 | I165: 236.27 | J165: 237.43 | K165: 235.1 | L165: 233.1 | M165: 49.63336
A166: 157 | B166: PRESTIGE | C166: 490.15 | D166: 491.72 | E166: 486.43 | F166: 482.72 | G166: 477.43 | H166: 495.43 | I166: 500.72 | J166: 504.43 | K166: 497 | L166: 488 | M166: 4.05188
A167: 158 | B167: PGHH | C167: 13701.2 | D167: 13658.78 | E167: 13604.02 | F167: 13506.83 | G167: 13452.07 | H167: 13755.97 | I167: 13810.73 | J167: 13907.92 | K167: 13713.55 | L167: 13561.6 | M167: 0.04097
A168: 159 | B168: PNB | C168: 52.3 | D168: 52.20 | E168: 51.90 | F168: 51.50 | G168: 51.20 | H168: 52.60 | I168: 52.90 | J168: 53.30 | K168: 52.5 | L168: 51.8 | M168: 251.35897
A169: 160 | B169: RECLTD | C169: 144.25 | D169: 143.63 | E169: 142.07 | F169: 139.88 | G169: 138.32 | H169: 145.82 | I169: 147.38 | J169: 149.57 | K169: 145.2 | L169: 141.45 | M169: 110.32233
A170: 161 | B170: RELIANCE | C170: 2455.2 | D170: 2463.02 | E170: 2443.18 | F170: 2431.17 | G170: 2411.33 | H170: 2475.03 | I170: 2494.87 | J170: 2506.88 | K170: 2482.85 | L170: 2451 | M170: 72.91995
A171: 162 | B171: SBICARD | C171: 914.4 | D171: 912.80 | E171: 907.60 | F171: 900.80 | G171: 895.60 | H171: 919.60 | I171: 924.80 | J171: 931.60 | K171: 918 | L171: 906 | M171: 7.21774
A172: 163 | B172: SBILIFE | C172: 1202.5 | D172: 1205.98 | E172: 1195.77 | F172: 1189.03 | G172: 1178.82 | H172: 1212.72 | I172: 1222.93 | J172: 1229.67 | K172: 1216.2 | L172: 1199.25 | M172: 7.37046
A173: 164 | B173: SRF | C173: 2512.6 | D173: 2499.97 | E173: 2482.68 | F173: 2452.77 | G173: 2435.48 | H173: 2529.88 | I173: 2547.17 | J173: 2577.08 | K173: 2517.25 | L173: 2470.05 | M173: 2.78737
A174: 165 | B174: MOTHERSON | C174: 80.35 | D174: 79.97 | E174: 79.43 | F174: 78.52 | G174: 77.98 | H174: 80.88 | I174: 81.42 | J174: 82.33 | K174: 80.5 | L174: 79.05 | M174: 59.50021
A175: 166 | B175: SHREECEM | C175: 25038.4 | D175: 25102.80 | E175: 24905.55 | F175: 24772.70 | G175: 24575.45 | H175: 25235.65 | I175: 25432.90 | J175: 25565.75 | K175: 25300.05 | L175: 24969.95 | M175: 0.43663
A176: 167 | B176: SHRIRAMFIN | C176: 1413.35 | D176: 1413.92 | E176: 1403.63 | F176: 1393.92 | G176: 1383.63 | H176: 1423.63 | I176: 1433.92 | J176: 1443.63 | K176: 1424.2 | L176: 1404.2 | M176: 7.36009
A177: 168 | B177: SIEMENS | C177: 3552.65 | D177: 3549.77 | E177: 3529.58 | F177: 3506.52 | G177: 3486.33 | H177: 3572.83 | I177: 3593.02 | J177: 3616.08 | K177: 3569.95 | L177: 3526.7 | M177: 2.33641
A178: 169 | B178: SONACOMS | C178: 531.75 | D178: 532.30 | E178: 527.55 | F178: 523.35 | G178: 518.60 | H178: 536.50 | I178: 541.25 | J178: 545.45 | K178: 537.05 | L178: 528.1 | M178: 22.207
A179: 170 | B179: SBIN | C179: 587.2 | D179: 586.37 | E179: 583.83 | F179: 580.47 | G179: 577.93 | H179: 589.73 | I179: 592.27 | J179: 595.63 | K179: 588.9 | L179: 583 | M179: 113.23908
A180: 171 | B180: SAIL | C180: 83.6 | D180: 83.35 | E180: 82.80 | F180: 82.00 | G180: 81.45 | H180: 84.15 | I180: 84.70 | J180: 85.50 | K180: 83.9 | L180: 82.55 | M180: 126.65361
A181: 172 | B181: SUNPHARMA | C181: 999.6 | D181: 994.77 | E181: 985.83 | F181: 972.07 | G181: 963.13 | H181: 1008.53 | I181: 1017.47 | J181: 1031.23 | K181: 1003.7 | L181: 981 | M181: 37.34815
A182: 173 | B182: SUNTV | C182: 456 | D182: 455.30 | E182: 452.15 | F182: 448.30 | G182: 445.15 | H182: 459.15 | I182: 462.30 | J182: 466.15 | K182: 458.45 | L182: 451.45 | M182: 6.71483
A183: 174 | B183: SYNGENE | C183: 720.5 | D183: 722.13 | E183: 714.37 | F183: 708.23 | G183: 700.47 | H183: 728.27 | I183: 736.03 | J183: 742.17 | K183: 729.9 | L183: 716 | M183: 5.52699
A184: 175 | B184: TVSMOTOR | C184: 1305.55 | D184: 1299.05 | E184: 1288.10 | F184: 1270.65 | G184: 1259.70 | H184: 1316.50 | I184: 1327.45 | J184: 1344.90 | K184: 1310 | L184: 1281.6 | M184: 19.23687
A185: 176 | B185: TATACHEM | C185: 969.8 | D185: 972.40 | E185: 965.40 | F185: 961.00 | G185: 954.00 | H185: 976.80 | I185: 983.80 | J185: 988.20 | K185: 979.4 | L185: 968 | M185: 5.16827
A186: 177 | B186: TATACOMM | C186: 1367.35 | D186: 1355.48 | E186: 1337.97 | F186: 1308.58 | G186: 1291.07 | H186: 1384.87 | I186: 1402.38 | J186: 1431.77 | K186: 1373 | L186: 1326.1 | M186: 7.7936
A187: 178 | B187: TCS | C187: 3305.6 | D187: 3312.98 | E187: 3290.07 | F187: 3274.53 | G187: 3251.62 | H187: 3328.52 | I187: 3351.43 | J187: 3366.97 | K187: 3335.9 | L187: 3297.45 | M187: 20.30661
A188: 179 | B188: TATACONSUM | C188: 796.05 | D188: 796.30 | E188: 792.75 | F188: 789.45 | G188: 785.90 | H188: 799.60 | I188: 803.15 | J188: 806.45 | K188: 799.85 | L188: 793 | M188: 6.972
A189: 180 | B189: TATAELXSI | C189: 7695.95 | D189: 7701.58 | E189: 7654.37 | F189: 7612.78 | G189: 7565.57 | H189: 7743.17 | I189: 7790.38 | J189: 7831.97 | K189: 7748.8 | L189: 7660 | M189: 2.28387
A190: 181 | B190: TATAMOTORS | C190: 535.9 | D190: 536.63 | E190: 532.02 | F190: 528.13 | G190: 523.52 | H190: 540.52 | I190: 545.13 | J190: 549.02 | K190: 541.25 | L190: 532.75 | M190: 122.94728
A191: 182 | B191: TATAPOWER | C191: 215.65 | D191: 215.85 | E191: 214.80 | F191: 213.95 | G191: 212.90 | H191: 216.70 | I191: 217.75 | J191: 218.60 | K191: 216.9 | L191: 215 | M191: 49.08437
A192: 183 | B192: TATASTEEL | C192: 108 | D192: 107.60 | E192: 106.90 | F192: 105.80 | G192: 105.10 | H192: 108.70 | I192: 109.40 | J192: 110.50 | K192: 108.3 | L192: 106.5 | M192: 466.86933
A193: 184 | B193: TTML | C193: 64.8 | D193: 64.98 | E193: 63.77 | F193: 62.73 | G193: 61.52 | H193: 66.02 | I193: 67.23 | J193: 68.27 | K193: 66.2 | L193: 63.95 | M193: 35.1046
A194: 185 | B194: TECHM | C194: 1123.1 | D194: 1126.63 | E194: 1114.07 | F194: 1105.03 | G194: 1092.47 | H194: 1135.67 | I194: 1148.23 | J194: 1157.27 | K194: 1139.2 | L194: 1117.6 | M194: 19.07589
A195: 186 | B195: RAMCOCEM | C195: 914.95 | D195: 913.00 | E195: 907.00 | F195: 899.05 | G195: 893.05 | H195: 920.95 | I195: 926.95 | J195: 934.90 | K195: 919 | L195: 905.05 | M195: 4.22482
A196: 187 | B196: TITAN | C196: 2861.65 | D196: 2853.03 | E196: 2835.07 | F196: 2808.48 | G196: 2790.52 | H196: 2879.62 | I196: 2897.58 | J196: 2924.17 | K196: 2871 | L196: 2826.45 | M196: 11.16501
A197: 188 | B197: TORNTPHARM | C197: 1777.45 | D197: 1783.78 | E197: 1767.62 | F197: 1757.78 | G197: 1741.62 | H197: 1793.62 | I197: 1809.78 | J197: 1819.62 | K197: 1799.95 | L197: 1773.95 | M197: 6.86203
A198: 189 | B198: TORNTPOWER | C198: 563.8 | D198: 561.62 | E198: 557.73 | F198: 551.67 | G198: 547.78 | H198: 567.68 | I198: 571.57 | J198: 577.63 | K198: 565.5 | L198: 555.55 | M198: 1.37857
A199: 190 | B199: TRENT | C199: 1597.3 | D199: 1586.82 | E199: 1570.43 | F199: 1543.57 | G199: 1527.18 | H199: 1613.68 | I199: 1630.07 | J199: 1656.93 | K199: 1603.2 | L199: 1559.95 | M199: 5.14635
A200: 191 | B200: TRIDENT | C200: 32.3 | D200: 32.40 | E200: 32.15 | F200: 32.00 | G200: 31.75 | H200: 32.55 | I200: 32.80 | J200: 32.95 | K200: 32.65 | L200: 32.25 | M200: 42.70739
A201: 192 | B201: TIINDIA | C201: 2884.2 | D201: 2874.40 | E201: 2849.80 | F201: 2815.40 | G201: 2790.80 | H201: 2908.80 | I201: 2933.40 | J201: 2967.80 | K201: 2899 | L201: 2840 | M201: 1.3649
A202: 193 | B202: UPL | C202: 683.35 | D202: 682.25 | E202: 680.00 | F202: 676.65 | G202: 674.40 | H202: 685.60 | I202: 687.85 | J202: 691.20 | K202: 684.5 | L202: 678.9 | M202: 11.68519
A203: 194 | B203: ULTRACEMCO | C203: 7850.65 | D203: 7874.85 | E203: 7802.25 | F203: 7753.85 | G203: 7681.25 | H203: 7923.25 | I203: 7995.85 | J203: 8044.25 | K203: 7947.45 | L203: 7826.45 | M203: 2.48325
A204: 195 | B204: UNIONBANK | C204: 72.75 | D204: 72.80 | E204: 72.45 | F204: 72.15 | G204: 71.80 | H204: 73.10 | I204: 73.45 | J204: 73.75 | K204: 73.15 | L204: 72.5 | M204: 46.55629
A205: 196 | B205: UBL | C205: 1448.8 | D205: 1455.32 | E205: 1438.53 | F205: 1428.27 | G205: 1411.48 | H205: 1465.58 | I205: 1482.37 | J205: 1492.63 | K205: 1472.1 | L205: 1445.05 | M205: 1.95312
... 29 more rows

Sheet MidCap Intra
L5: Back To Main Page
A6: FOR INTRA DAY TRADING | K6: =Main!B10 -> 2023-06-05
A9: Sr.no | B9: Scrip | C9: CLOSE RATE | D9: Pivot Point | E9: Supports | H9: Resistances
E10: S1 | F10: S2 | G10: S3 | H10: R1 | I10: R2 | J10: R3 | K10: HIGH | L10: LOW | M10: Total Trade Quanity in Lakhs
A11: 1 | B11: 360ONE | C11: 419.1 | D11: 420.40 | E11: 414.80 | F11: 410.50 | G11: 404.90 | H11: 424.70 | I11: 430.30 | J11: 434.60 | K11: 426 | L11: 416.1 | M11: 2.69471
A12: 2 | B12: 3MINDIA | C12: 26253.95 | D12: 26270.43 | E12: 26038.97 | F12: 25823.98 | G12: 25592.52 | H12: 26485.42 | I12: 26716.88 | J12: 26931.87 | K12: 26501.9 | L12: 26055.45 | M12: 0.0507
A13: 3 | B13: ABB | C13: 4021.55 | D13: 3996.08 | E13: 3963.97 | F13: 3906.38 | G13: 3874.27 | H13: 4053.67 | I13: 4085.78 | J13: 4143.37 | K13: 4028.2 | L13: 3938.5 | M13: 3.97566
A14: 4 | B14: ACC | C14: 1815.6 | D14: 1808.28 | E14: 1797.57 | F14: 1779.53 | G14: 1768.82 | H14: 1826.32 | I14: 1837.03 | J14: 1855.07 | K14: 1819 | L14: 1790.25 | M14: 8.19953
A15: 5 | B15: AIAENG | C15: 3058.35 | D15: 3042.23 | E15: 3010.47 | F15: 2962.58 | G15: 2930.82 | H15: 3090.12 | I15: 3121.88 | J15: 3169.77 | K15: 3074 | L15: 2994.35 | M15: 0.85352
A16: 6 | B16: APLAPOLLO | C16: 1135.45 | D16: 1134.28 | E16: 1125.57 | F16: 1115.68 | G16: 1106.97 | H16: 1144.17 | I16: 1152.88 | J16: 1162.77 | K16: 1143 | L16: 1124.4 | M16: 5.39678
A17: 7 | B17: AUBANK | C17: 773.45 | D17: 774.12 | E17: 768.28 | F17: 763.12 | G17: 757.28 | H17: 779.28 | I17: 785.12 | J17: 790.28 | K17: 779.95 | L17: 768.95 | M17: 19.27608
A18: 8 | B18: AARTIDRUGS | C18: 456.35 | D18: 455.27 | E18: 451.63 | F18: 446.92 | G18: 443.28 | H18: 459.98 | I18: 463.62 | J18: 468.33 | K18: 458.9 | L18: 450.55 | M18: 1.20933
A19: 9 | B19: AAVAS | C19: 1394.05 | D19: 1394.00 | E19: 1386.00 | F19: 1377.95 | G19: 1369.95 | H19: 1402.05 | I19: 1410.05 | J19: 1418.10 | K19: 1402 | L19: 1385.95 | M19: 1.87697
A20: 10 | B20: ABBOTINDIA | C20: 21927.25 | D20: 21808.73 | E20: 21621.52 | F20: 21315.78 | G20: 21128.57 | H20: 22114.47 | I20: 22301.68 | J20: 22607.42 | K20: 21995.95 | L20: 21503 | M20: 0.10784
A21: 11 | B21: ADANIENT | C21: 2445.05 | D21: 2469.65 | E21: 2400.40 | F21: 2355.75 | G21: 2286.50 | H21: 2514.30 | I21: 2583.55 | J21: 2628.20 | K21: 2538.9 | L21: 2425 | M21: 55.43791
A22: 12 | B22: ADANIGREEN | C22: 983.55 | D22: 983.82 | E22: 975.63 | F22: 967.72 | G22: 959.53 | H22: 991.73 | I22: 999.92 | J22: 1007.83 | K22: 992 | L22: 975.9 | M22: 37.07803
A23: 13 | B23: ADANIPORTS | C23: 736.6 | D23: 738.20 | E23: 732.40 | F23: 728.20 | G23: 722.40 | H23: 742.40 | I23: 748.20 | J23: 752.40 | K23: 744 | L23: 734 | M23: 55.54473
A24: 14 | B24: ATGL | C24: 674.4 | D24: 681.60 | E24: 660.80 | F24: 647.20 | G24: 626.40 | H24: 695.20 | I24: 716.00 | J24: 729.60 | K24: 702.4 | L24: 668 | M24: 43.73895
A25: 15 | B25: ADANITRANS | C25: 794.65 | D25: 808.20 | E25: 777.70 | F25: 760.75 | G25: 730.25 | H25: 825.15 | I25: 855.65 | J25: 872.60 | K25: 838.7 | L25: 791.25 | M25: 29.33
A26: 16 | B26: AWL | C26: 437.55 | D26: 440.08 | E26: 433.47 | F26: 429.38 | G26: 422.77 | H26: 444.17 | I26: 450.78 | J26: 454.87 | K26: 446.7 | L26: 436 | M26: 12.15288
A27: 17 | B27: ABCAPITAL | C27: 172.55 | D27: 173.73 | E27: 170.87 | F27: 169.18 | G27: 166.32 | H27: 175.42 | I27: 178.28 | J27: 179.97 | K27: 176.6 | L27: 172.05 | M27: 66.48877
A28: 18 | B28: ABFRL | C28: 202.6 | D28: 203.23 | E28: 201.57 | F28: 200.53 | G28: 198.87 | H28: 204.27 | I28: 205.93 | J28: 206.97 | K28: 204.9 | L28: 202.2 | M28: 16.76562
A29: 19 | B29: ABSLAMC | C29: 359.25 | D29: 358.28 | E29: 356.02 | F29: 352.78 | G29: 350.52 | H29: 361.52 | I29: 363.78 | J29: 367.02 | K29: 360.55 | L29: 355.05 | M29: 0.3515
A30: 20 | B30: AEGISCHEM | C30: 333.7 | D30: 337.85 | E30: 325.95 | F30: 318.20 | G30: 306.30 | H30: 345.60 | I30: 357.50 | J30: 365.25 | K30: 349.75 | L30: 330.1 | M30: 12.91793
A31: 21 | B31: AETHER | C31: 917.85 | D31: 917.25 | E31: 907.50 | F31: 897.15 | G31: 887.40 | H31: 927.60 | I31: 937.35 | J31: 947.70 | K31: 927 | L31: 906.9 | M31: 0.36947
A32: 22 | B32: AFFLE | C32: 963.35 | D32: 965.10 | E32: 958.25 | F32: 953.15 | G32: 946.30 | H32: 970.20 | I32: 977.05 | J32: 982.15 | K32: 971.95 | L32: 960 | M32: 1.44475
A33: 23 | B33: AJANTPHARM | C33: 1322.75 | D33: 1318.72 | E33: 1305.83 | F33: 1288.92 | G33: 1276.03 | H33: 1335.63 | I33: 1348.52 | J33: 1365.43 | K33: 1331.6 | L33: 1301.8 | M33: 0.35785
A34: 24 | B34: APLLTD | C34: 553.85 | D34: 555.23 | E34: 549.62 | F34: 545.38 | G34: 539.77 | H34: 559.47 | I34: 565.08 | J34: 569.32 | K34: 560.85 | L34: 551 | M34: 0.54509
A35: 25 | B35: ALKEM | C35: 3363.75 | D35: 3367.32 | E35: 3337.53 | F35: 3311.32 | G35: 3281.53 | H35: 3393.53 | I35: 3423.32 | J35: 3449.53 | K35: 3397.1 | L35: 3341.1 | M35: 0.63221
A36: 26 | B36: ALKYLAMINE | C36: 2441.35 | D36: 2454.20 | E36: 2422.15 | F36: 2402.95 | G36: 2370.90 | H36: 2473.40 | I36: 2505.45 | J36: 2524.65 | K36: 2486.25 | L36: 2435 | M36: 0.23534
A37: 27 | B37: ALOKINDS | C37: 13.8 | D37: 13.88 | E37: 13.47 | F37: 13.13 | G37: 12.72 | H37: 14.22 | I37: 14.63 | J37: 14.97 | K37: 14.3 | L37: 13.55 | M37: 94.68347
A38: 28 | B38: AMARAJABAT | C38: 614.45 | D38: 614.50 | E38: 606.25 | F38: 598.05 | G38: 589.80 | H38: 622.70 | I38: 630.95 | J38: 639.15 | K38: 622.75 | L38: 606.3 | M38: 6.91222
A39: 29 | B39: AMBER | C39: 2182.4 | D39: 2185.78 | E39: 2148.57 | F39: 2114.73 | G39: 2077.52 | H39: 2219.62 | I39: 2256.83 | J39: 2290.67 | K39: 2223 | L39: 2151.95 | M39: 2.2992
A40: 30 | B40: AMBUJACEM | C40: 438.05 | D40: 436.50 | E40: 433.00 | F40: 427.95 | G40: 424.45 | H40: 441.55 | I40: 445.05 | J40: 450.10 | K40: 440 | L40: 431.45 | M40: 54.25758
A41: 31 | B41: ANGELONE | C41: 1313 | D41: 1319.70 | E41: 1290.30 | F41: 1267.60 | G41: 1238.20 | H41: 1342.40 | I41: 1371.80 | J41: 1394.50 | K41: 1349.1 | L41: 1297 | M41: 5.77597
A42: 32 | B42: ANURAS | C42: 1118.35 | D42: 1117.47 | E42: 1110.88 | F42: 1103.42 | G42: 1096.83 | H42: 1124.93 | I42: 1131.52 | J42: 1138.98 | K42: 1124.05 | L42: 1110 | M42: 0.62882
A43: 33 | B43: APOLLOHOSP | C43: 4967.3 | D43: 4925.17 | E43: 4848.13 | F43: 4728.97 | G43: 4651.93 | H43: 5044.33 | I43: 5121.37 | J43: 5240.53 | K43: 5002.2 | L43: 4806 | M43: 13.26161
A44: 34 | B44: APOLLOTYRE | C44: 391.95 | D44: 391.27 | E44: 389.03 | F44: 386.12 | G44: 383.88 | H44: 394.18 | I44: 396.42 | J44: 399.33 | K44: 393.5 | L44: 388.35 | M44: 11.84325
A45: 35 | B45: APTUS | C45: 273.35 | D45: 272.33 | E45: 267.52 | F45: 261.68 | G45: 256.87 | H45: 278.17 | I45: 282.98 | J45: 288.82 | K45: 277.15 | L45: 266.5 | M45: 5.44291
A46: 36 | B46: ASAHIINDIA | C46: 452.8 | D46: 454.22 | E46: 449.43 | F46: 446.07 | G46: 441.28 | H46: 457.58 | I46: 462.37 | J46: 465.73 | K46: 459 | L46: 450.85 | M46: 0.8905
A47: 37 | B47: ASHOKLEY | C47: 146.15 | D47: 145.83 | E47: 144.77 | F47: 143.38 | G47: 142.32 | H47: 147.22 | I47: 148.28 | J47: 149.67 | K47: 146.9 | L47: 144.45 | M47: 82.08381
A48: 38 | B48: ASIANPAINT | C48: 3237.25 | D48: 3235.40 | E48: 3220.85 | F48: 3204.45 | G48: 3189.90 | H48: 3251.80 | I48: 3266.35 | J48: 3282.75 | K48: 3249.95 | L48: 3219 | M48: 7.81973
A49: 39 | B49: ASTERDM | C49: 271.15 | D49: 272.05 | E49: 266.10 | F49: 261.05 | G49: 255.10 | H49: 277.10 | I49: 283.05 | J49: 288.10 | K49: 278 | L49: 267 | M49: 3.47984
A50: 40 | B50: ASTRAZEN | C50: 3502.35 | D50: 3522.45 | E50: 3455.95 | F50: 3409.55 | G50: 3343.05 | H50: 3568.85 | I50: 3635.35 | J50: 3681.75 | K50: 3588.95 | L50: 3476.05 | M50: 0.18605
A51: 41 | B51: ASTRAL | C51: 1866.25 | D51: 1854.75 | E51: 1829.50 | F51: 1792.75 | G51: 1767.50 | H51: 1891.50 | I51: 1916.75 | J51: 1953.50 | K51: 1880 | L51: 1818 | M51: 8.5352
A52: 42 | B52: ATUL | C52: 6758.55 | D52: 6794.02 | E52: 6702.78 | F52: 6647.02 | G52: 6555.78 | H52: 6849.78 | I52: 6941.02 | J52: 6996.78 | K52: 6885.25 | L52: 6738.25 | M52: 0.26943
A53: 43 | B53: AUROPHARMA | C53: 662.5 | D53: 659.52 | E53: 655.33 | F53: 648.17 | G53: 643.98 | H53: 666.68 | I53: 670.87 | J53: 678.03 | K53: 663.7 | L53: 652.35 | M53: 12.26863
A54: 44 | B54: AVANTIFEED | C54: 384.9 | D54: 386.57 | E54: 381.33 | F54: 377.77 | G54: 372.53 | H54: 390.13 | I54: 395.37 | J54: 398.93 | K54: 391.8 | L54: 383 | M54: 1.87922
A55: 45 | B55: DMART | C55: 3531.6 | D55: 3530.90 | E55: 3506.80 | F55: 3482.00 | G55: 3457.90 | H55: 3555.70 | I55: 3579.80 | J55: 3604.60 | K55: 3555 | L55: 3506.1 | M55: 3.96067
A56: 46 | B56: AXISBANK | C56: 926.1 | D56: 925.62 | E56: 920.73 | F56: 915.37 | G56: 910.48 | H56: 930.98 | I56: 935.87 | J56: 941.23 | K56: 930.5 | L56: 920.25 | M56: 116.16991
A57: 47 | B57: BASF | C57: 2541.45 | D57: 2537.92 | E57: 2518.63 | F57: 2495.82 | G57: 2476.53 | H57: 2560.73 | I57: 2580.02 | J57: 2602.83 | K57: 2557.2 | L57: 2515.1 | M57: 0.321
A58: 48 | B58: BEML | C58: 1496.75 | D58: 1501.53 | E58: 1484.27 | F58: 1471.78 | G58: 1454.52 | H58: 1514.02 | I58: 1531.28 | J58: 1543.77 | K58: 1518.8 | L58: 1489.05 | M58: 1.70153
A59: 49 | B59: BSE | C59: 572 | D59: 574.03 | E59: 566.07 | F59: 560.13 | G59: 552.17 | H59: 579.97 | I59: 587.93 | J59: 593.87 | K59: 582 | L59: 568.1 | M59: 9.08812
A60: 50 | B60: BAJAJ-AUTO | C60: 4669.1 | D60: 4674.45 | E60: 4641.90 | F60: 4614.70 | G60: 4582.15 | H60: 4701.65 | I60: 4734.20 | J60: 4761.40 | K60: 4707 | L60: 4647.25 | M60: 6.06833
A61: 51 | B61: BAJAJELEC | C61: 1152.7 | D61: 1154.38 | E61: 1142.97 | F61: 1133.23 | G61: 1121.82 | H61: 1164.12 | I61: 1175.53 | J61: 1185.27 | K61: 1165.8 | L61: 1144.65 | M61: 0.88139
A62: 52 | B62: BAJFINANCE | C62: 7023.9 | D62: 7042.97 | E62: 6985.93 | F62: 6947.97 | G62: 6890.93 | H62: 7080.93 | I62: 7137.97 | J62: 7175.93 | K62: 7100 | L62: 7005 | M62: 6.64209
A63: 53 | B63: BAJAJFINSV | C63: 1457.25 | D63: 1457.52 | E63: 1448.13 | F63: 1439.02 | G63: 1429.63 | H63: 1466.63 | I63: 1476.02 | J63: 1485.13 | K63: 1466.9 | L63: 1448.4 | M63: 11.29346
A64: 54 | B64: BAJAJHLDNG | C64: 6989.9 | D64: 7002.42 | E64: 6919.83 | F64: 6849.77 | G64: 6767.18 | H64: 7072.48 | I64: 7155.07 | J64: 7225.13 | K64: 7085 | L64: 6932.35 | M64: 0.48818
A65: 55 | B65: BALAMINES | C65: 2143.95 | D65: 2143.03 | E65: 2123.07 | F65: 2102.18 | G65: 2082.22 | H65: 2163.92 | I65: 2183.88 | J65: 2204.77 | K65: 2163 | L65: 2122.15 | M65: 0.50656
A66: 56 | B66: BALKRISIND | C66: 2286.1 | D66: 2290.15 | E66: 2268.20 | F66: 2250.30 | G66: 2228.35 | H66: 2308.05 | I66: 2330.00 | J66: 2347.90 | K66: 2312.1 | L66: 2272.25 | M66: 1.87306
A67: 57 | B67: BALRAMCHIN | C67: 392.05 | D67: 392.30 | E67: 390.00 | F67: 387.95 | G67: 385.65 | H67: 394.35 | I67: 396.65 | J67: 398.70 | K67: 394.6 | L67: 390.25 | M67: 3.72534
A68: 58 | B68: BANDHANBNK | C68: 265.4 | D68: 266.83 | E68: 262.92 | F68: 260.43 | G68: 256.52 | H68: 269.32 | I68: 273.23 | J68: 275.72 | K68: 270.75 | L68: 264.35 | M68: 40.45792
A69: 59 | B69: BANKBARODA | C69: 186.75 | D69: 186.32 | E69: 185.53 | F69: 184.32 | G69: 183.53 | H69: 187.53 | I69: 188.32 | J69: 189.53 | K69: 187.1 | L69: 185.1 | M69: 96.43005
A70: 60 | B70: BANKINDIA | C70: 74.6 | D70: 74.77 | E70: 74.13 | F70: 73.67 | G70: 73.03 | H70: 75.23 | I70: 75.87 | J70: 76.33 | K70: 75.4 | L70: 74.3 | M70: 61.58885
A71: 61 | B71: MAHABANK | C71: 31.55 | D71: 31.75 | E71: 31.05 | F71: 30.55 | G71: 29.85 | H71: 32.25 | I71: 32.95 | J71: 33.45 | K71: 32.45 | L71: 31.25 | M71: 378.83095
A72: 62 | B72: BATAINDIA | C72: 1557.9 | D72: 1565.72 | E72: 1547.68 | F72: 1537.47 | G72: 1519.43 | H72: 1575.93 | I72: 1593.97 | J72: 1604.18 | K72: 1583.75 | L72: 1555.5 | M72: 2.60202
A73: 63 | B73: BAYERCROP | C73: 4294.9 | D73: 4304.98 | E73: 4259.97 | F73: 4225.03 | G73: 4180.02 | H73: 4339.92 | I73: 4384.93 | J73: 4419.87 | K73: 4350 | L73: 4270.05 | M73: 0.13233
A74: 64 | B74: BERGEPAINT | C74: 652.45 | D74: 651.48 | E74: 646.97 | F74: 641.48 | G74: 636.97 | H74: 656.97 | I74: 661.48 | J74: 666.97 | K74: 656 | L74: 646 | M74: 4.10429
A75: 65 | B75: BDL | C75: 1121.85 | D75: 1117.45 | E75: 1107.40 | F75: 1092.95 | G75: 1082.90 | H75: 1131.90 | I75: 1141.95 | J75: 1156.40 | K75: 1127.5 | L75: 1103 | M75: 4.33981
A76: 66 | B76: BEL | C76: 113.3 | D76: 112.93 | E76: 112.37 | F76: 111.43 | G76: 110.87 | H76: 113.87 | I76: 114.43 | J76: 115.37 | K76: 113.5 | L76: 112 | M76: 99.39324
A77: 67 | B77: BHARATFORG | C77: 788.95 | D77: 792.08 | E77: 782.47 | F77: 775.98 | G77: 766.37 | H77: 798.57 | I77: 808.18 | J77: 814.67 | K77: 801.7 | L77: 785.6 | M77: 12.49805
A78: 68 | B78: BHEL | C78: 83.2 | D78: 83.03 | E78: 82.17 | F78: 81.13 | G78: 80.27 | H78: 84.07 | I78: 84.93 | J78: 85.97 | K78: 83.9 | L78: 82 | M78: 183.39998
A79: 69 | B79: BPCL | C79: 360.05 | D79: 361.98 | E79: 357.17 | F79: 354.28 | G79: 349.47 | H79: 364.87 | I79: 369.68 | J79: 372.57 | K79: 366.8 | L79: 359.1 | M79: 34.66237
A80: 70 | B80: BHARATRAS | C80: 9815.55 | D80: 9807.52 | E80: 9764.08 | F80: 9712.62 | G80: 9669.18 | H80: 9858.98 | I80: 9902.42 | J80: 9953.88 | K80: 9850.95 | L80: 9756.05 | M80: 0.00872
A81: 71 | B81: BHARTIARTL | C81: 836.5 | D81: 834.25 | E81: 829.20 | F81: 821.90 | G81: 816.85 | H81: 841.55 | I81: 846.60 | J81: 853.90 | K81: 839.3 | L81: 826.95 | M81: 68.34131
A82: 72 | B82: BIOCON | C82: 240.25 | D82: 238.75 | E82: 235.50 | F82: 230.75 | G82: 227.50 | H82: 243.50 | I82: 246.75 | J82: 251.50 | K82: 242 | L82: 234 | M82: 71.95827
A83: 73 | B83: BIRLACORPN | C83: 1161 | D83: 1152.07 | E83: 1134.13 | F83: 1107.27 | G83: 1089.33 | H83: 1178.93 | I83: 1196.87 | J83: 1223.73 | K83: 1170 | L83: 1125.2 | M83: 2.31807
A84: 74 | B84: BSOFT | C84: 347.8 | D84: 349.58 | E84: 343.72 | F84: 339.63 | G84: 333.77 | H84: 353.67 | I84: 359.53 | J84: 363.62 | K84: 355.45 | L84: 345.5 | M84: 41.03271
A85: 75 | B85: BLUEDART | C85: 6244.1 | D85: 6230.52 | E85: 6178.58 | F85: 6113.07 | G85: 6061.13 | H85: 6296.03 | I85: 6347.97 | J85: 6413.48 | K85: 6282.45 | L85: 6165 | M85: 0.11255
A86: 76 | B86: BLUESTARCO | C86: 1441.5 | D86: 1445.03 | E86: 1430.52 | F86: 1419.53 | G86: 1405.02 | H86: 1456.02 | I86: 1470.53 | J86: 1481.52 | K86: 1459.55 | L86: 1434.05 | M86: 1.1563
A87: 77 | B87: BBTC | C87: 948.15 | D87: 952.72 | E87: 940.43 | F87: 932.72 | G87: 920.43 | H87: 960.43 | I87: 972.72 | J87: 980.43 | K87: 965 | L87: 945 | M87: 0.1349
A88: 78 | B88: BORORENEW | C88: 536.05 | D88: 539.33 | E88: 531.72 | F88: 527.38 | G88: 519.77 | H88: 543.67 | I88: 551.28 | J88: 555.62 | K88: 546.95 | L88: 535 | M88: 2.46032
A89: 79 | B89: BOSCHLTD | C89: 18751 | D89: 18714.45 | E89: 18641.55 | F89: 18532.10 | G89: 18459.20 | H89: 18823.90 | I89: 18896.80 | J89: 19006.25 | K89: 18787.35 | L89: 18605 | M89: 0.13726
A90: 80 | B90: BRIGADE | C90: 566.8 | D90: 566.88 | E90: 561.92 | F90: 557.03 | G90: 552.07 | H90: 571.77 | I90: 576.73 | J90: 581.62 | K90: 571.85 | L90: 562 | M90: 0.74484
A91: 81 | B91: BCG | C91: 20.55 | D91: 20.55 | E91: 20.55 | F91: 20.55 | G91: 20.55 | H91: 20.55 | I91: 20.55 | J91: 20.55 | K91: 20.55 | L91: 20.55 | M91: 30.30025
A92: 82 | B92: BRITANNIA | C92: 4654.15 | D92: 4669.40 | E92: 4620.10 | F92: 4586.05 | G92: 4536.75 | H92: 4703.45 | I92: 4752.75 | J92: 4786.80 | K92: 4718.7 | L92: 4635.35 | M92: 3.5955
A93: 83 | B93: MAPMYINDIA | C93: 1100.95 | D93: 1106.25 | E93: 1086.50 | F93: 1072.05 | G93: 1052.30 | H93: 1120.70 | I93: 1140.45 | J93: 1154.90 | K93: 1126 | L93: 1091.8 | M93: 1.12918
A94: 84 | B94: CCL | C94: 636.45 | D94: 637.98 | E94: 631.47 | F94: 626.48 | G94: 619.97 | H94: 642.97 | I94: 649.48 | J94: 654.47 | K94: 644.5 | L94: 633 | M94: 1.64537
A95: 85 | B95: CESC | C95: 69.55 | D95: 69.45 | E95: 69.10 | F95: 68.65 | G95: 68.30 | H95: 69.90 | I95: 70.25 | J95: 70.70 | K95: 69.8 | L95: 69 | M95: 13.54935
A96: 86 | B96: CGPOWER | C96: 380.85 | D96: 383.65 | E96: 375.30 | F96: 369.75 | G96: 361.40 | H96: 389.20 | I96: 397.55 | J96: 403.10 | K96: 392 | L96: 378.1 | M96: 18.58421
A97: 87 | B97: CRISIL | C97: 3771.9 | D97: 3808.97 | E97: 3717.93 | F97: 3663.97 | G97: 3572.93 | H97: 3862.93 | I97: 3953.97 | J97: 4007.93 | K97: 3900 | L97: 3755 | M97: 0.23679
A98: 88 | B98: CSBBANK | C98: 273.15 | D98: 276.53 | E98: 268.07 | F98: 262.98 | G98: 254.52 | H98: 281.62 | I98: 290.08 | J98: 295.17 | K98: 285 | L98: 271.45 | M98: 2.73475
A99: 89 | B99: CAMPUS | C99: 315.45 | D99: 314.93 | E99: 311.67 | F99: 307.88 | G99: 304.62 | H99: 318.72 | I99: 321.98 | J99: 325.77 | K99: 318.2 | L99: 311.15 | M99: 12.67681
A100: 90 | B100: CANFINHOME | C100: 725.9 | D100: 723.42 | E100: 717.78 | F100: 709.67 | G100: 704.03 | H100: 731.53 | I100: 737.17 | J100: 745.28 | K100: 729.05 | L100: 715.3 | M100: 7.20903
A101: 91 | B101: CANBK | C101: 313.75 | D101: 313.00 | E101: 310.55 | F101: 307.35 | G101: 304.90 | H101: 316.20 | I101: 318.65 | J101: 321.85 | K101: 315.45 | L101: 309.8 | M101: 63.8017
A102: 92 | B102: CAPLIPOINT | C102: 761.5 | D102: 761.88 | E102: 755.37 | F102: 749.23 | G102: 742.72 | H102: 768.02 | I102: 774.53 | J102: 780.67 | K102: 768.4 | L102: 755.75 | M102: 1.32048
A103: 93 | B103: CGCL | C103: 707.95 | D103: 709.35 | E103: 703.80 | F103: 699.65 | G103: 694.10 | H103: 713.50 | I103: 719.05 | J103: 723.20 | K103: 714.9 | L103: 705.2 | M103: 1.81171
A104: 94 | B104: CARBORUNIV | C104: 1164.25 | D104: 1164.07 | E104: 1156.43 | F104: 1148.62 | G104: 1140.98 | H104: 1171.88 | I104: 1179.52 | J104: 1187.33 | K104: 1171.7 | L104: 1156.25 | M104: 3.40729
A105: 95 | B105: CASTROLIND | C105: 114.7 | D105: 114.43 | E105: 113.87 | F105: 113.03 | G105: 112.47 | H105: 115.27 | I105: 115.83 | J105: 116.67 | K105: 115 | L105: 113.6 | M105: 7.33891
A106: 96 | B106: CEATLTD | C106: 1928.9 | D106: 1928.25 | E106: 1912.80 | F106: 1896.70 | G106: 1881.25 | H106: 1944.35 | I106: 1959.80 | J106: 1975.90 | K106: 1943.7 | L106: 1912.15 | M106: 1.73158
A107: 97 | B107: CENTRALBK | C107: 27.65 | D107: 27.82 | E107: 27.38 | F107: 27.12 | G107: 26.68 | H107: 28.08 | I107: 28.52 | J107: 28.78 | K107: 28.25 | L107: 27.55 | M107: 97.55263
A108: 98 | B108: CDSL | C108: 1067.9 | D108: 1074.13 | E108: 1054.77 | F108: 1041.63 | G108: 1022.27 | H108: 1087.27 | I108: 1106.63 | J108: 1119.77 | K108: 1093.5 | L108: 1061 | M108: 7.37146
A109: 99 | B109: CENTURYPLY | C109: 574.9 | D109: 572.13 | E109: 567.82 | F109: 560.73 | G109: 556.42 | H109: 579.22 | I109: 583.53 | J109: 590.62 | K109: 576.45 | L109: 565.05 | M109: 2.83891
A110: 100 | B110: CENTURYTEX | C110: 790.85 | D110: 793.43 | E110: 783.72 | F110: 776.58 | G110: 766.87 | H110: 800.57 | I110: 810.28 | J110: 817.42 | K110: 803.15 | L110: 786.3 | M110: 1.22443
A111: 101 | B111: CERA | C111: 7591.2 | D111: 7608.68 | E111: 7522.52 | F111: 7453.83 | G111: 7367.67 | H111: 7677.37 | I111: 7763.53 | J111: 7832.22 | K111: 7694.85 | L111: 7540 | M111: 0.10873
A112: 102 | B112: CHALET | C112: 436 | D112: 436.28 | E112: 431.37 | F112: 426.73 | G112: 421.82 | H112: 440.92 | I112: 445.83 | J112: 450.47 | K112: 441.2 | L112: 431.65 | M112: 1.22323
A113: 103 | B113: CHAMBLFERT | C113: 280.75 | D113: 281.02 | E113: 279.73 | F113: 278.72 | G113: 277.43 | H113: 282.03 | I113: 283.32 | J113: 284.33 | K113: 282.3 | L113: 280 | M113: 4.32218
A114: 104 | B114: CHEMPLASTS | C114: 449.55 | D114: 448.60 | E114: 444.50 | F114: 439.45 | G114: 435.35 | H114: 453.65 | I114: 457.75 | J114: 462.80 | K114: 452.7 | L114: 443.55 | M114: 7.82987
A115: 105 | B115: CHOLAHLDNG | C115: 811.2 | D115: 812.78 | E115: 800.42 | F115: 789.63 | G115: 777.27 | H115: 823.57 | I115: 835.93 | J115: 846.72 | K115: 825.15 | L115: 802 | M115: 2.86766
A116: 106 | B116: CHOLAFIN | C116: 1039.3 | D116: 1041.75 | E116: 1033.85 | F116: 1028.40 | G116: 1020.50 | H116: 1047.20 | I116: 1055.10 | J116: 1060.55 | K116: 1049.65 | L116: 1036.3 | M116: 14.47106
A117: 107 | B117: CIPLA | C117: 965.85 | D117: 963.38 | E117: 957.12 | F117: 948.38 | G117: 942.12 | H117: 972.12 | I117: 978.38 | J117: 987.12 | K117: 969.65 | L117: 954.65 | M117: 10.98485
A118: 108 | B118: CUB | C118: 123.45 | D118: 123.88 | E118: 122.72 | F118: 121.98 | G118: 120.82 | H118: 124.62 | I118: 125.78 | J118: 126.52 | K118: 125.05 | L118: 123.15 | M118: 56.99009
A119: 109 | B119: CLEAN | C119: 1409.85 | D119: 1412.88 | E119: 1400.77 | F119: 1391.68 | G119: 1379.57 | H119: 1421.97 | I119: 1434.08 | J119: 1443.17 | K119: 1425 | L119: 1403.8 | M119: 0.66936
A120: 110 | B120: COALINDIA | C120: 230.9 | D120: 230.80 | E120: 228.20 | F120: 225.50 | G120: 222.90 | H120: 233.50 | I120: 236.10 | J120: 238.80 | K120: 233.4 | L120: 228.1 | M120: 364.00588
A121: 111 | B121: COCHINSHIP | C121: 501.3 | D121: 501.10 | E121: 494.20 | F121: 487.10 | G121: 480.20 | H121: 508.20 | I121: 515.10 | J121: 522.20 | K121: 508 | L121: 494 | M121: 7.3792
A122: 112 | B122: COFORGE | C122: 4590.8 | D122: 4600.10 | E122: 4550.70 | F122: 4510.60 | G122: 4461.20 | H122: 4640.20 | I122: 4689.60 | J122: 4729.70 | K122: 4649.5 | L122: 4560 | M122: 3.02898
A123: 113 | B123: COLPAL | C123: 1609.55 | D123: 1611.05 | E123: 1602.35 | F123: 1595.15 | G123: 1586.45 | H123: 1618.25 | I123: 1626.95 | J123: 1634.15 | K123: 1619.75 | L123: 1603.85 | M123: 2.13634
A124: 114 | B124: CAMS | C124: 2197.15 | D124: 2213.27 | E124: 2176.63 | F124: 2156.12 | G124: 2119.48 | H124: 2233.78 | I124: 2270.42 | J124: 2290.93 | K124: 2249.9 | L124: 2192.75 | M124: 0.77627
A125: 115 | B125: CONCOR | C125: 667.05 | D125: 664.85 | E125: 661.70 | F125: 656.35 | G125: 653.20 | H125: 670.20 | I125: 673.35 | J125: 678.70 | K125: 668 | L125: 659.5 | M125: 8.94538
A126: 116 | B126: COROMANDEL | C126: 953.05 | D126: 952.62 | E126: 944.23 | F126: 935.42 | G126: 927.03 | H126: 961.43 | I126: 969.82 | J126: 978.63 | K126: 961 | L126: 943.8 | M126: 4.19656
A127: 117 | B127: CREDITACC | C127: 1224.4 | D127: 1233.50 | E127: 1202.00 | F127: 1179.60 | G127: 1148.10 | H127: 1255.90 | I127: 1287.40 | J127: 1309.80 | K127: 1265 | L127: 1211.1 | M127: 1.20554
A128: 118 | B128: CROMPTON | C128: 272.75 | D128: 273.45 | E128: 271.30 | F128: 269.85 | G128: 267.70 | H128: 274.90 | I128: 277.05 | J128: 278.50 | K128: 275.6 | L128: 272 | M128: 13.89463
A129: 119 | B129: CUMMINSIND | C129: 1753.25 | D129: 1751.57 | E129: 1740.18 | F129: 1727.12 | G129: 1715.73 | H129: 1764.63 | I129: 1776.02 | J129: 1789.08 | K129: 1762.95 | L129: 1738.5 | M129: 5.66594
A130: 120 | B130: CYIENT | C130: 1459 | D130: 1458.25 | E130: 1391.75 | F130: 1324.50 | G130: 1258.00 | H130: 1525.50 | I130: 1592.00 | J130: 1659.25 | K130: 1524.75 | L130: 1391 | M130: 56.18427
A131: 121 | B131: DCMSHRIRAM | C131: 854.3 | D131: 855.70 | E131: 846.60 | F131: 838.90 | G131: 829.80 | H131: 863.40 | I131: 872.50 | J131: 880.20 | K131: 864.8 | L131: 848 | M131: 0.48207
A132: 122 | B132: DLF | C132: 489.3 | D132: 485.88 | E132: 480.77 | F132: 472.23 | G132: 467.12 | H132: 494.42 | I132: 499.53 | J132: 508.07 | K132: 491 | L132: 477.35 | M132: 100.20905
A133: 123 | B133: DABUR | C133: 557.2 | D133: 557.68 | E133: 555.37 | F133: 553.53 | G133: 551.22 | H133: 559.52 | I133: 561.83 | J133: 563.67 | K133: 560 | L133: 555.85 | M133: 11.66828
A134: 124 | B134: DALBHARAT | C134: 2139.3 | D134: 2137.78 | E134: 2125.57 | F134: 2111.83 | G134: 2099.62 | H134: 2151.52 | I134: 2163.73 | J134: 2177.47 | K134: 2150 | L134: 2124.05 | M134: 0.66591
A135: 125 | B135: DEEPAKFERT | C135: 556.3 | D135: 561.27 | E135: 549.08 | F135: 541.87 | G135: 529.68 | H135: 568.48 | I135: 580.67 | J135: 587.88 | K135: 573.45 | L135: 554.05 | M135: 13.31454
A136: 126 | B136: DEEPAKNTR | C136: 2086.65 | D136: 2083.22 | E136: 2073.43 | F136: 2060.22 | G136: 2050.43 | H136: 2096.43 | I136: 2106.22 | J136: 2119.43 | K136: 2093 | L136: 2070 | M136: 1.74525
A137: 127 | B137: DELHIVERY | C137: 350.7 | D137: 352.08 | E137: 347.02 | F137: 343.33 | G137: 338.27 | H137: 355.77 | I137: 360.83 | J137: 364.52 | K137: 357.15 | L137: 348.4 | M137: 7.9027
A138: 128 | B138: DELTACORP | C138: 241.9 | D138: 243.33 | E138: 238.62 | F138: 235.33 | G138: 230.62 | H138: 246.62 | I138: 251.33 | J138: 254.62 | K138: 248.05 | L138: 240.05 | M138: 30.33525
A139: 129 | B139: DEVYANI | C139: 185.6 | D139: 185.17 | E139: 182.98 | F139: 180.37 | G139: 178.18 | H139: 187.78 | I139: 189.97 | J139: 192.58 | K139: 187.35 | L139: 182.55 | M139: 6.88702
A140: 130 | B140: DHANI | C140: 34.35 | D140: 34.55 | E140: 34.00 | F140: 33.65 | G140: 33.10 | H140: 34.90 | I140: 35.45 | J140: 35.80 | K140: 35.1 | L140: 34.2 | M140: 26.37972
A141: 131 | B141: DBL | C141: 211.7 | D141: 216.32 | E141: 203.63 | F141: 195.57 | G141: 182.88 | H141: 224.38 | I141: 237.07 | J141: 245.13 | K141: 229 | L141: 208.25 | M141: 67.75842
A142: 132 | B142: DIVISLAB | C142: 3511.6 | D142: 3520.35 | E142: 3486.25 | F142: 3460.90 | G142: 3426.80 | H142: 3545.70 | I142: 3579.80 | J142: 3605.15 | K142: 3554.45 | L142: 3495 | M142: 4.77154
A143: 133 | B143: DIXON | C143: 3966.15 | D143: 3952.48 | E143: 3915.97 | F143: 3865.78 | G143: 3829.27 | H143: 4002.67 | I143: 4039.18 | J143: 4089.37 | K143: 3989 | L143: 3902.3 | M143: 9.62382
A144: 134 | B144: LALPATHLAB | C144: 2015.2 | D144: 2015.97 | E144: 1998.48 | F144: 1981.77 | G144: 1964.28 | H144: 2032.68 | I144: 2050.17 | J144: 2066.88 | K144: 2033.45 | L144: 1999.25 | M144: 1.68239
A145: 135 | B145: DRREDDY | C145: 4610.45 | D145: 4598.50 | E145: 4577.00 | F145: 4543.55 | G145: 4522.05 | H145: 4631.95 | I145: 4653.45 | J145: 4686.90 | K145: 4620 | L145: 4565.05 | M145: 5.01913
A146: 136 | B146: EIDPARRY | C146: 486.3 | D146: 487.12 | E146: 483.28 | F146: 480.27 | G146: 476.43 | H146: 490.13 | I146: 493.97 | J146: 496.98 | K146: 490.95 | L146: 484.1 | M146: 0.91354
A147: 137 | B147: EIHOTEL | C147: 214.45 | D147: 215.30 | E147: 211.80 | F147: 209.15 | G147: 205.65 | H147: 217.95 | I147: 221.45 | J147: 224.10 | K147: 218.8 | L147: 212.65 | M147: 5.9879
A148: 138 | B148: EPL | C148: 200.3 | D148: 202.60 | E148: 195.80 | F148: 191.30 | G148: 184.50 | H148: 207.10 | I148: 213.90 | J148: 218.40 | K148: 209.4 | L148: 198.1 | M148: 63.25592
A149: 139 | B149: EASEMYTRIP | C149: 45.6 | D149: 45.77 | E149: 45.33 | F149: 45.07 | G149: 44.63 | H149: 46.03 | I149: 46.47 | J149: 46.73 | K149: 46.2 | L149: 45.5 | M149: 25.5209
A150: 140 | B150: EDELWEISS | C150: 36.75 | D150: 36.17 | E150: 35.58 | F150: 34.42 | G150: 33.83 | H150: 37.33 | I150: 37.92 | J150: 39.08 | K150: 36.75 | L150: 35 | M150: 1.21059
A151: 141 | B151: EICHERMOT | C151: 3699.4 | D151: 3701.47 | E151: 3654.93 | F151: 3610.47 | G151: 3563.93 | H151: 3745.93 | I151: 3792.47 | J151: 3836.93 | K151: 3748 | L151: 3657 | M151: 9.87424
A152: 142 | B152: ELGIEQUIP | C152: 544.65 | D152: 543.67 | E152: 538.33 | F152: 532.02 | G152: 526.68 | H152: 549.98 | I152: 555.32 | J152: 561.63 | K152: 549 | L152: 537.35 | M152: 2.49934
A153: 143 | B153: EMAMILTD | C153: 396.05 | D153: 394.03 | E153: 390.07 | F153: 384.08 | G153: 380.12 | H153: 400.02 | I153: 403.98 | J153: 409.97 | K153: 398 | L153: 388.05 | M153: 2.68576
A154: 144 | B154: ENDURANCE | C154: 1502.55 | D154: 1489.78 | E154: 1467.87 | F154: 1433.18 | G154: 1411.27 | H154: 1524.47 | I154: 1546.38 | J154: 1581.07 | K154: 1511.7 | L154: 1455.1 | M154: 0.88869
A155: 145 | B155: ENGINERSIN | C155: 107.75 | D155: 108.68 | E155: 106.47 | F155: 105.18 | G155: 102.97 | H155: 109.97 | I155: 112.18 | J155: 113.47 | K155: 110.9 | L155: 107.4 | M155: 35.67752
A156: 146 | B156: EQUITASBNK | C156: 87.15 | D156: 87.60 | E156: 86.20 | F156: 85.25 | G156: 83.85 | H156: 88.55 | I156: 89.95 | J156: 90.90 | K156: 89 | L156: 86.65 | M156: 57.70482
A157: 147 | B157: ESCORTS | C157: 2183.4 | D157: 2190.52 | E157: 2167.03 | F157: 2150.67 | G157: 2127.18 | H157: 2206.88 | I157: 2230.37 | J157: 2246.73 | K157: 2214 | L157: 2174.15 | M157: 2.06876
A158: 148 | B158: EXIDEIND | C158: 211.75 | D158: 211.58 | E158: 210.17 | F158: 208.58 | G158: 207.17 | H158: 213.17 | I158: 214.58 | J158: 216.17 | K158: 213 | L158: 210 | M158: 14.39067
A159: 149 | B159: FDC | C159: 297.05 | D159: 296.37 | E159: 293.68 | F159: 290.32 | G159: 287.63 | H159: 299.73 | I159: 302.42 | J159: 305.78 | K159: 299.05 | L159: 293 | M159: 1.50689
A160: 150 | B160: NYKAA | C160: 135.75 | D160: 132.75 | E160: 128.70 | F160: 121.65 | G160: 117.60 | H160: 139.80 | I160: 143.85 | J160: 150.90 | K160: 136.8 | L160: 125.7 | M160: 420.69132
A161: 151 | B161: FEDERALBNK | C161: 126.15 | D161: 126.30 | E161: 125.65 | F161: 125.15 | G161: 124.50 | H161: 126.80 | I161: 127.45 | J161: 127.95 | K161: 126.95 | L161: 125.8 | M161: 105.42134
A162: 152 | B162: FACT | C162: 307.35 | D162: 306.25 | E162: 303.10 | F162: 298.85 | G162: 295.70 | H162: 310.50 | I162: 313.65 | J162: 317.90 | K162: 309.4 | L162: 302 | M162: 2.81199
A163: 153 | B163: FINEORG | C163: 4498.95 | D163: 4512.53 | E163: 4476.42 | F163: 4453.88 | G163: 4417.77 | H163: 4535.07 | I163: 4571.18 | J163: 4593.72 | K163: 4548.65 | L163: 4490 | M163: 0.28807
A164: 154 | B164: FINCABLES | C164: 795.4 | D164: 794.97 | E164: 781.43 | F164: 767.47 | G164: 753.93 | H164: 808.93 | I164: 822.47 | J164: 836.43 | K164: 808.5 | L164: 781 | M164: 5.18605
A165: 155 | B165: FINPIPE | C165: 171.85 | D165: 172.75 | E165: 170.10 | F165: 168.35 | G165: 165.70 | H165: 174.50 | I165: 177.15 | J165: 178.90 | K165: 175.4 | L165: 171 | M165: 5.96116
A166: 156 | B166: FSL | C166: 131.3 | D166: 132.23 | E166: 129.62 | F166: 127.93 | G166: 125.32 | H166: 133.92 | I166: 136.53 | J166: 138.22 | K166: 134.85 | L166: 130.55 | M166: 19.66789
A167: 157 | B167: FORTIS | C167: 276.25 | D167: 277.58 | E167: 274.07 | F167: 271.88 | G167: 268.37 | H167: 279.77 | I167: 283.28 | J167: 285.47 | K167: 281.1 | L167: 275.4 | M167: 2.24222
A168: 158 | B168: GRINFRA | C168: 1277.1 | D168: 1266.17 | E168: 1245.93 | F168: 1214.77 | G168: 1194.53 | H168: 1297.33 | I168: 1317.57 | J168: 1348.73 | K168: 1286.4 | L168: 1235 | M168: 0.4616
A169: 159 | B169: GAIL | C169: 104.6 | D169: 105.05 | E169: 103.95 | F169: 103.30 | G169: 102.20 | H169: 105.70 | I169: 106.80 | J169: 107.45 | K169: 106.15 | L169: 104.4 | M169: 96.24201
A170: 160 | B170: GMMPFAUDLR | C170: 1449.3 | D170: 1451.58 | E170: 1436.42 | F170: 1423.53 | G170: 1408.37 | H170: 1464.47 | I170: 1479.63 | J170: 1492.52 | K170: 1466.75 | L170: 1438.7 | M170: 0.67606
A171: 161 | B171: GMRINFRA | C171: 41.3 | D171: 41.22 | E171: 40.93 | F171: 40.57 | G171: 40.28 | H171: 41.58 | I171: 41.87 | J171: 42.23 | K171: 41.5 | L171: 40.85 | M171: 74.92897
A172: 162 | B172: GALAXYSURF | C172: 2463.05 | D172: 2464.52 | E172: 2452.58 | F172: 2442.12 | G172: 2430.18 | H172: 2474.98 | I172: 2486.92 | J172: 2497.38 | K172: 2476.45 | L172: 2454.05 | M172: 0.08639
A173: 163 | B173: GARFIBRES | C173: 3075.2 | D173: 3066.73 | E173: 3043.47 | F173: 3011.73 | G173: 2988.47 | H173: 3098.47 | I173: 3121.73 | J173: 3153.47 | K173: 3090 | L173: 3035 | M173: 0.06341
A174: 164 | B174: GICRE | C174: 186.6 | D174: 186.90 | E174: 184.30 | F174: 182.00 | G174: 179.40 | H174: 189.20 | I174: 191.80 | J174: 194.10 | K174: 189.5 | L174: 184.6 | M174: 9.71014
A175: 165 | B175: GLAND | C175: 922.25 | D175: 926.42 | E175: 915.83 | F175: 909.42 | G175: 898.83 | H175: 932.83 | I175: 943.42 | J175: 949.83 | K175: 937 | L175: 920 | M175: 3.3272
A176: 166 | B176: GLAXO | C176: 1390.95 | D176: 1360.22 | E176: 1320.43 | F176: 1249.92 | G176: 1210.13 | H176: 1430.73 | I176: 1470.52 | J176: 1541.03 | K176: 1400 | L176: 1289.7 | M176: 2.33374
A177: 167 | B177: GLENMARK | C177: 614.15 | D177: 612.67 | E177: 609.98 | F177: 605.82 | G177: 603.13 | H177: 616.83 | I177: 619.52 | J177: 623.68 | K177: 615.35 | L177: 608.5 | M177: 7.70385
A178: 168 | B178: GOCOLORS | C178: 1099.5 | D178: 1100.52 | E178: 1081.03 | F178: 1062.57 | G178: 1043.08 | H178: 1118.98 | I178: 1138.47 | J178: 1156.93 | K178: 1120 | L178: 1082.05 | M178: 0.21807
A179: 169 | B179: GODFRYPHLP | C179: 1704.5 | D179: 1712.38 | E179: 1692.17 | F179: 1679.83 | G179: 1659.62 | H179: 1724.72 | I179: 1744.93 | J179: 1757.27 | K179: 1732.6 | L179: 1700.05 | M179: 0.54641
A180: 170 | B180: GODREJAGRO | C180: 434.85 | D180: 434.55 | E180: 431.55 | F180: 428.25 | G180: 425.25 | H180: 437.85 | I180: 440.85 | J180: 444.15 | K180: 437.55 | L180: 431.25 | M180: 0.84692
A181: 171 | B181: GODREJCP | C181: 1060.95 | D181: 1059.78 | E181: 1055.37 | F181: 1049.78 | G181: 1045.37 | H181: 1065.37 | I181: 1069.78 | J181: 1075.37 | K181: 1064.2 | L181: 1054.2 | M181: 5.29865
A182: 172 | B182: GODREJIND | C182: 481.25 | D182: 481.17 | E182: 478.13 | F182: 475.02 | G182: 471.98 | H182: 484.28 | I182: 487.32 | J182: 490.43 | K182: 484.2 | L182: 478.05 | M182: 0.93196
A183: 173 | B183: GODREJPROP | C183: 1427.45 | D183: 1425.22 | E183: 1407.73 | F183: 1388.02 | G183: 1370.53 | H183: 1444.93 | I183: 1462.42 | J183: 1482.13 | K183: 1442.7 | L183: 1405.5 | M183: 10.59866
A184: 174 | B184: GRANULES | C184: 286.95 | D184: 287.10 | E184: 283.20 | F184: 279.45 | G184: 275.55 | H184: 290.85 | I184: 294.75 | J184: 298.50 | K184: 291 | L184: 283.35 | M184: 13.73742
A185: 175 | B185: GRAPHITE | C185: 375.45 | D185: 364.63 | E185: 348.27 | F185: 321.08 | G185: 304.72 | H185: 391.82 | I185: 408.18 | J185: 435.37 | K185: 381 | L185: 337.45 | M185: 154.00958
A186: 176 | B186: GRASIM | C186: 1710.55 | D186: 1709.85 | E186: 1700.70 | F186: 1690.85 | G186: 1681.70 | H186: 1719.70 | I186: 1728.85 | J186: 1738.70 | K186: 1719 | L186: 1700 | M186: 5.78853
A187: 177 | B187: GESHIP | C187: 686.8 | D187: 688.48 | E187: 681.17 | F187: 675.53 | G187: 668.22 | H187: 694.12 | I187: 701.43 | J187: 707.07 | K187: 695.8 | L187: 682.85 | M187: 0.68229
A188: 178 | B188: GREENPANEL | C188: 319.15 | D188: 322.18 | E188: 315.17 | F188: 311.18 | G188: 304.17 | H188: 326.17 | I188: 333.18 | J188: 337.17 | K188: 329.2 | L188: 318.2 | M188: 2.82749
A189: 179 | B189: GRINDWELL | C189: 2089.6 | D189: 2097.33 | E189: 2072.27 | F189: 2054.93 | G189: 2029.87 | H189: 2114.67 | I189: 2139.73 | J189: 2157.07 | K189: 2122.4 | L189: 2080 | M189: 0.14434
A190: 180 | B190: GUJALKALI | C190: 649.35 | D190: 651.45 | E190: 645.00 | F190: 640.65 | G190: 634.20 | H190: 655.80 | I190: 662.25 | J190: 666.60 | K190: 657.9 | L190: 647.1 | M190: 0.53328
A191: 181 | B191: GAEL | C191: 255.1 | D191: 255.83 | E191: 252.37 | F191: 249.63 | G191: 246.17 | H191: 258.57 | I191: 262.03 | J191: 264.77 | K191: 259.3 | L191: 253.1 | M191: 7.47208
A192: 182 | B192: FLUOROCHEM | C192: 3301.2 | D192: 3319.75 | E192: 3271.65 | F192: 3242.10 | G192: 3194.00 | H192: 3349.30 | I192: 3397.40 | J192: 3426.95 | K192: 3367.85 | L192: 3290.2 | M192: 0.67466
A193: 183 | B193: GUJGASLTD | C193: 475 | D193: 480.10 | E193: 468.00 | F193: 461.00 | G193: 448.90 | H193: 487.10 | I193: 499.20 | J193: 506.20 | K193: 492.2 | L193: 473.1 | M193: 33.89105
A194: 184 | B194: GNFC | C194: 585.35 | D194: 584.77 | E194: 581.88 | F194: 578.42 | G194: 575.53 | H194: 588.23 | I194: 591.12 | J194: 594.58 | K194: 587.65 | L194: 581.3 | M194: 4.75039
A195: 185 | B195: GPPL | C195: 110.65 | D195: 110.07 | E195: 109.13 | F195: 107.62 | G195: 106.68 | H195: 111.58 | I195: 112.52 | J195: 114.03 | K195: 111 | L195: 108.55 | M195: 13.42969
A196: 186 | B196: GSFC | C196: 160.3 | D196: 160.00 | E196: 159.10 | F196: 157.90 | G196: 157.00 | H196: 161.20 | I196: 162.10 | J196: 163.30 | K196: 160.9 | L196: 158.8 | M196: 13.72429
A197: 187 | B197: GSPL | C197: 302.6 | D197: 302.63 | E197: 300.47 | F197: 298.33 | G197: 296.17 | H197: 304.77 | I197: 306.93 | J197: 309.07 | K197: 304.8 | L197: 300.5 | M197: 2.14734
A198: 188 | B198: HEG | C198: 1303.4 | D198: 1269.85 | E198: 1224.80 | F198: 1146.20 | G198: 1101.15 | H198: 1348.45 | I198: 1393.50 | J198: 1472.10 | K198: 1314.9 | L198: 1191.25 | M198: 26.1397
A199: 189 | B199: HCLTECH | C199: 1137.05 | D199: 1139.92 | E199: 1128.73 | F199: 1120.42 | G199: 1109.23 | H199: 1148.23 | I199: 1159.42 | J199: 1167.73 | K199: 1151.1 | L199: 1131.6 | M199: 13.36554
A200: 190 | B200: HDFCAMC | C200: 1964.9 | D200: 1954.32 | E200: 1940.63 | F200: 1916.37 | G200: 1902.68 | H200: 1978.58 | I200: 1992.27 | J200: 2016.53 | K200: 1968 | L200: 1930.05 | M200: 3.2202
A201: 191 | B201: HDFCBANK | C201: 1606.5 | D201: 1607.43 | E201: 1600.07 | F201: 1593.63 | G201: 1586.27 | H201: 1613.87 | I201: 1621.23 | J201: 1627.67 | K201: 1614.8 | L201: 1601 | M201: 89.29855
A202: 192 | B202: HDFCLIFE | C202: 576.4 | D202: 578.45 | E202: 570.90 | F202: 565.40 | G202: 557.85 | H202: 583.95 | I202: 591.50 | J202: 597.00 | K202: 586 | L202: 572.95 | M202: 31.92761
A203: 193 | B203: HFCL | C203: 64.65 | D203: 64.80 | E203: 64.15 | F203: 63.65 | G203: 63.00 | H203: 65.30 | I203: 65.95 | J203: 66.45 | K203: 65.45 | L203: 64.3 | M203: 56.84496
A204: 194 | B204: HLEGLAS | C204: 638 | D204: 633.33 | E204: 622.67 | F204: 607.33 | G204: 596.67 | H204: 648.67 | I204: 659.33 | J204: 674.67 | K204: 644 | L204: 618 | M204: 2.58734
A205: 195 | B205: HAPPSTMNDS | C205: 928.9 | D205: 932.95 | E205: 920.90 | F205: 912.90 | G205: 900.85 | H205: 940.95 | I205: 953.00 | J205: 961.00 | K205: 945 | L205: 924.95 | M205: 4.91253
A206: 196 | B206: HATSUN | C206: 881.25 | D206: 882.62 | E206: 873.23 | F206: 865.22 | G206: 855.83 | H206: 890.63 | I206: 900.02 | J206: 908.03 | K206: 892 | L206: 874.6 | M206: 0.14382
... 320 more rows

Sheet Bulk Deals
E6: Back To Main Page
A7: Subject : | B7: BULK DEAL | D7: =Main!B10 -> 2023-06-05
A9: Date | B9: Scrip code | C9: Scrip Name | D9: Client Name | E9: Buy / Sell | F9: Quantity Traded | G9: Trade Price / Wt.Avg.trade price | H9: Exchange
A10: 2023-06-02 | B10: 539115 | C10: ALAN SCOTT | D10: SURESHKUMAR PUKHRAJ JAIN | E10: BUY | F10: 15,067 | G10: 45.06 | H10: BSE
A11: 2023-06-02 | B11: 539115 | C11: ALAN SCOTT | D11: SUJITH IMMANUEL GEORGE | E11: SELL | F11: 14,223 | G11: 45 | H11: BSE
A12: 2023-06-02 | B12: 517546 | C12: ALFATRAN | D12: RAGHAV KAROL HUF | E12: BUY | F12: 56,639 | G12: 30.5 | H12: BSE
A13: 2023-06-02 | B13: 517546 | C13: ALFATRAN | D13: ALPANA MUNDRA | E13: SELL | F13: 61,900 | G13: 30.5 | H13: BSE
A14: 2023-06-02 | B14: 539277 | C14: ALSTONE | D14: PASCHIM FINANCE & CHIT FUND PVT LTD | E14: SELL | F14: 12,843,739 | G14: 0.64 | H14: BSE
A15: 2023-06-02 | B15: 537069 | C15: ARNOLD | D15: VAISHALI SHEKHAR CHANNE | E15: SELL | F15: 200,000 | G15: 22.5 | H15: BSE
A16: 2023-06-02 | B16: 537069 | C16: ARNOLD | D16: CHAITANYA DILIP CHANDAN | E16: BUY | F16: 193,381 | G16: 22.5 | H16: BSE
A17: 2023-06-02 | B17: 541865 | C17: ASRL | D17: VIVEK MEHROTRA | E17: SELL | F17: 169,998 | G17: 36.26 | H17: BSE
A18: 2023-06-02 | B18: 538734 | C18: CEINSYSTECH | D18: ZODIUS TECHNOLOGY FUND | E18: SELL | F18: 180,000 | G18: 168.25 | H18: BSE
A19: 2023-06-02 | B19: 543435 | C19: CLARA | D19: ZYANA STOCKS AND COMMODITIES | E19: SELL | F19: 17,430 | G19: 210 | H19: BSE
A20: 2023-06-02 | B20: 533149 | C20: ESSARSEC | D20: ANAND MOHAN | E20: BUY | F20: 73,287 | G20: 5.86 | H20: BSE
A21: 2023-06-02 | B21: 543895 | C21: EXHICON | D21: VIJAY KUMAR PAHWA | E21: BUY | F21: 64,000 | G21: 138.91 | H21: BSE
A22: 2023-06-02 | B22: 532467 | C22: HAZOOR | D22: BP EQUITIES PVT. LTD. | E22: BUY | F22: 50,127 | G22: 161.26 | H22: BSE
A23: 2023-06-02 | B23: 532467 | C23: HAZOOR | D23: BP EQUITIES PVT. LTD. | E23: SELL | F23: 54,233 | G23: 160.6 | H23: BSE
A24: 2023-06-02 | B24: 532467 | C24: HAZOOR | D24: RAUDRAMUKHI COMMERCE PVT LTD | E24: SELL | F24: 65,300 | G24: 161.33 | H24: BSE
A25: 2023-06-02 | B25: 532467 | C25: HAZOOR | D25: WESSEL CONSULTANCY PRIVATE LIMITED | E25: SELL | F25: 75,000 | G25: 161.35 | H25: BSE
A26: 2023-06-02 | B26: 526967 | C26: HEERAISP | D26: SUDHA SHANTILAL SHAH | E26: SELL | F26: 68,400 | G26: 10.88 | H26: BSE
A27: 2023-06-02 | B27: 542935 | C27: ICLORGANIC | D27: KAUSHIK MAHESH WAGHELA | E27: BUY | F27: 34,000 | G27: 66.51 | H27: BSE
A28: 2023-06-02 | B28: 542935 | C28: ICLORGANIC | D28: KAUSHIK MAHESH WAGHELA | E28: SELL | F28: 10,000 | G28: 71.5 | H28: BSE
A29: 2023-06-02 | B29: 542935 | C29: ICLORGANIC | D29: MEGHA DINESH SINGH | E29: SELL | F29: 50,000 | G29: 65.8 | H29: BSE
A30: 2023-06-02 | B30: 542935 | C30: ICLORGANIC | D30: YELLOWSTONE VENTURES LLP | E30: BUY | F30: 60,000 | G30: 67.51 | H30: BSE
A31: 2023-06-02 | B31: 542924 | C31: JANUSCORP | D31: MISTERKAPOORKESHRI | E31: BUY | F31: 28,000 | G31: 4.02 | H31: BSE
A32: 2023-06-02 | B32: 542924 | C32: JANUSCORP | D32: MISTERKAPOORKESHRI | E32: SELL | F32: 84,000 | G32: 3.83 | H32: BSE
A33: 2023-06-02 | B33: 520057 | C33: JTEKTINDIA | D33: MALABAR INDIA FUND LIMITED | E33: SELL | F33: 2,205,806 | G33: 125.03 | H33: BSE
A34: 2023-06-02 | B34: 535910 | C34: MMLF | D34: POWER SOLUTIONS | E34: BUY | F34: 150,000 | G34: 28.36 | H34: BSE
A35: 2023-06-02 | B35: 535910 | C35: MMLF | D35: SAROJ GUPTA | E35: SELL | F35: 125,000 | G35: 27.91 | H35: BSE
A36: 2023-06-02 | B36: 543264 | C36: NURECA | D36: MATHISYS ADVISORS LLP | E36: SELL | F36: 53,619 | G36: 425.76 | H36: BSE
A37: 2023-06-02 | B37: 543264 | C37: NURECA | D37: MATHISYS ADVISORS LLP | E37: BUY | F37: 53,001 | G37: 425.84 | H37: BSE
A38: 2023-06-02 | B38: 531304 | C38: NUTECGLOB | D38: POONAM JAIN | E38: SELL | F38: 20,000 | G38: 37.53 | H38: BSE
A39: 2023-06-02 | B39: 531304 | C39: NUTECGLOB | D39: MADHUSUDHAN GUNDA | E39: BUY | F39: 20,935 | G39: 37.53 | H39: BSE
A40: 2023-06-02 | B40: 524136 | C40: PCCOSMA | D40: ARUN KUMAR MUKHERJEE | E40: BUY | F40: 27,000 | G40: 157.56 | H40: BSE
A41: 2023-06-02 | B41: 524136 | C41: PCCOSMA | D41: MADAN MUNDRA | E41: SELL | F41: 16,393 | G41: 159.95 | H41: BSE
A42: 2023-06-02 | B42: 543912 | C42: PIGL | D42: VIBHU BANSAL . | E42: BUY | F42: 65,000 | G42: 67.14 | H42: BSE
A43: 2023-06-02 | B43: 543912 | C43: PIGL | D43: VIBHU BANSAL . | E43: SELL | F43: 65,000 | G43: 67.14 | H43: BSE
A44: 2023-06-02 | B44: 543912 | C44: PIGL | D44: SRESTHA FINVEST LIMITED | E44: BUY | F44: 100,000 | G44: 67.14 | H44: BSE
A45: 2023-06-02 | B45: 543912 | C45: PIGL | D45: SRESTHA FINVEST LIMITED | E45: SELL | F45: 129,818 | G45: 67.14 | H45: BSE
A46: 2023-06-02 | B46: 543912 | C46: PIGL | D46: POWER SOLUTIONS | E46: SELL | F46: 107,560 | G46: 67.14 | H46: BSE
A47: 2023-06-02 | B47: 543912 | C47: PIGL | D47: SRIRAM PADMANABHAN NAIR | E47: SELL | F47: 200,000 | G47: 67.14 | H47: BSE
A48: 2023-06-02 | B48: 543912 | C48: PIGL | D48: SETU SECURITIES PVT. LTD. | E48: SELL | F48: 35,362 | G48: 67.14 | H48: BSE
A49: 2023-06-02 | B49: 543912 | C49: PIGL | D49: SETU SECURITIES PVT. LTD. | E49: BUY | F49: 79,497 | G49: 67.15 | H49: BSE
A50: 2023-06-02 | B50: 519230 | C50: RICHIRICH | D50: VIVEK SURANA | E50: BUY | F50: 27,247 | G50: 4.75 | H50: BSE
A51: 2023-06-02 | B51: 512097 | C51: SAICOM | D51: RAJENDRA KUMAR AGARWAL | E51: BUY | F51: 1,156,026 | G51: 0.46 | H51: BSE
A52: 2023-06-02 | B52: 512097 | C52: SAICOM | D52: RAJENDRA KUMAR AGARWAL | E52: SELL | F52: 600 | G52: 0.43 | H52: BSE
A53: 2023-06-02 | B53: 539199 | C53: SGFIN | D53: BALAJI AGENCIES | E53: SELL | F53: 315,124 | G53: 653.15 | H53: BSE
A54: 2023-06-02 | B54: 539199 | C54: SGFIN | D54: RAJASTHAN GLOBAL SECURITIES PRIVATE LIMITED | E54: BUY | F54: 265,000 | G54: 650.5 | H54: BSE
A55: 2023-06-02 | B55: 530439 | C55: SIDDHA | D55: KAMAL KUMAR JALAN SEC. PVT. LTD | E55: BUY | F55: 50,000 | G55: 6.91 | H55: BSE
A56: 2023-06-02 | B56: 530439 | C56: SIDDHA | D56: AJIAM CAPITAL PRIVATE LIMITED . | E56: BUY | F56: 27,558 | G56: 6.91 | H56: BSE
A57: 2023-06-02 | B57: 530439 | C57: SIDDHA | D57: AJIAM CAPITAL PRIVATE LIMITED . | E57: SELL | F57: 50,000 | G57: 6.91 | H57: BSE
A58: 2023-06-02 | B58: 542765 | C58: TRANSPACT | D58: KAILASHBEN ASHOKKUMAR PATEL | E58: SELL | F58: 2,000 | G58: 148.3 | H58: BSE
A59: 2023-06-02 | B59: 543545 | C59: VEERKRUPA | D59: AJAY SALVI | E59: BUY | F59: 1,670,000 | G59: 3.2 | H59: BSE
A60: 2023-06-02 | B60: 543545 | C60: VEERKRUPA | D60: APPU FINANCIAL SERVICES LTD | E60: SELL | F60: 1,202,400 | G60: 3.2 | H60: BSE
A61: 2023-06-02 | B61: 543545 | C61: VEERKRUPA | D61: NNM SECURITIES PVT LTD | E61: SELL | F61: 1,419,500 | G61: 3.2 | H61: BSE
A62: 2023-06-02 | B62: 543545 | C62: VEERKRUPA | D62: NNM SECURITIES PVT LTD | E62: BUY | F62: 33,400 | G62: 3.28 | H62: BSE
A63: 2023-06-02 | B63: 542667 | C63: WORL | D63: SETU SECURITIES PVT. LTD. | E63: SELL | F63: 193,779 | G63: 10.07 | H63: BSE
A64: 2023-06-02 | B64: 542667 | C64: WORL | D64: SETU SECURITIES PVT. LTD. | E64: BUY | F64: 193,779 | G64: 9.12 | H64: BSE
A65: 2023-06-02 | B65: 511018 | C65: ZMILGFIN | D65: CHIRAGBHAI ARVINDBHAI SHAH | E65: BUY | F65: 25,000 | G65: 19.1 | H65: BSE
A66: 2023-06-02 | B66: 511018 | C66: ZMILGFIN | D66: YOGENDRA SRIKISHAN BAGREE | E66: SELL | F66: 26,001 | G66: 19.1 | H66: BSE
A67: 2023-06-02 | B67: AHL | C67: Abans Holdings Limited | D67: ATLAS EVENTS PRIVATE LIMITED | E67: BUY | F67: 562,462 | G67: 280.46 | H67: NSE
A68: 2023-06-02 | B68: AJOONI | C68: Ajooni Biotech Limited | D68: CHIRAG D BHANUSHALI HUF | E68: BUY | F68: 750,000 | G68: 4.67 | H68: NSE
A69: 2023-06-02 | B69: ANMOL | C69: Anmol India Limited | D69: SKSE SECURITIES LTD | E69: BUY | F69: 104,798 | G69: 246.66 | H69: NSE
A70: 2023-06-02 | B70: DENTALKART | C70: Vasa Denticity Limited | D70: JAIN SANJAY POPATLAL | E70: BUY | F70: 100,000 | G70: 211 | H70: NSE
A71: 2023-06-02 | B71: FROG | C71: Frog Cellsat Limited | D71: SAHASRAR CAPITAL PRIVATE LIMITED | E71: BUY | F71: 92,000 | G71: 179.34 | H71: NSE
A72: 2023-06-02 | B72: GODHA-RE | C72: Godha Cabcon Insulat Ltd | D72: DON NANDU THAKUR | E72: BUY | F72: 4,200,000 | G72: 0.1 | H72: NSE
A73: 2023-06-02 | B73: GOYALALUM | C73: Goyal Aluminiums Limited | D73: MANSI SHARES & STOCK ADVISORS PVT LTD | E73: BUY | F73: 500,000 | G73: 12.75 | H73: NSE
A74: 2023-06-02 | B74: GOYALALUM | C74: Goyal Aluminiums Limited | D74: SETU SECURITIES PVT LTD | E74: BUY | F74: 2,199,059 | G74: 12.75 | H74: NSE
A75: 2023-06-02 | B75: GRAPHITE | C75: Graphite India Limited | D75: GRAVITON RESEARCH CAPITAL LLP | E75: BUY | F75: 987,456 | G75: 365.59 | H75: NSE
A76: 2023-06-02 | B76: HEG | C76: HEG Ltd | D76: GRAVITON RESEARCH CAPITAL LLP | E76: BUY | F76: 219,387 | G76: 1285.72 | H76: NSE
A77: 2023-06-02 | B77: IZMO | C77: IZMO Limited | D77: MULTIPLIER SHARE & STOCK ADVISORS PRIVATE LIMITED | E77: BUY | F77: 80,004 | G77: 202.4 | H77: NSE
A78: 2023-06-02 | B78: IZMO | C78: IZMO Limited | D78: SETU SECURITIES PVT LTD | E78: BUY | F78: 71,127 | G78: 202.12 | H78: NSE
A79: 2023-06-02 | B79: IZMO | C79: IZMO Limited | D79: YUGA STOCKS AND COMMODITIES PRIVATE LIMITED . | E79: BUY | F79: 113,829 | G79: 201.87 | H79: NSE
A80: 2023-06-02 | B80: KSHITIJPOL | C80: Kshitij Polyline Limited | D80: SETU SECURITIES PVT LTD | E80: BUY | F80: 522,309 | G80: 10.9 | H80: NSE
A81: 2023-06-02 | B81: NURECA | C81: Nureca Limited | D81: QNANCE TECHNOLOGIES LLP | E81: BUY | F81: 54,989 | G81: 421.22 | H81: NSE
A82: 2023-06-02 | B82: NURECA | C82: Nureca Limited | D82: LOKESH THAKRAL | E82: BUY | F82: 55,687 | G82: 423.34 | H82: NSE
A83: 2023-06-02 | B83: NURECA | C83: Nureca Limited | D83: QE SECURITIES | E83: BUY | F83: 146,232 | G83: 426.34 | H83: NSE
A84: 2023-06-02 | B84: NURECA | C84: Nureca Limited | D84: XTX MARKETS LLP | E84: BUY | F84: 167,768 | G84: 424.46 | H84: NSE
A85: 2023-06-02 | B85: NURECA | C85: Nureca Limited | D85: GRAVITON RESEARCH CAPITAL LLP | E85: BUY | F85: 363,735 | G85: 424.3 | H85: NSE
A86: 2023-06-02 | B86: NURECA | C86: Nureca Limited | D86: ARHAM WEALTH MANAGEMENT PRIVATE LIMITED | E86: BUY | F86: 69,573 | G86: 427.05 | H86: NSE
A87: 2023-06-02 | B87: NURECA | C87: Nureca Limited | D87: NK SECURITIES RESEARCH PRIVATE LIMITED | E87: BUY | F87: 294,773 | G87: 424.98 | H87: NSE
A88: 2023-06-02 | B88: NURECA | C88: Nureca Limited | D88: MANSI SHARES & STOCK ADVISORS PVT LTD | E88: BUY | F88: 14,000 | G88: 428.11 | H88: NSE
A89: 2023-06-02 | B89: NURECA | C89: Nureca Limited | D89: ELIXIR WEALTH MANAGEMENT PRIVATE LIMITED | E89: BUY | F89: 245,738 | G89: 425.79 | H89: NSE
A90: 2023-06-02 | B90: SALZERELEC | C90: Salzer Electronics Ltd. | D90: GRAVITON RESEARCH CAPITAL LLP | E90: BUY | F90: 86,024 | G90: 360.5 | H90: NSE
A91: 2023-06-02 | B91: SOUTHBANK | C91: South Indian Bank Ltd. | D91: HI GROWTH CORPORATE SERVICES PVT LTD | E91: BUY | F91: 12,357,000 | G91: 19.14 | H91: NSE
A92: 2023-06-02 | B92: SPECIALITY | C92: Speciality Rest Ltd | D92: BONANZA COMMODITY BROKERS PRIVATE LIMITED | E92: BUY | F92: 346,935 | G92: 226.63 | H92: NSE
A93: 2023-06-02 | B93: TIMETECHNO | C93: Time Technoplast Limited | D93: CRONY VYAPAR PVT LTD | E93: BUY | F93: 2,236,538 | G93: 105.83 | H93: NSE
A94: 2023-06-02 | B94: TIMETECHNO | C94: Time Technoplast Limited | D94: GRAVITON RESEARCH CAPITAL LLP | E94: BUY | F94: 1,229,915 | G94: 104.81 | H94: NSE
A95: 2023-06-02 | B95: TREJHARA | C95: TREJHARA SOLUTIONS LIMITE | D95: MULTIPLIER SHARE & STOCK ADVISORS PRIVATE LIMITED | E95: BUY | F95: 215,109 | G95: 61.96 | H95: NSE
A96: 2023-06-02 | B96: TREJHARA | C96: TREJHARA SOLUTIONS LIMITE | D96: MALAV MANISHKUMAR SHAH | E96: BUY | F96: 65,904 | G96: 67.31 | H96: NSE
A97: 2023-06-02 | B97: UNIVASTU | C97: Univastu India Limited | D97: VEENA RAJESH SHAH | E97: BUY | F97: 114,393 | G97: 94.35 | H97: NSE
A98: 2023-06-02 | B98: WALCHANNAG | C98: Walchandnagar Ind. Ltd | D98: SETU SECURITIES PVT LTD | E98: BUY | F98: 269,036 | G98: 86.86 | H98: NSE
A99: 2023-06-02 | B99: AHL | C99: Abans Holdings Limited | D99: ATLAS EVENTS PRIVATE LIMITED | E99: SELL | F99: 562,462 | G99: 280.6 | H99: NSE
A100: 2023-06-02 | B100: ANMOL | C100: Anmol India Limited | D100: SKSE SECURITIES LTD | E100: SELL | F100: 105,824 | G100: 247.24 | H100: NSE
A101: 2023-06-02 | B101: ATALREAL | C101: Atal Realtech Limited | D101: BHAVESH KIRTI MATHURIA | E101: SELL | F101: 95,776 | G101: 112.65 | H101: NSE
A102: 2023-06-02 | B102: AUROIMPEX | C102: Auro Impex & Chemicals L | D102: RIKHAV SECURITIES LIMITED | E102: SELL | F102: 116,800 | G102: 78.8 | H102: NSE
A103: 2023-06-02 | B103: CRAYONS | C103: Crayons Advertising Ltd | D103: SS CORPORATE SECURITIES LIMITED | E103: SELL | F103: 212,000 | G103: 90 | H103: NSE
A104: 2023-06-02 | B104: FROG | C104: Frog Cellsat Limited | D104: RAJASTHAN GLOBAL SECURITIES PVT LTD | E104: SELL | F104: 204,000 | G104: 180.38 | H104: NSE
A105: 2023-06-02 | B105: GOYALALUM | C105: Goyal Aluminiums Limited | D105: MANSI SHARES & STOCK ADVISORS PVT LTD | E105: SELL | F105: 750,000 | G105: 12.75 | H105: NSE
A106: 2023-06-02 | B106: GOYALALUM | C106: Goyal Aluminiums Limited | D106: SETU SECURITIES PVT LTD | E106: SELL | F106: 657,297 | G106: 12.75 | H106: NSE
A107: 2023-06-02 | B107: GRAPHITE | C107: Graphite India Limited | D107: GRAVITON RESEARCH CAPITAL LLP | E107: SELL | F107: 987,456 | G107: 365.79 | H107: NSE
A108: 2023-06-02 | B108: HEG | C108: HEG Ltd | D108: GRAVITON RESEARCH CAPITAL LLP | E108: SELL | F108: 219,387 | G108: 1286.55 | H108: NSE
A109: 2023-06-02 | B109: IZMO | C109: IZMO Limited | D109: YUGA STOCKS AND COMMODITIES PRIVATE LIMITED . | E109: SELL | F109: 93,829 | G109: 202.5 | H109: NSE
A110: 2023-06-02 | B110: IZMO | C110: IZMO Limited | D110: SAMARTH KHULLAR | E110: SELL | F110: 79,500 | G110: 202.5 | H110: NSE
A111: 2023-06-02 | B111: IZMO | C111: IZMO Limited | D111: SETU SECURITIES PVT LTD | E111: SELL | F111: 97,056 | G111: 201.74 | H111: NSE
A112: 2023-06-02 | B112: IZMO | C112: IZMO Limited | D112: MULTIPLIER SHARE & STOCK ADVISORS PRIVATE LIMITED | E112: SELL | F112: 80,004 | G112: 202.49 | H112: NSE
A113: 2023-06-02 | B113: KSHITIJPOL | C113: Kshitij Polyline Limited | D113: RITA BHARAT GALA | E113: SELL | F113: 725,532 | G113: 11.18 | H113: NSE
A114: 2023-06-02 | B114: KSHITIJPOL | C114: Kshitij Polyline Limited | D114: SETU SECURITIES PVT LTD | E114: SELL | F114: 251,571 | G114: 10.9 | H114: NSE
A115: 2023-06-02 | B115: LYKALABS | C115: Lyka Labs Ltd | D115: QUANT MUTUAL FUND QUANT SMALL CAP FUND | E115: SELL | F115: 150,000 | G115: 101.93 | H115: NSE
A116: 2023-06-02 | B116: MEGAFLEX | C116: Mega Flex Plastics Ltd | D116: JINENDRA KUMAR JAIN | E116: SELL | F116: 87,000 | G116: 40.58 | H116: NSE
A117: 2023-06-02 | B117: NURECA | C117: Nureca Limited | D117: NK SECURITIES RESEARCH PRIVATE LIMITED | E117: SELL | F117: 294,773 | G117: 425.32 | H117: NSE
A118: 2023-06-02 | B118: NURECA | C118: Nureca Limited | D118: QE SECURITIES | E118: SELL | F118: 147,295 | G118: 426.49 | H118: NSE
A119: 2023-06-02 | B119: NURECA | C119: Nureca Limited | D119: LOKESH THAKRAL | E119: SELL | F119: 55,687 | G119: 419.08 | H119: NSE
A120: 2023-06-02 | B120: NURECA | C120: Nureca Limited | D120: QNANCE TECHNOLOGIES LLP | E120: SELL | F120: 54,819 | G120: 421.32 | H120: NSE
A121: 2023-06-02 | B121: NURECA | C121: Nureca Limited | D121: GRAVITON RESEARCH CAPITAL LLP | E121: SELL | F121: 363,735 | G121: 424.97 | H121: NSE
A122: 2023-06-02 | B122: NURECA | C122: Nureca Limited | D122: XTX MARKETS LLP | E122: SELL | F122: 170,238 | G122: 425.12 | H122: NSE
A123: 2023-06-02 | B123: NURECA | C123: Nureca Limited | D123: ELIXIR WEALTH MANAGEMENT PRIVATE LIMITED | E123: SELL | F123: 243,568 | G123: 426.05 | H123: NSE
A124: 2023-06-02 | B124: NURECA | C124: Nureca Limited | D124: ARHAM WEALTH MANAGEMENT PRIVATE LIMITED | E124: SELL | F124: 69,573 | G124: 425.07 | H124: NSE
A125: 2023-06-02 | B125: NURECA | C125: Nureca Limited | D125: MANSI SHARES & STOCK ADVISORS PVT LTD | E125: SELL | F125: 50,000 | G125: 414.3 | H125: NSE
A126: 2023-06-02 | B126: SALZERELEC | C126: Salzer Electronics Ltd. | D126: GRAVITON RESEARCH CAPITAL LLP | E126: SELL | F126: 86,024 | G126: 360.74 | H126: NSE
A127: 2023-06-02 | B127: SOUTHBANK | C127: South Indian Bank Ltd. | D127: HI GROWTH CORPORATE SERVICES PVT LTD | E127: SELL | F127: 12,074,000 | G127: 19.16 | H127: NSE
A128: 2023-06-02 | B128: SPECIALITY | C128: Speciality Rest Ltd | D128: ANJAN CHATTERJEE | E128: SELL | F128: 500,000 | G128: 226.99 | H128: NSE
A129: 2023-06-02 | B129: SPECIALITY | C129: Speciality Rest Ltd | D129: BONANZA COMMODITY BROKERS PRIVATE LIMITED | E129: SELL | F129: 339,435 | G129: 228.95 | H129: NSE
A130: 2023-06-02 | B130: TIMETECHNO | C130: Time Technoplast Limited | D130: GRAVITON RESEARCH CAPITAL LLP | E130: SELL | F130: 1,229,915 | G130: 104.86 | H130: NSE
A131: 2023-06-02 | B131: TIMETECHNO | C131: Time Technoplast Limited | D131: CRONY VYAPAR PVT LTD | E131: SELL | F131: 1,833,010 | G131: 105.89 | H131: NSE
A132: 2023-06-02 | B132: TREJHARA | C132: TREJHARA SOLUTIONS LIMITE | D132: MALAV MANISHKUMAR SHAH | E132: SELL | F132: 24,904 | G132: 69.08 | H132: NSE
A133: 2023-06-02 | B133: TREJHARA | C133: TREJHARA SOLUTIONS LIMITE | D133: MULTIPLIER SHARE & STOCK ADVISORS PRIVATE LIMITED | E133: SELL | F133: 215,109 | G133: 66.95 | H133: NSE
A134: 2023-06-02 | B134: UNIVASTU | C134: Univastu India Limited | D134: VEENA RAJESH SHAH | E134: SELL | F134: 114,393 | G134: 93.64 | H134: NSE
A135: 2023-06-02 | B135: WALCHANNAG | C135: Walchandnagar Ind. Ltd | D135: SETU SECURITIES PVT LTD | E135: SELL | F135: 317,618 | G135: 87.02 | H135: NSE

Sheet Call Tracker (Equity & F&O)
M5: Back To Main Page
A6: Retail Research Technical Calls & Fundamental Performance Report for the month of June-2023
M7: =Main!B10 -> 2023-06-05
B8: Positional Call
A9: Sr.no | B9: Date | D9: Company | E9: Rec | F9: Rec Price | G9: Stop Loss*** | H9: Call Closed At | I9: Target | J9: Remark | K9: Profit / Loss per Share | L9: All charges | M9: Net Gain / Loss % | N9: Status | O9: Closed Date | P9: Market Closing Price
A10: 1 | B10: 2023-05-12 | D10: SBIN | E10: Accu | F10: 562-574 | G10: 538 | I10: 600-630 | J10: Open | P10: =VLOOKUP(D10,'MidCap Intra'!B39:C539,2,0) -> 587.20 | R10: H
A11: 2 | B11: 2023-05-22 | D11: JSWSTEEL | E11: Accu | F11: 665-691 | G11: 637 | I11: 740-780 | J11: Open | P11: =VLOOKUP(D11,'MidCap Intra'!B40:C540,2,0) -> 706.60 | R11: H
A12: 3 | B12: 2023-05-31 | D12: GSFC | E12: Accu | F12: 152-157 | G12: 144 | I12: 170-175 | J12: Open | P12: =VLOOKUP(D12,'MidCap Intra'!B41:C541,2,0) -> 160.30 | R12: H
A16: CLBS = Closing Basis ***
A17: Dividend adjusted <> | F17: Reinitiated $
A18: Part book {} | D18: s | F18: Revised stoploss #
B20: Momentum Call
A21: Sr.no | B21: Date | D21: Company | E21: Rec | F21: Rec Price | G21: Stop Loss | H21: Call Closed At | I21: Target | J21: Remark | K21: Profit / Loss per Share/Lot | L21: All charges | M21: Net Gain / Loss % | N21: Status | O21: Closed Date
A22: 1 | B22: 2023-05-23 | D22: ACC | E22: Buy | F22: 1807-1815 | G22: 1750 | I22: 1900-1920 | J22: Open | R22: H
A23: 2 | B23: 2023-06-01 | D23: MARICO | E23: Buy | F23: 554-557 | G23: 539 | I23: 590-600 | J23: Open | R23: H
A24: 3 | B24: 2023-06-01 | D24: COALINDIA | E24: Buy | F24: 228.5-230.5 | G24: 222 | I24: 240-244 | J24: Open | R24: H
A25: 4 | B25: 2023-06-02 | D25: MINDACORP | E25: Buy | F25: 292-294 | G25: 284 | I25: 305-315 | J25: Open | R25: H
A27: CLBS = Closing Basis *** | H27: *
A28: Dividend adjusted <> | F28: Reinitiated $
F29: Revised stoploss #
A31: Master Trade High Risk
A32: Sr.no | B32: Date | D32: Company | E32: Rec | F32: Rec Price | G32: Stop Loss | H32: Call Closed At | I32: Target | J32: Remark | K32: Profit / Loss per share | L32: All charges | M32: Gain / Loss per Lot | N32: Lot | O32: Status | P32: Closed Date
A33: 1 | B33: 2023-06-02 | D33: LT JUNE FUT | E33: Buy | F33: 2242-2248 | G33: 2197 | I33: 2300-2320 | J33: Open | R33: H
A37: Master Trade Medium Risk
A38: Sr.no | B38: Date | D38: Company | E38: Rec | F38: Rec Price | G38: Stop Loss | H38: Call Closed At | I38: Target | J38: Remark | K38: Profit/ Loss per lot | L38: All charges | M38: Gain / Loss per Lot | N38: Lot | O38: Status | P38: Closed Date
A39: 1 | B39: 2023-06-01 | D39: COALINDIA 240 CE JUN | E39: Buy | F39: 1.5 | G39: 0.4 | H39: 2.15 | I39: 3.0-4.0 | J39: Profit of Rs.0.65/- | K39: =H39-F39 -> 0.65 | L39: 100.00 | M39: =(K39*N39)-100 -> 2630.0 | N39: 4200 | O39: Successful | P39: 2023-06-02 | R39: H
A40: 2 | B40: 2023-06-01 | D40: NIFTY 18400 PE 8-JUN | E40: Buy | F40: 45-50 | G40: 18 | I40: 90-110 | J40: Open | R40: H
A41: 3 | B41: 2023-06-01 | D41: BANKNIFTY 44200 CE 8-JUN | E41: Buy | F41: 210 | G41: 115 | H41: 225 | I41: 320-380 | J41: Profit of Rs.0.15/- | K41: =H41-F41 -> 15 | L41: 100.00 | M41: =(K41*N41)-100 -> 275.0 | N41: 25 | O41: Successful | P41: 2023-06-02 | R41: H
A42: 4 | B42: 2023-06-02 | D42: NIFTY 18900 CE 29-JUNE | E42: Sell | F42: 82.5 | G42: 145 | H42: 62.5 | I42: 10.0-1 | J42: Profit of Rs.20/- | K42: =F42-H42 -> 20 | L42: 100.00 | M42: 900.0 | N42: 50 | O42: Successful | P42: 2023-06-02 | R42: H
A43: 5 | B43: 2023-06-02 | D43: NIFTY 18900 CE 29-JUNE | E43: Sell | F43: 85 | G43: 145 | H43: 64 | I43: 10.0-1 | J43: Profit of Rs.21/- | K43: =F43-H43 -> 21 | L43: 100.00 | M43: 950.0 | N43: 50 | O43: Successful | P43: 2023-06-02 | R43: H
A44: 6 | B44: 2023-06-02 | D44: ICICIBANK 930 PE JUN | E44: Buy | F44: 10.0-11 | G44: 4 | I44: 18-22 | J44: Open | R44: H
A48: Techno -Funda (positional)
A49: Sr.no | B49: Date | D49: Company | E49: Rec | F49: Rec Price | G49: Stop Loss*** | H49: Call Closed At | I49: Target | J49: Remark | K49: Profit / Loss per Share/Lot | L49: All charges | M49: Net Gain / Loss % | N49: Status | O49: Closed Date | P49: Market Closing Price
A50: 1 | B50: 2022-10-06 | D50: AMBIKCO | E50: Buy | F50: 1420-1620 | G50: 1220 | I50: 2000-2300 | J50: Open | P50: =VLOOKUP(D50,'MidCap Intra'!B98:C598,2,0) ->  | R50: H
A51: 2 | B51: 2023-05-04 | D51: IOC | E51: Buy | F51: 84 | G51: 74.9 | H51: 89.75 | I51: 95-100 | J51: Part profit of Rs.5.75/- | K51: =H51-F51 -> 5.75 | L51: =(F51*-0.7)/100 -> -0.59 | M51: =(K51+L51)/F51 -> 6.15% | N51: Successful | O51: 2023-05-24 | R51: H
A52: 3 | B52: 2023-05-25 | D52: GSPL | E52: Buy | F52: 276-296 | G52: 267 | I52: 330-350 | J52: Open | R52: H
A53: 4 | B53: 2023-05-31 | D53: ROUTE | E53: Buy | F53: 1410 | G53: 1240 | H53: 1507.5 | I53: 1600-1650 | J53: Part profit of Rs.97.5/- | K53: =H53-F53 -> 97.5 | L53: =(F53*-0.7)/100 -> -9.87 | M53: =(K53+L53)/F53 -> 6.21% | N53: Successful | O53: 2023-06-02 | R53: H
A55: CLBS = Closing Basis *** | F55: Reinitiated $
A56: Dividend adjusted <> | F56: Revised stoploss # | H56: .................
B65: Investment Idea
A66: Sr.no | B66: Date | D66: Company | E66: Rec | F66: Rec Price | G66: Point of Review | H66: Close Rate | I66: Target | J66: Remark | K66: Profit / Loss per Share | L66: Gain / Loss % | M66: Status | N66: Closed Date
A67: 1 | B67: 2013-11-01 | D67: L&T Finance Holding | E67: Accu | F67: 82.00 | G67: - | H67: 100 | I67: 100.00 | J67: Target Achieved | K67: =H67-F67 -> 18.00 | L67: =K67/F67 -> 21.95% | M67: Successful | N67: 2016-10-14
A68: 2 | B68: 2014-06-04 | D68: Finolex Inds | E68: Buy | F68: 257.00 | G68: - | H68: 300 | I68: 300.00 | J68: Target Achieved | K68: 43.00 | L68: 16.73% | M68: Successful | N68: 2014-07-02
A69: 3 | B69: 2014-07-08 | D69: JK Cement | E69: Buy | F69: 393.00 | G69: - | H69: 468 | I69: 468.00 | J69: Target Achieved | K69: 75.00 | L69: 19.08% | M69: Successful | N69: 2014-08-12
A70: 4 | B70: 2014-08-06 | D70: Finolex Cables | E70: Buy | F70: 205.00 | G70: - | H70: 275 | I70: 250.00 | J70: Target Achieved | K70: 70.00 | L70: 34.15% | M70: Successful | N70: 2014-11-19
A71: 5 | B71: 2014-09-04 | D71: Exide Inds | E71: Buy | F71: 162.00 | G71: - | H71: 190 | I71: 190.00 | J71: Target Achieved | K71: 28.00 | L71: 17.28% | M71: Successful | N71: 2015-01-02
A72: 6 | B72: 2014-09-04 | D72: Deepak Nitrite | E72: Buy | F72: 75.00 | G72: - | H72: 91.5 | I72: 95-100 | J72: Profit of Rs.16.50/- | K72: 16.50 | L72: 22.00% | M72: Successful | N72: 2014-11-11
A73: 7 | B73: 2014-10-01 | D73: Mercks | E73: Buy | F73: 850.00 | G73: - | H73: 982.5 | I73: 1050.00 | J73: Profit of Rs.132.50/- | K73: 132.50 | L73: 15.59% | M73: Successful | N73: 2015-02-04
A74: 8 | B74: 2014-10-01 | D74: Grindwell Norton | E74: Buy | F74: 475.00 | G74: - | H74: 515 | I74: 600.00 | J74: Profit of Rs.40/- | K74: 40.00 | L74: 8.42% | M74: Successful | N74: 2014-10-27
A75: 9 | B75: 2014-10-01 | D75: Snowman Logistics | E75: Buy | F75: 86.00 | G75: - | H75: 99 | I75: 140.00 | J75: Profit of Rs.13.00/- | K75: 13.00 | L75: 15.12% | M75: Successful | N75: 2014-10-27
A76: 10 | B76: 2014-10-14 | D76: Birla Corp | E76: Buy | F76: 496.60 | G76: - | H76: 621 | I76: 580.00 | J76: Target Achieved | K76: 124.40 | L76: 25.05% | M76: Successful | N76: 2016-08-23
A77: 11 | B77: 2014-10-14 | D77: Ultratech Cem | E77: Buy | F77: 2481.90 | G77: - | H77: 2840 | I77: 2870.00 | J77: Profit of Rs.358.10/- | K77: 358.10 | L77: 14.43% | M77: Successful | N77: 2015-01-13
A78: 12 | B78: 2014-10-16 | D78: Sintex Inds | E78: Buy | F78: 84.50 | G78: - | H78: 93 | I78: 110.00 | J78: Profit of Rs.8.50/- | K78: 8.50 | L78: 10.06% | M78: Successful | N78: 2014-10-27
A79: 13 | B79: 2014-10-16 | D79: HSIL | E79: Buy | F79: 401.00 | G79: - | H79: 428 | I79: 450.00 | J79: Profit of Rs.27.00/- | K79: 27.00 | L79: 6.73% | M79: Successful | N79: 2015-01-16
A80: 14 | B80: 2014-10-16 | D80: Eveready Inds | E80: Buy | F80: 101.00 | G80: - | H80: 112 | I80: 120.00 | J80: Profit of Rs.11.00/- | K80: 11.00 | L80: 10.89% | M80: Successful | N80: 2014-10-27
A81: 15 | B81: 2014-11-11 | D81: Pennar Inds | E81: Buy | F81: 59.00 | G81: - | H81: 76 | I81: 76.00 | J81: Target Achieved | K81: 17.00 | L81: 28.81% | M81: Successful | N81: 2017-10-24
A82: 16 | B82: 2014-11-11 | D82: Snowman Logistics | E82: Buy | F82: 99.00 | G82: - | H82: 120 | I82: 120.00 | J82: Profit of Rs.21/- | K82: 21.00 | L82: 21.21% | M82: Successful | N82: 2014-11-17
A83: 17 | B83: 2014-11-13 | D83: Dharamsi Morarji Chem | E83: Buy | F83: 22.00 | G83: - | H83: 33.55 | I83: 32.00 | J83: Profit of Rs 11.55/- | K83: 11.55 | L83: 52.50% | M83: Successful | N83: 2015-07-03
A84: 18 | B84: 2014-12-03 | D84: Tatachem | E84: Buy | F84: 440.00 | G84: - | H84: 520 | I84: 520.00 | J84: Profit of Rs 80.00/- | K84: 80.00 | L84: 18.18% | M84: Successful | N84: 2015-07-23
A85: 19 | B85: 2014-12-03 | D85: Advanta | E85: Buy | F85: 360.00 | G85: - | H85: 427 | I85: 425.00 | J85: Profit of Rs.67.00/- | K85: 67.00 | L85: 18.61% | M85: Successful | N85: 2015-02-23
A86: 20 | B86: 2015-01-08 | D86: GDL | E86: Buy | F86: 360.00 | G86: - | H86: 455 | I86: 420.00 | J86: Profit of Rs.95.00/- | K86: 95.00 | L86: 26.39% | M86: Successful | N86: 2015-01-20
A87: 21 | B87: 2015-01-08 | D87: NRB Bearing | E87: Buy | F87: 130.00 | H87: 175.5 | I87: 165.00 | J87: Profit of Rs 45.50/- | K87: 45.50 | L87: 35.00% | M87: Successful | N87: 2017-12-19
A88: 22 | B88: 2015-02-05 | D88: GSFC | E88: Accu | F88: 98.00 | H88: 120 | I88: 120.00 | J88: Target Achieved | K88: 22.00 | L88: 22.45% | M88: Successful | N88: 2017-01-18
A89: 23 | B89: 2015-02-05 | D89: Sundrmfast | E89: Accu | F89: 196.00 | H89: 262 | I89: 255.00 | J89: Target Achieved | K89: 66.00 | L89: 33.67% | M89: Successful | N89: 2016-08-17
A90: 24 | B90: 2015-03-04 | D90: GPPL | E90: Accu | F90: 235 | H90: 77.00 | I90: 280-285 | J90: Loss of Rs.158/- | K90: -158.00 | L90: -67.23% | M90: Unsuccessful | N90: 2019-02-26
A91: 25 | B91: 2015-03-04 | D91: ORIENTCEM | E91: Accu | F91: 185.00 | H91: 224 | I91: 220-225 | J91: Target Achieved | K91: 39.00 | L91: 21.08% | M91: Successful | N91: 2016-10-04
A92: 26 | B92: 2015-03-27 | D92: PFS | E92: Accu | F92: 49.5 | H92: 15.85 | I92: 67.00 | J92: Loss of Rs.33.65/- | K92: -33.65 | L92: -68% | M92: Unsuccessful | N92: 2019-06-11
A93: 27 | B93: 2015-03-30 | D93: Walchandnagar Ind Ltd | E93: Accu | F93: 183.50 | H93: 219 | I93: 218.00 | J93: Profit of Rs.35.50/- | K93: 35.50 | L93: 19.35% | M93: Successful | N93: 2015-04-09
A94: 28 | B94: 2015-04-20 | D94: Kalpataru Power Transmission Ltd | E94: Accu | F94: =(227+237)/2 -> 232.00 | H94: 298 | I94: 298.00 | J94: Target Achieved | K94: 66.00 | L94: 28.45% | M94: Successful | N94: 2017-03-29
A95: 29 | B95: 2015-05-04 | D95: Mastek Ltd | E95: Buy | F95: 385.00 | H95: =212.5+331 -> 543.5 | I95: 510.00 | J95: Profit of Rs 158.50/- | K95: 158.50 | L95: 41.17% | M95: Successful | N95: 2015-08-19
A96: 30 | B96: 2015-05-04 | D96: Suprajit Eng | E96: Buy | F96: 115.50 | H96: 146 | I96: 142.00 | J96: Profit of Rs 30.50/- | K96: 30.50 | L96: 26.41% | M96: Successful | N96: 2015-07-17
A97: 31 | B97: 2015-05-27 | D97: TCI | E97: Buy | F97: 237.50 | H97: 279.5 | I97: 278.00 | J97: Target Achieved | K97: 42.00 | L97: 17.68% | M97: Successful | N97: 2015-08-06
A98: 32 | B98: 2015-06-19 | D98: HSIL | E98: Accu | F98: 340.00 | H98: 448 | I98: 448.00 | J98: Target Achieved | K98: 108.00 | L98: 31.76% | M98: Successful | N98: 2017-10-10
A99: 33 | B99: 2015-07-06 | D99: Capital First | E99: Accu | F99: 390.00 | H99: 460 | I99: 460.00 | J99: Target Achieved | K99: =H99-F99 -> 70.00 | L99: =K99/F99 -> 17.95% | M99: Successful | N99: 2016-04-18
A100: 34 | B100: 2015-07-10 | D100: Dolphin OffShore | E100: Accu | F100: 122.5 | H100: 61.00 | I100: 172.00 | J100: Loss of Rs.61.50/- | K100: -61.50 | L100: -50.20% | M100: Unsuccessful | N100: 2018-08-21
A101: 35 | B101: 2015-08-03 | D101: Allcargo logistics | E101: Accu | F101: 297.50 | H101: 350 | I101: 360.00 | J101: Profit of Rs 52.50/- | K101: 52.50 | L101: 17.65% | M101: Successful | N101: 2015-08-16
A102: 36 | B102: 2015-08-03 | D102: Camline Fine | E102: Accu | F102: 115.50 | H102: 149 | I102: 140.00 | J102: Profit of Rs 33.50/- | K102: 33.50 | L102: 29.00% | M102: Successful | N102: 2017-01-05
A103: 37 | B103: 2015-09-04 | D103: TCI | E103: Accu | F103: 226.00 | H103: 292 | I103: 292.00 | J103: Target Achieved | K103: 66.00 | L103: 29.20% | M103: Successful | N103: 2015-10-09
A104: 38 | B104: 2015-09-07 | D104: Kalpataru Power Transmission Ltd | E104: Accu | F104: 232.50 | H104: 312.5 | I104: 310.00 | J104: Target Achieved | K104: 80.00 | L104: 34.41% | M104: Successful | N104: 2017-03-29
A105: 39 | B105: 2015-09-21 | D105: LLOYD ELECTRIC & ENG LTD | E105: Accu | F105: 196.50 | H105: 238 | I105: 238.00 | J105: Target Achieved | K105: 41.50 | L105: 21.12% | M105: Successful | N105: 2015-10-14
A106: 40 | B106: 2015-09-24 | D106: L&T Finance Holding | E106: Accu | F106: 65.00 | H106: 82 | I106: 82.00 | J106: Target Achieved | K106: 17.00 | L106: 26.15% | M106: Successful | N106: 2016-07-27
A107: 41 | B107: 2015-10-14 | D107: KEC International ltd | E107: Accu | F107: 144.00 | H107: 182.5 | I107: 181.00 | J107: Target Achieved | K107: 38.50 | L107: 26.74% | M107: Successful | N107: 2017-03-23
A108: 42 | B108: 2015-10-14 | D108: Gruh Finance | E108: Accu | F108: 264.00 | H108: 311 | I108: 311.00 | J108: Target Achieved | K108: 47.00 | L108: 17.80% | M108: Successful | N108: 2016-08-22
A109: 43 | B109: 2015-11-10 | D109: Pidilitind | E109: Buy | F109: 549.50 | H109: 630 | I109: 630.00 | J109: Target Achieved | K109: 80.50 | L109: 14.65% | M109: Successful | N109: 2016-02-19
A110: 44 | B110: 2015-12-04 | D110: Zensar Technology | E110: Accu | F110: 1027.50 | H110: 1315 | I110: 1250.00 | J110: Target Achieved | K110: 287.50 | L110: 27.98% | M110: Successful | N110: 2018-05-24
A111: 45 | B111: 2015-12-29 | D111: Vinati Organics Ltd | E111: Accu | F111: 465.00 | H111: 540 | I111: 540.00 | J111: Target Achieved | K111: 75.00 | L111: 16.13% | M111: Successful | N111: 2016-06-09
A112: 46 | B112: 2016-01-11 | D112: GSFC | E112: Buy | F112: 81.00 | H112: 110 | I112: 110.00 | J112: Target Achieved | K112: 29.00 | L112: 35.80% | M112: Successful | N112: 2017-01-10
A113: 47 | B113: 2016-01-13 | D113: SSWL | E113: Buy | F113: 417.50 | H113: 547 | I113: 535.00 | J113: Target Achieved | K113: 129.50 | L113: 31.02% | M113: Successful | N113: 2016-07-27
A114: 48 | B114: 2016-02-08 | D114: Persistent System Ltd | E114: Accu | F114: 650.00 | H114: 800 | I114: 800.00 | J114: Target Achieved | K114: 150.00 | L114: 23.08% | M114: Successful | N114: 2018-02-23
A115: 49 | B115: 2016-03-04 | D115: UPL | E115: Accu | F115: 437.50 | H115: 504.5 | I115: 522.00 | J115: Profit of Rs.67/- | K115: 67.00 | L115: 15.31% | M115: Successful | N115: 2016-04-20
A116: 50 | B116: 2016-03-09 | D116: Ashoka Buildcon Ltd | E116: Accu | F116: 189.50 | H116: 218 | I116: 218.00 | J116: Target Achieved | K116: 28.50 | L116: 15.04% | M116: Successful | N116: 2017-10-26
A117: 51 | B117: 2016-04-11 | D117: PTC INDIA FIN SERV LTD | E117: Accu | F117: 36.5 | H117: 15.85 | I117: 60.00 | J117: Loss of Rs.20.65/- | K117: -20.65 | L117: -56.58% | M117: Unsuccessful | N117: 2019-06-11
A118: 52 | B118: 2016-04-12 | D118: CAMLINFINE $ | E118: Accu | F118: 93.00 | H118: 149 | I118: 140.00 | J118: Profit of Rs 56/- | K118: 56.00 | L118: 60.22% | M118: Successful | N118: 2017-01-05
A119: 53 | B119: 2016-04-12 | D119: Greaves Cotton Ltd. | E119: Accu | F119: 130.00 | H119: 150 | I119: 150-155 | J119: Target Achieved | K119: 20.00 | L119: 15.38% | M119: Successful | N119: 2016-07-13
A120: 54 | B120: 2016-04-13 | D120: DHFL | E120: Accu | F120: 196.00 | H120: 299 | I120: 299.00 | J120: Target Achieved | K120: 103.00 | L120: 52.55% | M120: Successful | N120: 2016-09-07
A121: 55 | B121: 2016-04-13 | D121: Magma | E121: Accu | F121: 88.00 | H121: 103 | I121: 103.00 | J121: Target Achieved | K121: 15.00 | L121: 17.05% | M121: Successful | N121: 2016-06-09
A122: 56 | B122: 2016-05-02 | D122: KEC International ltd $ | E122: Accu | F122: 127.50 | H122: 148 | I122: 148-150 | J122: Target Achieved | K122: =H122-F122 -> 20.50 | L122: =K122/F122 -> 16.08% | M122: Successful | N122: 2016-07-13
A123: 57 | B123: 2016-05-03 | D123: Mindtree | E123: Accu | F123: 675.00 | H123: 815 | I123: 790-800 | J123: Target Achieved | K123: =H123-F123 -> 140.00 | L123: =K123/F123 -> 20.74% | M123: Successful | N123: 2018-02-23
A124: 58 | B124: 2016-06-01 | D124: Atulauto | E124: Accu | F124: 500 | H124: 232.50 | I124: 565-570 | J124: Loss of Rs.267.50 /- | K124: =H124-F124 -> -267.50 | L124: =K124/F124 -> -53.50% | M124: Unsuccessful | N124: 2019-09-27
A125: 59 | B125: 2016-06-06 | D125: TRITURBINE | E125: Accu | F125: 110.00 | H125: 126.5 | I125: 125.00 | J125: Profit of Rs.16.50/- | K125: =H125-F125 -> 16.50 | L125: =K125/F125 -> 15.00% | M125: Successful | N125: 2016-07-01
A126: 60 | B126: 2016-06-17 | D126: Pennar Industries Ltd | E126: Accu | F126: 44.00 | H126: 69.5 | I126: 69.50 | J126: Profit of Rs.25.50/- | K126: =H126-F126 -> 25.50 | L126: =K126/F126 -> 57.95% | M126: Successful | N126: 2017-08-30
A127: 61 | B127: 2016-06-28 | D127: EVEREADY | E127: Accu | F127: 262.50 | H127: 340 | I127: 333.00 | J127: Profit of Rs.77.50/- | K127: 77.50 | L127: 29.52% | M127: Successful | N127: 2017-10-09
A128: 62 | B128: 2016-06-28 | D128: FIEMIND | E128: Accu | F128: 840.00 | H128: 1230 | I128: 1230.00 | J128: Target Achieved | K128: 390.00 | L128: 46.43% | M128: Successful | N128: 2016-10-06
A129: 63 | B129: 2016-07-05 | D129: Bajaj Corp Ltd | E129: Accu | F129: 395 | H129: =(468.5+342.5)/2 -> 405.50 | I129: 510.00 | J129: Profit of Rs.10.50/- | K129: =H129-F129 -> 10.50 | L129: =K129/F129 -> 3% | M129: Neutral | N129: 2019-05-21
A130: 64 | B130: 2016-08-02 | D130: GPPL $ | E130: Buy | F130: =169.5-12.8 -> 156.7 | H130: 77.00 | I130: 198-200 | J130: Loss of Rs.79.7/- | K130: -79.70 | L130: -50.86% | M130: Unsuccessful | N130: 2019-02-26
A131: 65 | B131: 2016-08-04 | D131: WONDERLA HOLIDAYS LTD | E131: Accu | F131: 400 | H131: 305.00 | I131: 475.00 | J131: Loss of Rs.95/- | K131: -95.00 | L131: -23.75% | M131: Unsuccessful | N131: 2019-05-21
A132: 66 | B132: 2016-08-11 | D132: CAMLINFINE | E132: Accu | F132: 86.50 | H132: 130 | I132: 130.00 | J132: Profit of Rs.43.50/- | K132: 43.50 | L132: 50.29% | M132: Successful | N132: 2017-12-22
A133: 67 | B133: 2016-08-18 | D133: GRANULES | E133: Accu | F133: 133.5 | H133: 126.50 | I133: 178.00 | J133: Exit | K133: -7.00 | L133: -5.24% | M133: Unsuccessful | N133: 2016-09-02
A134: 68 | B134: 2016-08-31 | D134: VA TECH WABAG | E134: Accu | F134: 560.00 | H134: 725 | I134: 725.00 | J134: Target Achieved | K134: 165.00 | L134: 29.46% | M134: Successful | N134: 2016-03-27
A135: 69 | B135: 2016-09-01 | D135: SKIPPER LIMITED | E135: Accu | F135: 160.50 | H135: 210 | I135: 210.00 | J135: Target Achieved | K135: 49.50 | L135: 30.84% | M135: Successful | N135: 2017-05-16
A136: 70 | B136: 2016-10-03 | D136: IFBIND | E136: Accu | F136: 430.00 | H136: 596 | I136: 575.00 | J136: Profit of Rs.166/- | K136: 166.00 | L136: 38.60% | M136: Successful | N136: 2017-02-03
A137: 71 | B137: 2016-10-14 | D137: ASIANTILES | E137: Accu | F137: 280.00 | H137: 345 | I137: 345.00 | J137: Target Achieved | K137: =H137-F137 -> 65.00 | L137: =K137/F137 -> 23.21% | M137: Successful | N137: 2017-03-20
A138: 72 | B138: 2016-10-14 | D138: DEEPIND | E138: Accu | F138: 245.00 | H138: 325.5 | I138: 330.00 | J138: Profit of Rs.80.5/- | K138: 80.50 | L138: =K138/F138 -> 32.86% | M138: Successful | N138: 2017-02-03
A139: 73 | B139: 2016-10-17 | D139: DCBBANK | E139: Accu | F139: 125.00 | H139: 160 | I139: 160.00 | J139: Target Achieved | K139: 35.00 | L139: 28.00% | M139: Successful | N139: 2017-03-09
A140: 74 | B140: 2016-10-17 | D140: ORIENTREF | E140: Accu | F140: 114.00 | H140: 145 | I140: 145.00 | J140: Target Achieved | K140: 31.00 | L140: =K140/F140 -> 27.19% | M140: Successful | N140: 2017-05-04
A141: 75 | B141: 2016-10-17 | D141: GANECOS | E141: Accu | F141: 212.00 | H141: 280 | I141: 276.00 | J141: Profit of Rs.68/- | K141: 68.00 | L141: =K141/F141 -> 32.08% | M141: Successful | N141: 2017-05-03
A142: 76 | B142: 2016-11-04 | D142: NBCC | E142: Accu | F142: 155.00 | H142: 210 | I142: 210.00 | J142: Profit of Rs.55/- | K142: 55.00 | L142: =K142/F142 -> 35.48% | M142: Successful | N142: 2017-07-28
A143: 77 | B143: 2016-12-06 | D143: PRECAM | E143: Accu | F143: 150.5 | H143: 72.50 | I143: 174.00 | J143: Loss of Rs.78/- | K143: -78.00 | L143: -51.83% | M143: Unsuccessful | N143: 2018-08-21
A144: 78 | B144: 2016-12-08 | D144: INFRATEL | E144: Accu | F144: 380.00 | H144: 478 | I144: 468.00 | J144: Target Achieved | K144: =H144-F144 -> 98.00 | L144: =K144/F144 -> 25.79% | M144: Successful | N144: 2017-10-17
A145: 79 | B145: 2016-12-30 | D145: GODREJPROP | E145: Accu | F145: 305.00 | H145: 375 | I145: 375.00 | J145: Target Achieved | K145: =H145-F145 -> 70.00 | L145: =K145/F145 -> 22.95% | M145: Successful | N145: 2017-02-02
A146: 80 | B146: 2017-01-04 | D146: DEEPAKNTR | E146: Accu | F146: 99.50 | H146: 158 | I146: 158.00 | J146: Target Achieved | K146: =H146-F146 -> 58.50 | L146: =K146/F146 -> 58.79% | M146: Successful | N146: 2017-06-12
A147: 81 | B147: 2017-01-04 | D147: DEEPAKNTR | E147: Accu | F147: 99.50 | H147: 158 | I147: 158.00 | J147: Target Achieved | K147: 58.50 | L147: 58.79% | M147: Successful | N147: 2017-06-12
A148: 82 | B148: 2017-02-20 | D148: RECLTD | E148: Accu | F148: 140.50 | H148: 220 | I148: 220.00 | J148: Target Achieved | K148: =H148-F148 -> 79.50 | L148: =K148/F148 -> 56.58% | M148: Successful | N148: 2017-05-09
A149: 83 | B149: 2017-02-20 | D149: SUBROS | E149: Accu | F149: 202.50 | H149: 234 | I149: 234.00 | J149: Target Achieved | K149: 31.50 | L149: 15.56% | M149: Successful | N149: 2017-04-11
A150: 84 | B150: 2017-03-24 | D150: VRLLOG | E150: Accu | F150: 300.50 | H150: 417.5 | I150: 420.00 | J150: Profit of Rs.117/- | K150: =H150-F150 -> 117.00 | L150: =K150/F150 -> 38.94% | M150: Successful | N150: 2017-12-01
A151: 85 | B151: 2017-03-24 | D151: FIEMIND | E151: Accu | F151: 850.00 | H151: 1042.5 | I151: 1023.00 | J151: Profit of Rs 192.50/- | K151: 192.50 | L151: 22.65% | M151: Successful | N151: 2017-04-05
A152: 86 | B152: 2017-04-05 | D152: RATNAMANI | E152: Accu | F152: 785.00 | H152: 930 | I152: 920.00 | J152: Profit of Rs.145/- | K152: =H152-F152 -> 145.00 | L152: =K152/F152 -> 18.47% | M152: Successful | N152: 2017-08-29
A153: 87 | B153: 2017-04-06 | D153: ZEEMEDIA | E153: Accu | F153: 40 | H153: 13.10 | I153: 60.00 | J153: Loss of Rs.26.9/- | K153: -26.90 | L153: -67.25% | M153: Unsuccessful | N153: 2018-02-07
A154: 88 | B154: 2017-04-12 | D154: DABUR | E154: Accu | F154: 289.50 | H154: 354 | I154: 360.00 | J154: Profit of Rs.64.5/- | K154: =H154-F154 -> 64.50 | L154: =K154/F154 -> 22.28% | M154: Successful | N154: 2017-11-01
A155: 89 | B155: 2017-04-20 | D155: KPRMILL | E155: Accu | F155: 700.00 | H155: 840 | I155: 840.00 | J155: Profit of Rs.140/- | K155: 140.00 | L155: 20.00% | M155: Successful | N155: 2017-06-07
A156: 90 | B156: 2017-06-01 | D156: ESSELPACK | E156: Accu | F156: 130.00 | H156: 144.25 | I156: 170.00 | J156: Profit of Rs.14.25/- | K156: 14.25 | L156: 10.96% | M156: Successful | N156: 2019-07-29
A157: 91 | B157: 2017-06-15 | D157: KEI | E157: Accu | F157: 214.50 | H157: 262 | I157: 262.00 | J157: Profit of Rs.47.5/- | K157: 47.50 | L157: 22.14% | M157: Successful | N157: 2017-08-30
A158: 92 | B158: 2017-07-17 | D158: MAYURUNIQ | E158: Accu | F158: 370.00 | H158: 447.5 | I158: 450.00 | J158: Target Achieved | K158: 77.50 | L158: 20.95% | M158: Successful | N158: 2017-10-27
A159: 93 | B159: 2017-07-27 | D159: RAMCOCEM | E159: Accu | F159: 657.50 | H159: 825 | I159: 820.00 | J159: Target Achieved | K159: 167.50 | L159: 25.48% | M159: Successful | N159: 2017-12-21
A160: 94 | B160: 2017-08-17 | D160: FINPIPE | E160: Accu | F160: 605.00 | H160: 750 | I160: 750.00 | J160: Profit of Rs.145/- | K160: 145.00 | L160: 23.97% | M160: Successful | N160: 2017-10-19
A161: 95 | B161: 2017-09-01 | D161: SHK | E161: Accu | F161: 255 | H161: 217.25 | I161: 320.00 | J161: Loss of Rs.37.75/- | K161: -37.75 | L161: -15% | M161: Unsuccessful | N161: 2019-07-15
A162: 96 | B162: 2017-09-19 | D162: SKIPPER | E162: Accu | F162: 215.00 | H162: 258 | I162: 258.00 | J162: Target Achieved | K162: 43.00 | L162: 20.00% | M162: Successful | N162: 2017-11-01
A163: 97 | B163: 2017-09-19 | D163: SKIPPER | E163: Accu | F163: 215.00 | H163: 258 | I163: 258.00 | J163: Target Achieved | K163: 43.00 | L163: 20.00% | M163: Successful | N163: 2017-11-01
A164: 98 | B164: 2017-09-20 | D164: CAMLINFINE$ | E164: Accu | F164: 75.00 | H164: 90 | I164: 90.00 | J164: Profit of Rs.15.00/- | K164: =H164-F164 -> 15.00 | L164: =K164/F164 -> 20.00% | M164: Successful | N164: 2017-10-11
A165: 99 | B165: 2017-10-03 | D165: GNA | E165: Accu | F165: 315.00 | H165: 392 | I165: 384.00 | J165: Profit of Rs.77/- | K165: 77.00 | L165: 24.44% | M165: Successful | N165: 2017-10-09
A166: 100 | B166: 2017-10-05 | D166: NOCIL | E166: Accu | F166: 145.00 | H166: 179 | I166: 180.00 | J166: Profit of Rs.34/- | K166: 34.00 | L166: 23.45% | M166: Successful | N166: 2017-10-17
A167: 101 | B167: 2017-10-06 | D167: CENTURYPLY | E167: Accu | F167: 256.00 | H167: 323 | I167: 320.00 | J167: Target Achieved | K167: 67.00 | L167: 26.17% | M167: Successful | N167: 2017-11-28
A168: 102 | B168: 2017-10-09 | D168: EIHOTEL | E168: Accu | F168: 137.50 | H168: 184 | I168: 183.00 | J168: Profit of Rs.46.5/- | K168: 46.50 | L168: 33.82% | M168: Successful | N168: 2018-01-08
A169: 103 | B169: 2017-10-10 | D169: NRBBEARING | E169: Accu | F169: 125.50 | H169: 158 | I169: 155.00 | J169: Profit of Rs.32.5/- | K169: 32.50 | L169: 25.90% | M169: Successful | N169: 2017-11-28
A170: 104 | B170: 2017-10-10 | D170: BOROSIL | E170: Accu | F170: 895.00 | H170: 1122.5 | I170: 1078.00 | J170: Profit of Rs.227.5/- | K170: 227.50 | L170: 25.42% | M170: Successful | N170: 2018-01-17
A171: 105 | B171: 2017-10-12 | D171: CYIENT | E171: Accu | F171: 525.00 | H171: 629 | I171: 629.00 | J171: Target Achieved | K171: 104.00 | L171: 19.81% | M171: Successful | N171: 2018-01-19
A172: 106 | B172: 2017-11-07 | D172: HATSUN | E172: Accu | F172: 740.00 | H172: 892.5 | I172: 900.00 | J172: Profit of Rs.152.5/- | K172: =H172-F172 -> 152.50 | L172: =K172/F172 -> 20.61% | M172: Successful | N172: 2017-11-13
A173: 107 | B173: 2017-12-04 | D173: SANGHIIND | E173: Accu | F173: 118.50 | H173: 143.5 | I173: 145.00 | J173: Profit of Rs.25/- | K173: =H173-F173 -> 25.00 | L173: =K173/F173 -> 21.10% | M173: Successful | N173: 2017-12-28
A174: 108 | B174: 2017-12-21 | D174: KAJARIACER | E174: Accu | F174: 715 | H174: 500.00 | I174: 872.00 | J174: Loss of Rs.215/- | K174: =H174-F174 -> -215.00 | L174: =K174/F174 -> -30.07% | M174: Unsuccessful | N174: 2019-07-24
A175: 109 | B175: 2017-12-29 | D175: GNA | E175: Accu | F175: 435.00 | H175: 542.5 | I175: 539.00 | J175: Target Achieved | K175: 107.50 | L175: 24.71% | M175: Successful | N175: 2018-04-16
A176: 110 | B176: 2017-12-29 | D176: ZENSARTECH | E176: Accu | F176: 885.00 | H176: 1090 | I176: 1084.00 | J176: Target Achieved | K176: 205.00 | L176: 23.16% | M176: Successful | N176: 2018-04-23
A177: 111 | B177: 2018-04-02 | D177: EVERESTIND | E177: Accu | F177: 478.50 | H177: 442 | I177: 613.00 | J177: Loss of Rs.36.50 /- | K177: =H177-F177 -> -36.50 | L177: =K177/F177 -> -7.63% | M177: Unsuccessful | N177: 2019-10-24
A178: 112 | B178: 2018-04-04 | D178: GPPL$ | E178: Accu | F178: =141.5-7.3 -> 134.2 | H178: 77.00 | I178: 180.00 | J178: Loss of Rs.57.2/- | K178: =H178-F178 -> -57.20 | L178: =K178/F178 -> -42.62% | M178: Unsuccessful | N178: 2019-02-26
A179: 113 | B179: 2018-04-19 | D179: MANPASAND | E179: Accu | F179: 430 | H179: 220.00 | I179: 537.00 | J179: Loss of Rs.210/- | K179: =H179-F179 -> -210.00 | L179: =K179/F179 -> -48.84% | M179: Unsuccessful | N179: 2018-06-01
A180: 114 | B180: 2018-04-30 | D180: HEIDELBERG | E180: Accu | F180: 153.5 | H180: 196 | I180: 196.00 | J180: Profit of Rs.42.50/- | K180: =H180-F180 -> 42.50 | L180: =K180/F180 -> 27.69% | M180: Successful | N180: 2019-05-20
A181: 115 | B181: 2018-07-25 | D181: ZEEMEDIA | E181: Accu | F181: 27.5 | H181: 13.10 | I181: 60.00 | J181: Loss of Rs.14.40/- | K181: -14.40 | L181: -52.36% | M181: Unsuccessful | N181: 2018-02-07
A182: 116 | B182: 2018-08-06 | D182: GABRIEL | E182: Accu | F182: 148.5 | H182: 102 | I182: 182.00 | J182: Loss of Rs.46.50/- | K182: =H182-F182 -> -46.50 | L182: =K182/F182 -> -31.31% | M182: Unsuccessful | N182: 2019-07-15
A183: 117 | B183: 2018-08-23 | D183: INDIANHUME | E183: Accu | F183: 285 | H183: 355 | I183: 364.00 | J183: Profit of Rs.70/- | K183: 70.00 | L183: 24.56% | M183: Successful | N183: 2018-12-21
A184: 118 | B184: 2018-08-29 | D184: GRINDWELL | E184: Accu | F184: 525 | H184: 585 | I184: 635.00 | J184: Profit of Rs.60- | K184: =H184-F184 -> 60.00 | L184: =K184/F184 -> 11.43% | M184: Successful | N184: 2019-07-16
A185: 119 | B185: 2018-10-22 | D185: FINPIPE | E185: Accu | F185: 475 | H185: 574 | I185: 570.00 | J185: Target Achieved | K185: 99.00 | L185: 20.84% | M185: Successful | N185: 2018-10-30
A186: 120 | B186: 2018-10-24 | D186: GULFOILLUB | E186: Accu | F186: 707.5 | H186: 872 | I186: 872.00 | J186: Target Achieved | K186: 164.50 | L186: 23.25% | M186: Successful | N186: 2019-01-17
A187: 121 | B187: 2018-10-25 | D187: DBCORP | E187: Accu | F187: 162 | H187: 204 | I187: 209.00 | J187: Profit of Rs.42/- | K187: 42.00 | L187: 25.93% | M187: Successful | N187: 2019-03-15
A188: 122 | B188: 2018-10-26 | D188: RITES | E188: Accu | F188: 240 | H188: 297 | I188: 297.00 | J188: Target Achieved | K188: 57.00 | L188: 23.75% | M188: Successful | N188: 2018-11-13
A189: 123 | B189: 2018-12-05 | D189: BRIGADE | E189: Accu | F189: 202.5 | H189: 255 | I189: 252.00 | J189: Target Achieved | K189: 52.50 | L189: 25.93% | M189: Successful | N189: 2019-03-18 | R189: V
A190: 124 | B190: 2018-12-31 | D190: JKCEMENT | E190: Accu | F190: 710 | H190: 866 | I190: 866.00 | J190: Target Achieved | K190: 156.00 | L190: 21.97% | M190: Successful | N190: 2019-03-29 | R190: V
A191: 125 | B191: 2019-02-26 | D191: MARICO | E191: Accu | F191: 337.25 | H191: 398.5 | I191: 411.00 | J191: Profit of Rs.61.25/- | K191: 61.25 | L191: 18.16% | M191: Successful | N191: 2019-10-22 | R191: V
A192: 126 | B192: 2019-04-04 | D192: ITDCEM | E192: Accu | F192: 130 | H192: 65 | I192: 158.00 | J192: Loss of Rs.65 /- | K192: -65.00 | L192: -50.00% | M192: Unsuccessful | N192: 2019-09-18 | R192: K
A193: 127 | B193: 2017-10-09 | D193: RECLTD | E193: Accu | F193: 141.5 | H193: 183.5 | I193: 210.00 | J193: Profit of Rs.42/- | K193: 42.00 | L193: 29.68% | M193: Successful | N193: 2017-11-03 | R193: K
A194: 128 | B194: 2017-12-05 | D194: ALLCARGO | E194: Accu | F194: 172.00 | H194: 155.25 | I194: 230.00 | J194: Loss of Rs.16.75/- | K194: -16.75 | L194: -9.74% | M194: Unsuccessful | N194: 2019-11-18 | R194: K
A195: 129 | B195: 2018-10-25 | D195: GODREJCP | E195: Accu | F195: 698.5 | H195: 890 | I195: 890.00 | J195: Profit of Rs.191.50/- | K195: 191.50 | L195: 27.42% | M195: Successful | N195: 2021-05-12 | R195: V
A196: 130 | B196: 2017-05-22 | D196: GREAVESCOT | E196: Accu | F196: 127.6 | H196: 138 | I196: 190.00 | J196: Profit of Rs.10.40 | K196: 10.40 | L196: 8.15% | M196: Successful | N196: 2019-11-05 | R196: K
A197: 131 | B197: 2018-02-27 | D197: MOLDTKPAC | E197: Accu | F197: 317 | H197: 382.5 | I197: 398.00 | J197: Profit of Rs.65.5 | K197: 65.50 | L197: 20.66% | M197: Successful | N197: 2021-02-11 | R197: K
A198: 132 | B198: 2018-03-05 | D198: LICHSGFIN | E198: Accu | F198: =510-14.4 -> 495.60 | H198: 350 | I198: 672.00 | J198: Loss of Rs.145.60/- | K198: -145.60 | L198: -29.38% | M198: Unsuccessful | N198: 2020-02-26 | R198: V
A199: 133 | B199: 2018-05-17 | D199: PHILIPCARB | E199: Accu | F199: 230.30 | H199: 102.5 | I199: 348.00 | J199: Loss of Rs.127.80/- | K199: -127.80 | L199: -55.49% | M199: Unsuccessful | N199: 2020-03-06 | R199: V
A200: 134 | B200: 2018-06-07 | D200: KEC | E200: Accu | F200: =342.5-5.1 -> 337.4 | H200: 412.5 | I200: 439.00 | J200: Profit of Rs.75.10 | K200: 75.10 | L200: 22.26% | M200: Successful | N200: 2021-02-03 | R200: K
A201: 135 | B201: 2018-07-04 | D201: ASHOKLEY | E201: Accu | F201: =127.5-5.53 -> 121.97 | H201: 122.50 | I201: 170.00 | J201: Profit of Rs.0.53/- | K201: 0.53 | L201: 0% | M201: Neutral | N201: 2021-08-23 | R201: V
A202: 136 | B202: 2018-07-13 | D202: FCONSUMER | E202: Accu | F202: 46.50 | H202: 17 | I202: 59.00 | J202: Loss of Rs.29.50/- | K202: -29.50 | L202: -63.44% | M202: Unsuccessful | N202: 2020-02-26 | R202: V
A203: 137 | B203: 2018-10-23 | D203: JKPAPER | E203: Accu | F203: 156.5 | H203: 207.5 | I203: 191.00 | J203: Target Achieved | K203: 51.00 | L203: 32.59% | M203: Successful | N203: 2021-06-22 | R203: V
A204: 138 | B204: 2018-12-05 | D204: CCL | E204: Accu | F204: 259.5 | H204: 320 | I204: 320.00 | J204: Target Achieved | K204: 60.50 | L204: 23.31% | M204: Successful | N204: 2021-05-07 | R204: V
A205: 139 | B205: 2018-12-05 | D205: VARROC | E205: Accu | F205: 715 | H205: 445 | I205: 840.00 | J205: Loss of Rs.270/- | K205: -270.00 | L205: -37.76% | M205: Unsuccessful | N205: 2019-12-01 | R205: V
A206: 140 | B206: 2019-01-04 | D206: MGL | E206: Accu | F206: 875 | H206: 1165 | I206: 1185.00 | J206: Profit of Rs.290/- | K206: 290.00 | L206: 33.14% | M206: Successful | N206: 2020-01-17 | R206: V
A207: 141 | B207: 2019-04-04 | D207: COCHINSHIP | E207: Accu | F207: =387-14.63 -> 372.37 | H207: 490 | I207: 490.00 | J207: Target Achieved | K207: 117.63 | L207: 31.59% | M207: Successful | N207: 2020-01-20 | R207: V
A208: 142 | B208: 2019-04-23 | D208: MAHINDCIE | E208: Buy | F208: 220 | H208: 127.5 | I208: 284.00 | J208: Loss of Rs.92.50/- | K208: -92.50 | L208: -42.05% | M208: Unsuccessful | N208: 2020-03-06 | R208: V
A209: 143 | B209: 2019-06-06 | D209: RADICO | E209: Buy | F209: 332.8 | H209: 405 | I209: 419.00 | J209: Profit of Rs.72.20/- | K209: 72.20 | L209: 21.69% | M209: Successful | N209: 2020-01-30 | R209: K
A210: 144 | B210: 2019-06-25 | D210: M&MFIN | E210: Accu | F210: 386 | H210: 395.00 | I210: 452.00 | J210: Profit of Rs.9/- | K210: 9.00 | L210: 2% | M210: Neutral | N210: 2020-02-07 | R210: K
A211: 145 | B211: 2019-08-30 | D211: INDHOTEL | E211: Accu | F211: 137.5 | H211: 138.50 | I211: 190.00 | J211: Profit of Rs.1/- | K211: 1.00 | L211: 1% | M211: Neutral | N211: 2021-08-24 | R211: V
A212: 146 | B212: 2019-09-23 | D212: KNRCON | E212: Accu | F212: 235 | H212: 295 | I212: 296.00 | J212: Profit of Rs.60/- | K212: 60.00 | L212: 25.53% | M212: Successful | N212: 2020-01-14 | R212: K
A213: 147 | B213: 2019-10-14 | D213: KEC$ | E213: Accu | F213: 277.5 | H213: 333 | I213: 333.00 | J213: Profit of Rs.55.50/- | K213: 55.50 | L213: 20.00% | M213: Successful | N213: 2020-01-16 | R213: V
A214: 148 | B214: 2019-10-14 | D214: MGL$ | E214: Accu | F214: 930 | H214: 1165 | I214: 1200.00 | J214: Profit of Rs.235/- | K214: 235.00 | L214: 25.27% | M214: Successful | N214: 2020-01-17 | R214: K
A215: 149 | B215: 2019-10-15 | D215: JKPAPER$ | E215: Accu | F215: 111.00 | H215: 141 | I215: 141.00 | J215: Profit of Rs.30/- | K215: 30.00 | L215: 27.03% | M215: Successful | N215: 2021-05-12 | R215: K
A216: 150 | B216: 2019-10-15 | D216: RADICO$ | E216: Accu | F216: 296.00 | H216: 370 | I216: 370.00 | J216: Target Achieved | K216: =H216-F216 -> 74.00 | L216: =K216/F216 -> 25.00% | M216: Successful | N216: 2020-01-23 | R216: K
A217: 151 | B217: 2019-10-16 | D217: MOLDTKPAC$ | E217: Accu | F217: 300.00 | H217: 382.5 | I217: 344.00 | J217: Profit of Rs.82.5/- | K217: 82.50 | L217: 27.50% | M217: Successful | N217: 2021-02-11 | R217: K
A218: 152 | B218: 2020-01-02 | D218: PSPPROJECT | E218: Accu | F218: 495.00 | H218: 595 | I218: 590.00 | J218: Profit of Rs.100/- | K218: 100.00 | L218: 20.20% | M218: Successful | N218: 2022-01-28 | R218: K
A219: 153 | B219: 2020-05-15 | D219: BEL | E219: Accu | F219: 67.50 | H219: 86 | I219: 86.00 | J219: Profit of Rs.18.50/- | K219: 18.50 | L219: 27.41% | M219: Successful | N219: 2020-06-26 | R219: K
A220: 154 | B220: 2020-07-23 | D220: RITES | E220: Accu | F220: 231.00 | H220: 281 | I220: 281.00 | J220: Target Achieved | K220: 50.00 | L220: 21.65% | M220: Successful | N220: 2021-06-11 | R220: K
A221: 155 | B221: 2020-09-18 | D221: IEX | E221: Accu | F221: 206 | H221: 248 | I221: 248.00 | J221: Target Achieved | K221: 42.00 | L221: 20.39% | M221: Successful | N221: 2021-01-18 | R221: K
A222: 156 | B222: 2020-11-05 | D222: IEX | E222: Accu | F222: 182.5 | H222: 248 | I222: 248.00 | J222: Target Achieved | K222: 65.50 | L222: 35.89% | M222: Successful | N222: 2021-01-18 | R222: K
A223: 157 | B223: 2020-11-05 | D223: CCL | E223: Accu | F223: 247.5 | H223: 320 | I223: 320.00 | J223: Target Achieved | K223: 72.50 | L223: 29.29% | M223: Successful | N223: 2021-05-07 | R223: K
A224: 158 | B224: 2020-11-05 | D224: POLYCAB | E224: Accu | F224: 925.00 | H224: 1095 | I224: 1093.00 | J224: Profit of Rs.170/- | K224: 170.00 | L224: 18.38% | M224: Successful | N224: 2021-01-05 | R224: K
A225: 159 | B225: 2020-11-05 | D225: COCHINSHIP | E225: Accu | F225: 332.50 | H225: 393 | I225: 406.00 | J225: Profit of Rs.60.50/- | K225: 60.50 | L225: 18.20% | M225: Successful | N225: 2021-03-01 | R225: K
... 30 more rows
